Workbook

Sheet 1. INFORMACION ACUMULADA
A2: VEEDURIA DISTRITAL - INFORMACIÓN GESTION CONTRACTUAL
A3: DEL 1 DE ENERO AL 31 DE DICIEMBRE DE 2022
A5: 1. Entidad | E5: FONDO DE DESARROLLO LOCAL ANTONIO NARIÑO - FDLAN | H5: 2. Sector | I5: Gobierno
A6: 3. Presupuesto Disponible Inversión Directa PREDIS (BOGDATA) | E6: 23723024146 | H6: 5. Presupuesto Disponible Funcionamiento PREDIS (BOGDATA) | I6: 1798172000 | AI6: 7. Nombre de quien diligencia el formato | AK6: Edwin Johan Chocontá Quintero
A7: 4. Presupuesto Comprometido de Inversión Directa según PREDIS (BOGDATA) | E7: 21045484881 | H7: 6. Presupuesto Comprometido Funcionamiento según PREDIS (BOGDATA) | I7: 1708189172 | AI7: Cargo | AK7: Profesional Universitario Código 219 Grado 18
AI8: Dependencia | AK8: Contratación
AI9: Teléfono | AK9: 3229103809
AI10: Correo Electrónico | AK10: edwin.choconta@gobiernobogota.gov.co
A11: 1- INFORMACION GENERAL | V11: 2- INFORMACION FINANCIERA | AC11: 3 - PLAZOS | AI11: 4. CESION | AM11: 5. ESTADO | AN11: 6. % Avance y/o cumplimiento
A12: 1 | B12: 2 | C12: 3 | E12: 4 | F12: 5 | G12: 6 | H12: 7 | I12: 8 | N12: 9 | O12: 10 | P12: 11 | V12: 12 | W12: 13 | X12: 14 | Y12: 15 | Z12: 16 | AA12: 17 | AB12: 18 | AC12: 19 | AD12: 20 | AE12: 21 | AF12: 22 | AG12: 23 | AH12: 24 | AI12: 25 | AJ12: 26 | AK12: 27 | AL12: 28 | AM12: 29 | AN12: 30
A13: Número Contrato | B13: Año | C13: Número de proceso contractual SECOP | D13: Link proceso SECOP | E13: Tipo de contrato | F13: Modalidad de Selección | G13: Procedimiento o causal | H13: Objeto | I13: Afectación | J13: Plan de Desarrollo Distrital | K13: Número Programa | L13: Equivalencia número de programa | M13: Propósito | N13: Número Proyecto | O13: Número de proponentes | P13: Número de Identificación del contratista (Cédula o NIT sin puntos, comas ni caracteres especiales y sin digito de verificación) | Q13: Nombre del contratista (según el caso: nombres y apellidos o Razón social y Tipo societario) | R13: Naturaleza Jurídica | S13: Número de Identificación del integrante del Consorcio o U.T. (Cédula o NIT sin puntos, comas ni caracteres especiales y sin digito de verificación) | T13: Nombre del Integrante del Consorcio o U.T. y Tipo societario (Según el caso: nombres y apellidos o razón social y tipo societario) | U13: % Participación (indicar solo el numero del porcentaje, sin caracteres especiales) | V13: Vigencias futuras | W13: Valor Inicial del contrato | X13: Valor total reducciones (En valor negativo) | Y13: Número de adiciones | Z13: Valor total de adiciones | AA13: Valor Final | AB13: Giros (Valor en pesos) | AC13: Fecha de suscripción (DD/MM/AAAA) | AD13: Fecha de inicio (DD/MM/AAAA) | AE13: Fecha de terminación (DD/MM/AAAA) | AF13: Plazo en días | AG13: Número de prórrogas | AH13: Prorroga en días | AI13: Número de Identificación del cesionario (NIT sin digito de verificación) | AJ13: Nombre cesionario | AK13: Fecha cesión (DD/MM/AAAA) | AL13: Valor cesión | AM13: Estado | AN13: % Avance y/o Cumplimiento
A14: 1 | B14: 2022 | C14: FDLANCD-001-2022(66790) | D14: https://community.secop.gov.co/Public/Tendering/OpportunityDetail/Index?noticeUID=CO1.NTC.2525139&isFromPublicArea=True&isModal=False | E14: Contratos de prestación de servicios profesionales y de apoyo a la gestión | F14: Contratación directa | G14: Prestación de servicios profesionales y de apoyo a la gestión, o para la ejecución de trabajos artísticos que sólo puedan encomendarse a determinadas personas naturales | H14: Prestación de servicios profesionales como abogado para apoyar la estructuración, seguimiento y control de procesos contractuales que deriven del proyecto de inversión 2201 conforme a las Acciones de fomento y promoción de actividades artísticas, interculturales, culturales y/o patrimoniales de la localidad de Antonio Nariño | I14: Inversión | J14: Un nuevo contrato social y ambiental para la Bogotá del Siglo XXI | K14: 21 | L14: =IF(ISERROR(VLOOKUP(K14,Proposito_programa!$C$2:$E$59,2,FALSE))," ",VLOOKUP(K14,Proposito_programa!$C$2:$E$59,2,FALSE)) -> Creación y vida cotidiana: Apropiación ciudadana del arte, la cultura y el patrimonio, para la democracia cultural | M14: =IF(ISERROR(VLOOKUP(K14,Proposito_programa!$C$2:$E$59,3,FALSE))," ",VLOOKUP(K14,Proposito_programa!$C$2:$E$59,3,FALSE)) -> Propósito 1: Hacer un nuevo contrato social para incrementar la inclusión social, productiva y política | N14: 2201 | O14: 1 | P14: 79696837 | Q14: EDWIN GUILLERMO MOLINA CARDONA | R14: Persona Natural | W14: 32400000 | AA14: =+W14+X14+Z14 -> 32400000 | AB14: 32400000 | AC14: 2022-01-11 | AD14: 2022-01-14 | AE14: 2022-07-12 | AF14: 180 | AM14: En ejecución | AN14: =IF(ISERROR(AB14/AA14),"-",(AB14/AA14)) -> 1
A15: 2 | B15: 2022 | C15: FDLANCD-002-2022(66605) | D15: https://community.secop.gov.co/Public/Tendering/OpportunityDetail/Index?noticeUID=CO1.NTC.2524922&isFromPublicArea=True&isModal=False | E15: Contratos de prestación de servicios profesionales y de apoyo a la gestión | F15: Contratación directa | G15: Prestación de servicios profesionales y de apoyo a la gestión, o para la ejecución de trabajos artísticos que sólo puedan encomendarse a determinadas personas naturales | H15: Prestar servicios profesionales de apoyo en los procesos administrativos, contables y financieros en el fondo de desarrollo local de Antonio Nariño en el marco de las normas de derecho contable, de seguridad social y los procedimientos vigentes. | I15: Inversión | J15: Un nuevo contrato social y ambiental para la Bogotá del Siglo XXI | K15: 57 | L15: =IF(ISERROR(VLOOKUP(K15,Proposito_programa!$C$2:$E$59,2,FALSE))," ",VLOOKUP(K15,Proposito_programa!$C$2:$E$59,2,FALSE)) -> Gestión pública local | M15: =IF(ISERROR(VLOOKUP(K15,Proposito_programa!$C$2:$E$59,3,FALSE))," ",VLOOKUP(K15,Proposito_programa!$C$2:$E$59,3,FALSE)) -> Propósito 5: Construir Bogotá - Región con gobierno abierto, transparente y ciudadanía consciente | N15: 2198 | O15: 1 | P15: 1022342284 | Q15: YULY ANDREA SOLANO GUERRERO | R15: Persona Natural | W15: 32400000 | AA15: =+W15+X15+Z15 -> 32400000 | AB15: 32400000 | AC15: 2022-01-11 | AD15: 2022-01-12 | AE15: 2022-07-10 | AF15: 180 | AM15: En ejecución | AN15: =IF(ISERROR(AB15/AA15),"-",(AB15/AA15)) -> 1
A16: 3 | B16: 2022 | C16: FDLANCD-003-2022(66682) | D16: https://community.secop.gov.co/Public/Tendering/OpportunityDetail/Index?noticeUID=CO1.NTC.2524742&isFromPublicArea=True&isModal=False | E16: Contratos de prestación de servicios profesionales y de apoyo a la gestión | F16: Contratación directa | G16: Prestación de servicios profesionales y de apoyo a la gestión, o para la ejecución de trabajos artísticos que sólo puedan encomendarse a determinadas personas naturales | H16: Apoyar la formulación, ejecución, seguimiento y mejora continua de las herramientas que conforman la Gestión Ambiental Institucional de la Alcaldía Local. | I16: Inversión | J16: Un nuevo contrato social y ambiental para la Bogotá del Siglo XXI | K16: 57 | L16: =IF(ISERROR(VLOOKUP(K16,Proposito_programa!$C$2:$E$59,2,FALSE))," ",VLOOKUP(K16,Proposito_programa!$C$2:$E$59,2,FALSE)) -> Gestión pública local | M16: =IF(ISERROR(VLOOKUP(K16,Proposito_programa!$C$2:$E$59,3,FALSE))," ",VLOOKUP(K16,Proposito_programa!$C$2:$E$59,3,FALSE)) -> Propósito 5: Construir Bogotá - Región con gobierno abierto, transparente y ciudadanía consciente | N16: 2198 | O16: 1 | P16: 1013671508 | Q16: JONATHAN CALDERON PEÑA | R16: Persona Natural | W16: 27720000 | AA16: 27720000 | AB16: 27720000 | AC16: 2022-01-11 | AD16: 2022-01-12 | AE16: 2022-07-10 | AF16: 180 | AM16: En ejecución | AN16: 1
A17: 4 | B17: 2022 | C17: FDLAN-CD-004-2022 (67164) | D17: https://community.secop.gov.co/Public/Tendering/OpportunityDetail/Index?noticeUID=CO1.NTC.2524400&isFromPublicArea=True&isModal=False | E17: Contratos de prestación de servicios profesionales y de apoyo a la gestión | F17: Contratación directa | G17: Prestación de servicios profesionales y de apoyo a la gestión, o para la ejecución de trabajos artísticos que sólo puedan encomendarse a determinadas personas naturales | H17: Prestación de servicios profesionales como abogado para apoyar la estructuración, seguimiento y control de procesos contractuales que deriven del proyecto de inversión 2191 conforme a las Acciones integrales para la productividad y emprendimiento del Fondo de Desarrollo Local de Antonio Nariño | I17: Inversión | J17: Un nuevo contrato social y ambiental para la Bogotá del Siglo XXI | K17: 6 | L17: =IF(ISERROR(VLOOKUP(K17,Proposito_programa!$C$2:$E$59,2,FALSE))," ",VLOOKUP(K17,Proposito_programa!$C$2:$E$59,2,FALSE)) -> Sistema Distrital de Cuidado | M17: =IF(ISERROR(VLOOKUP(K17,Proposito_programa!$C$2:$E$59,3,FALSE))," ",VLOOKUP(K17,Proposito_programa!$C$2:$E$59,3,FALSE)) -> Propósito 1: Hacer un nuevo contrato social para incrementar la inclusión social, productiva y política | N17: 2191 | O17: 1 | P17: 1094906434 | Q17: SANTIAGO DUQUE TABARES | R17: Persona Natural | W17: 32400000 | AA17: 32400000 | AB17: 32400000 | AC17: 2022-01-11 | AD17: 2022-01-19 | AE17: 2022-07-17 | AF17: 180 | AM17: En ejecución | AN17: 1
A18: 5 | B18: 2022 | C18: FDLANCD-005-2022(66609) | D18: https://community.secop.gov.co/Public/Tendering/OpportunityDetail/Index?noticeUID=CO1.NTC.2528138&isFromPublicArea=True&isModal=False | E18: Contratos de prestación de servicios profesionales y de apoyo a la gestión | F18: Contratación directa | G18: Prestación de servicios profesionales y de apoyo a la gestión, o para la ejecución de trabajos artísticos que sólo puedan encomendarse a determinadas personas naturales | H18: PRESTAR LOS SERVICIOS PROFESIONALES ESPECIALIZADOS AL DESPACHO DE LA ALCALDÍA LOCAL DE ANTONIO NARIÑO PARA LA REVISIÓN Y DESIGNACIÓN DE LOS PROCESOS RELACIONADOS CON LA FORMULACIÓN, SEGUIMIENTO, EVALUACIÓN Y ACOMPAÑAMIENTO A LOS PROYECTOS DE INFRAESTRUCTURA DE LA LOCALIDAD DE ANTONIO NARIÑO | I18: Inversión | J18: Un nuevo contrato social y ambiental para la Bogotá del Siglo XXI | K18: 49 | L18: =IF(ISERROR(VLOOKUP(K18,Proposito_programa!$C$2:$E$59,2,FALSE))," ",VLOOKUP(K18,Proposito_programa!$C$2:$E$59,2,FALSE)) -> Movilidad segura, sostenible y accesible | M18: =IF(ISERROR(VLOOKUP(K18,Proposito_programa!$C$2:$E$59,3,FALSE))," ",VLOOKUP(K18,Proposito_programa!$C$2:$E$59,3,FALSE)) -> Propósito 4: Hacer de Bogotá Región un modelo de movilidad multimodal, incluyente y sostenible | N18: 2186 | O18: 1 | P18: 5820742 | Q18: HECTOR JULIAN ORJUELA PARRA | R18: Persona Natural | W18: 105600000 | Y18: 1 | Z18: 6080000 | AA18: 111680000 | AB18: 102080000 | AC18: 2022-01-12 | AD18: 2022-01-13 | AE18: 2022-12-30 | AF18: 349 | AM18: En ejecución | AN18: 0.9140401146
A19: 6 | B19: 2022 | C19: FDLANCD-006-2022(67158) | D19: https://community.secop.gov.co/Public/Tendering/OpportunityDetail/Index?noticeUID=CO1.NTC.2528925&isFromPublicArea=True&isModal=False | E19: Contratos de prestación de servicios profesionales y de apoyo a la gestión | F19: Contratación directa | G19: Prestación de servicios profesionales y de apoyo a la gestión, o para la ejecución de trabajos artísticos que sólo puedan encomendarse a determinadas personas naturales | H19: Prestar los servicios de apoyo como técnico administrativo en el área de gestión de desarrollo del Fondo de Desarrollo Local de Antonio Nariño para los diferentes asuntos contractuales que adelanta la entidad. | I19: Inversión | J19: Un nuevo contrato social y ambiental para la Bogotá del Siglo XXI | K19: 57 | L19: =IF(ISERROR(VLOOKUP(K19,Proposito_programa!$C$2:$E$59,2,FALSE))," ",VLOOKUP(K19,Proposito_programa!$C$2:$E$59,2,FALSE)) -> Gestión pública local | M19: =IF(ISERROR(VLOOKUP(K19,Proposito_programa!$C$2:$E$59,3,FALSE))," ",VLOOKUP(K19,Proposito_programa!$C$2:$E$59,3,FALSE)) -> Propósito 5: Construir Bogotá - Región con gobierno abierto, transparente y ciudadanía consciente | N19: 2198 | O19: 1 | P19: 1019113136 | Q19: LUZ ADRIANA SANCHEZ VELANDIA | R19: Persona Natural | W19: 16740000 | AA19: 16740000 | AB19: 16740000 | AC19: 2022-01-12 | AD19: 2022-01-13 | AE19: 2022-07-11 | AF19: 180 | AM19: En ejecución | AN19: 1
A20: 7 | B20: 2022 | C20: FDLANCD-007-2022(66818) | D20: https://community.secop.gov.co/Public/Tendering/OpportunityDetail/Index?noticeUID=CO1.NTC.2529948&isFromPublicArea=True&isModal=False | E20: Contratos de prestación de servicios profesionales y de apoyo a la gestión | F20: Contratación directa | G20: Prestación de servicios profesionales y de apoyo a la gestión, o para la ejecución de trabajos artísticos que sólo puedan encomendarse a determinadas personas naturales | H20: Prestar servicios de apoyo a la gestión del fondo de desarrollo local de Antonio Nariño en los asuntos operativos relacionados con la seguridad, la convivencia y el desarrollo de actividad económica en la localidad, con conformidad con el marco normativo aplicable en la materia. | I20: Inversión | J20: Un nuevo contrato social y ambiental para la Bogotá del Siglo XXI | K20: 57 | L20: =IF(ISERROR(VLOOKUP(K20,Proposito_programa!$C$2:$E$59,2,FALSE))," ",VLOOKUP(K20,Proposito_programa!$C$2:$E$59,2,FALSE)) -> Gestión pública local | M20: =IF(ISERROR(VLOOKUP(K20,Proposito_programa!$C$2:$E$59,3,FALSE))," ",VLOOKUP(K20,Proposito_programa!$C$2:$E$59,3,FALSE)) -> Propósito 5: Construir Bogotá - Región con gobierno abierto, transparente y ciudadanía consciente | N20: 2198 | O20: 1 | P20: 1013684748 | Q20: NICOL DANIELA PARRA | R20: Persona Natural | W20: 19680000 | AA20: 19680000 | AB20: 19680000 | AC20: 2022-01-12 | AD20: 2022-01-14 | AE20: 2022-09-11 | AF20: 240 | AM20: En ejecución | AN20: 1
A21: 8 | B21: 2022 | C21: FDLANCD-008-2022(66818) | D21: https://community.secop.gov.co/Public/Tendering/OpportunityDetail/Index?noticeUID=CO1.NTC.2530059&isFromPublicArea=True&isModal=False | E21: Contratos de prestación de servicios profesionales y de apoyo a la gestión | F21: Contratación directa | G21: Prestación de servicios profesionales y de apoyo a la gestión, o para la ejecución de trabajos artísticos que sólo puedan encomendarse a determinadas personas naturales | H21: Prestar servicios de apoyo a la gestión del fondo de desarrollo local de Antonio Nariño en los asuntos operativos relacionados con la seguridad, la convivencia y el desarrollo de actividad económica en la localidad, con conformidad con el marco normativo aplicable en la materia. | I21: Inversión | J21: Un nuevo contrato social y ambiental para la Bogotá del Siglo XXI | K21: 57 | L21: =IF(ISERROR(VLOOKUP(K21,Proposito_programa!$C$2:$E$59,2,FALSE))," ",VLOOKUP(K21,Proposito_programa!$C$2:$E$59,2,FALSE)) -> Gestión pública local | M21: =IF(ISERROR(VLOOKUP(K21,Proposito_programa!$C$2:$E$59,3,FALSE))," ",VLOOKUP(K21,Proposito_programa!$C$2:$E$59,3,FALSE)) -> Propósito 5: Construir Bogotá - Región con gobierno abierto, transparente y ciudadanía consciente | N21: 2198 | O21: 1 | P21: 51591147 | Q21: ROSA MARIA PATIÑO | R21: Persona Natural | W21: 19680000 | AA21: 19680000 | AB21: 19680000 | AC21: 2022-01-12 | AD21: 2022-01-14 | AE21: 2022-09-12 | AF21: 240 | AM21: En ejecución | AN21: 1
A22: 9 | B22: 2022 | C22: FDLANCD-009-2022(66611) | D22: https://community.secop.gov.co/Public/Tendering/OpportunityDetail/Index?noticeUID=CO1.NTC.2530018&isFromPublicArea=True&isModal=False | E22: Contratos de prestación de servicios profesionales y de apoyo a la gestión | F22: Contratación directa | G22: Prestación de servicios profesionales y de apoyo a la gestión, o para la ejecución de trabajos artísticos que sólo puedan encomendarse a determinadas personas naturales | H22: Prestacion de servicios profesionales de apoyo al despacho del alcalde local de Antonio Nariño en el seguimiento y control de la planeacion y ejecucion del plan de desarrollo local. | I22: Inversión | J22: Un nuevo contrato social y ambiental para la Bogotá del Siglo XXI | K22: 57 | L22: =IF(ISERROR(VLOOKUP(K22,Proposito_programa!$C$2:$E$59,2,FALSE))," ",VLOOKUP(K22,Proposito_programa!$C$2:$E$59,2,FALSE)) -> Gestión pública local | M22: =IF(ISERROR(VLOOKUP(K22,Proposito_programa!$C$2:$E$59,3,FALSE))," ",VLOOKUP(K22,Proposito_programa!$C$2:$E$59,3,FALSE)) -> Propósito 5: Construir Bogotá - Región con gobierno abierto, transparente y ciudadanía consciente | N22: 2198 | O22: 1 | P22: 1019049203 | Q22: JUAN GUILLERMO RODRIGUEZ TRIANA | R22: Persona Natural | W22: 81840000 | Y22: 1 | Z22: 4464000 | AA22: 86304000 | AB22: 78368000 | AC22: 2022-01-12 | AD22: 2022-01-14 | AE22: 2022-12-30 | AF22: 330 | AI22: 1019049203 | AJ22: JUAN GUILLERMO RODRIGUEZ TRIANA | AK22: 2022-02-14 | AL22: 81840000 | AM22: En ejecución | AN22: 0.908045977
A23: 10 | B23: 2022 | C23: FDLANCD-010-2022(66606) | D23: https://community.secop.gov.co/Public/Tendering/OpportunityDetail/Index?noticeUID=CO1.NTC.2530540&isFromPublicArea=True&isModal=False | E23: Contratos de prestación de servicios profesionales y de apoyo a la gestión | F23: Contratación directa | G23: Prestación de servicios profesionales y de apoyo a la gestión, o para la ejecución de trabajos artísticos que sólo puedan encomendarse a determinadas personas naturales | H23: Prestación de servicios profesionales especializados para apoyar al alcalde local en el diseño de estrategias y acciones de seguimiento a los diferentes asuntos competencia del despacho para el cumplimiento de sus funciones y del Plan de Desarrollo Local | I23: Inversión | J23: Un nuevo contrato social y ambiental para la Bogotá del Siglo XXI | K23: 57 | L23: =IF(ISERROR(VLOOKUP(K23,Proposito_programa!$C$2:$E$59,2,FALSE))," ",VLOOKUP(K23,Proposito_programa!$C$2:$E$59,2,FALSE)) -> Gestión pública local | M23: =IF(ISERROR(VLOOKUP(K23,Proposito_programa!$C$2:$E$59,3,FALSE))," ",VLOOKUP(K23,Proposito_programa!$C$2:$E$59,3,FALSE)) -> Propósito 5: Construir Bogotá - Región con gobierno abierto, transparente y ciudadanía consciente | N23: 2198 | O23: 1 | P23: 1117513872 | Q23: VICTOR RAUL TOVAR MENDEZ | R23: Persona Natural | W23: 105600000 | Y23: 1 | Z23: 6080000 | AA23: 111680000 | AB23: 102080000 | AC23: 2022-01-12 | AD23: 2022-01-13 | AE23: 2022-12-30 | AF23: 330 | AI23: 1117513872 | AJ23: VICTOR RAUL TOVAR MENDEZ | AK23: 2022-10-28 | AL23: $ 105.600.000 | AM23: En ejecución | AN23: 0.9140401146
A24: 11 | B24: 2022 | C24: FDLANCD-011-2022(66610) | D24: https://community.secop.gov.co/Public/Tendering/OpportunityDetail/Index?noticeUID=CO1.NTC.2533555&isFromPublicArea=True&isModal=False | E24: Contratos de prestación de servicios profesionales y de apoyo a la gestión | F24: Contratación directa | G24: Prestación de servicios profesionales y de apoyo a la gestión, o para la ejecución de trabajos artísticos que sólo puedan encomendarse a determinadas personas naturales | H24: Prestar servicios profesionales como abogado para fortalecer el equipo del área de gestión de desarrollo local de Antonio Nariño en los diferentes trámites jurídicos y contractuales necesarios para la ejecución del plan de desarrollo local relacionados con procesos de infraestructura | I24: Inversión | J24: Un nuevo contrato social y ambiental para la Bogotá del Siglo XXI | K24: 49 | L24: =IF(ISERROR(VLOOKUP(K24,Proposito_programa!$C$2:$E$59,2,FALSE))," ",VLOOKUP(K24,Proposito_programa!$C$2:$E$59,2,FALSE)) -> Movilidad segura, sostenible y accesible | M24: =IF(ISERROR(VLOOKUP(K24,Proposito_programa!$C$2:$E$59,3,FALSE))," ",VLOOKUP(K24,Proposito_programa!$C$2:$E$59,3,FALSE)) -> Propósito 4: Hacer de Bogotá Región un modelo de movilidad multimodal, incluyente y sostenible | N24: 2186 | O24: 1 | P24: 1024542049 | Q24: YURANI ANDREA ANGULO PEÑARALDA | R24: Persona Natural | W24: 51840000 | Y24: 2 | Z24: 22032000 | AA24: 73872000 | AB24: 66744000 | AC24: 2022-01-12 | AD24: 2022-01-13 | AE24: 2023-01-15 | AF24: 240 | AG24: 1 | AH24: 109 | AI24: 1083902434 | AJ24: FRANCISCO JAVIER SALAZAR GURRUTE | AK24: 2022-10-11 | AL24: 70632000 | AM24: En ejecución | AN24: 0.9035087719
A25: 12 | B25: 2022 | C25: FDLANCD-012-2022(66752) | D25: https://community.secop.gov.co/Public/Tendering/OpportunityDetail/Index?noticeUID=CO1.NTC.2533542&isFromPublicArea=True&isModal=False | E25: Contratos de prestación de servicios profesionales y de apoyo a la gestión | F25: Contratación directa | G25: Prestación de servicios profesionales y de apoyo a la gestión, o para la ejecución de trabajos artísticos que sólo puedan encomendarse a determinadas personas naturales | H25: Apoyar al Alcalde Local en la gestión de los asuntos relacionados con seguridad ciudadana, convivencia y prevención de conflictividades, violencias y delitos en la localidad, de conformidad con el marco normativo aplicable en la materia. | I25: Inversión | J25: Un nuevo contrato social y ambiental para la Bogotá del Siglo XXI | K25: 57 | L25: =IF(ISERROR(VLOOKUP(K25,Proposito_programa!$C$2:$E$59,2,FALSE))," ",VLOOKUP(K25,Proposito_programa!$C$2:$E$59,2,FALSE)) -> Gestión pública local | M25: =IF(ISERROR(VLOOKUP(K25,Proposito_programa!$C$2:$E$59,3,FALSE))," ",VLOOKUP(K25,Proposito_programa!$C$2:$E$59,3,FALSE)) -> Propósito 5: Construir Bogotá - Región con gobierno abierto, transparente y ciudadanía consciente | N25: 2198 | O25: 1 | P25: 1055226889 | Q25: JUAN DAVID CUERVO ZORRO | R25: Persona Natural | W25: 32400000 | AA25: 32400000 | AB25: 30240000 | AC25: 2022-01-12 | AD25: 2022-01-14 | AE25: 2022-07-12 | AF25: 180 | AM25: En ejecución | AN25: 0.9333333333
A26: 13 | B26: 2022 | C26: FDLANCD-013-2022(67761) | D26: https://community.secop.gov.co/Public/Tendering/OpportunityDetail/Index?noticeUID=CO1.NTC.2536539&isFromPublicArea=True&isModal=False | E26: Contratos de prestación de servicios profesionales y de apoyo a la gestión | F26: Contratación directa | G26: Prestación de servicios profesionales y de apoyo a la gestión, o para la ejecución de trabajos artísticos que sólo puedan encomendarse a determinadas personas naturales | H26: Prestación de servicios de apoyo en el manejo de sistemas de información en lo relacionado con la contratación que realiza el área de gestión de desarrollo del Fondo de Desarrollo Local de Antonio Nariño | I26: Inversión | J26: Un nuevo contrato social y ambiental para la Bogotá del Siglo XXI | K26: 57 | L26: =IF(ISERROR(VLOOKUP(K26,Proposito_programa!$C$2:$E$59,2,FALSE))," ",VLOOKUP(K26,Proposito_programa!$C$2:$E$59,2,FALSE)) -> Gestión pública local | M26: =IF(ISERROR(VLOOKUP(K26,Proposito_programa!$C$2:$E$59,3,FALSE))," ",VLOOKUP(K26,Proposito_programa!$C$2:$E$59,3,FALSE)) -> Propósito 5: Construir Bogotá - Región con gobierno abierto, transparente y ciudadanía consciente | N26: 2198 | O26: 1 | P26: 80793701 | Q26: JAIME ERNESTO ALARCON LOPEZ | R26: Persona Natural | W26: 14760000 | AA26: 14760000 | AB26: 14760000 | AC26: 2022-01-12 | AD26: 2022-01-13 | AE26: 2022-07-11 | AF26: 180 | AM26: En ejecución | AN26: 1
A27: 14 | B27: 2022 | C27: FDLANCD-014-2022(66854) | D27: https://community.secop.gov.co/Public/Tendering/OpportunityDetail/Index?noticeUID=CO1.NTC.2536740&isFromPublicArea=True&isModal=False | E27: Contratos de prestación de servicios profesionales y de apoyo a la gestión | F27: Contratación directa | G27: Prestación de servicios profesionales y de apoyo a la gestión, o para la ejecución de trabajos artísticos que sólo puedan encomendarse a determinadas personas naturales | H27: Prestar los servicios profesionales como abogado en los diversos temas contractuales que requiera el área de gestión de desarrollo del Fondo de Desarrollo Local de Antonio Nariño. | I27: Inversión | J27: Un nuevo contrato social y ambiental para la Bogotá del Siglo XXI | K27: 57 | L27: =IF(ISERROR(VLOOKUP(K27,Proposito_programa!$C$2:$E$59,2,FALSE))," ",VLOOKUP(K27,Proposito_programa!$C$2:$E$59,2,FALSE)) -> Gestión pública local | M27: =IF(ISERROR(VLOOKUP(K27,Proposito_programa!$C$2:$E$59,3,FALSE))," ",VLOOKUP(K27,Proposito_programa!$C$2:$E$59,3,FALSE)) -> Propósito 5: Construir Bogotá - Región con gobierno abierto, transparente y ciudadanía consciente | N27: 2198 | O27: 1 | P27: 1083902434 | Q27: FRANCISCO JAVIR SALAZAR GURRUTE | R27: Persona Natural | W27: 66000000 | Y27: 1 | Z27: 6800000 | AA27: 72800000 | AB27: 63800000 | AC27: 2022-01-12 | AD27: 2022-01-13 | AE27: 2023-01-14 | AF27: 330 | AI27: 1026292206 | AJ27: MARIA CAMILA ZAMBRANO CUELLAR | AK27: 2022-10-11 | AL27: 66000000 | AM27: En ejecución | AN27: 0.8763736264
A28: 15 | B28: 2022 | C28: FDLANCD-015-2022(67104) | D28: https://community.secop.gov.co/Public/Tendering/OpportunityDetail/Index?noticeUID=CO1.NTC.2536769&isFromPublicArea=True&isModal=False | E28: Contratos de prestación de servicios profesionales y de apoyo a la gestión | F28: Contratación directa | G28: Prestación de servicios profesionales y de apoyo a la gestión, o para la ejecución de trabajos artísticos que sólo puedan encomendarse a determinadas personas naturales | H28: Prestación de servicios profesionales para brindar apoyo al Alcalde Local de Antonio Nariño en el control, evaluación y seguimiento jurídico-administrativo en los procesos de planeación y gestión institucional del Fondo de Desarrollo Local de Antonio Nariño | I28: Inversión | J28: Un nuevo contrato social y ambiental para la Bogotá del Siglo XXI | K28: 57 | L28: =IF(ISERROR(VLOOKUP(K28,Proposito_programa!$C$2:$E$59,2,FALSE))," ",VLOOKUP(K28,Proposito_programa!$C$2:$E$59,2,FALSE)) -> Gestión pública local | M28: =IF(ISERROR(VLOOKUP(K28,Proposito_programa!$C$2:$E$59,3,FALSE))," ",VLOOKUP(K28,Proposito_programa!$C$2:$E$59,3,FALSE)) -> Propósito 5: Construir Bogotá - Región con gobierno abierto, transparente y ciudadanía consciente | N28: 2198 | O28: 1 | P28: 1144024602 | Q28: MARCELA ALEJANDRA AYALA PERDOMO | R28: Persona Natural | W28: 66000000 | Y28: 1 | Z28: 6800000 | AA28: 72800000 | AB28: 63800000 | AC28: 2022-01-12 | AD28: 2022-01-13 | AE28: 2023-01-15 | AF28: 330 | AG28: 1 | AH28: 34 | AM28: En ejecución | AN28: =IF(ISERROR(AB28/AA28),"-",(AB28/AA28)) -> 0.8763736264
A29: 16 | B29: 2022 | C29: FDLANCD-016-2022(66610) | D29: https://community.secop.gov.co/Public/Tendering/OpportunityDetail/Index?noticeUID=CO1.NTC.2541036&isFromPublicArea=True&isModal=False | E29: Contratos de prestación de servicios profesionales y de apoyo a la gestión | F29: Contratación directa | G29: Prestación de servicios profesionales y de apoyo a la gestión, o para la ejecución de trabajos artísticos que sólo puedan encomendarse a determinadas personas naturales | H29: Prestar servicios profesionales como abogado para fortalecer el equipo del área de gestión de desarrollo local de Antonio Nariño en los diferentes trámites jurídicos y contractuales necesarios para la ejecución del plan de desarrollo local relacionados con procesos de infraestructura | I29: Inversión | J29: Un nuevo contrato social y ambiental para la Bogotá del Siglo XXI | K29: 49 | L29: =IF(ISERROR(VLOOKUP(K29,Proposito_programa!$C$2:$E$59,2,FALSE))," ",VLOOKUP(K29,Proposito_programa!$C$2:$E$59,2,FALSE)) -> Movilidad segura, sostenible y accesible | M29: =IF(ISERROR(VLOOKUP(K29,Proposito_programa!$C$2:$E$59,3,FALSE))," ",VLOOKUP(K29,Proposito_programa!$C$2:$E$59,3,FALSE)) -> Propósito 4: Hacer de Bogotá Región un modelo de movilidad multimodal, incluyente y sostenible | N29: 2186 | O29: 1 | P29: 39725525 | Q29: GINA PAOLA CUBILLOS CASTAÑEDA | R29: Persona Natural | W29: 51840000 | Z29: 22464000 | AA29: 74304000 | AB29: 67824000 | AC29: 2022-01-13 | AD29: 2022-01-18 | AE29: 2022-12-31 | AF29: 240 | AG29: 1 | AH29: 104 | AM29: En ejecución | AN29: =IF(ISERROR(AB29/AA29),"-",(AB29/AA29)) -> 0.9127906977
A30: 17 | B30: 2022 | C30: FDLANCD-017-2022(69866) | D30: https://community.secop.gov.co/Public/Tendering/OpportunityDetail/Index?noticeUID=CO1.NTC.2542142&isFromPublicArea=True&isModal=False | E30: Contratos de prestación de servicios profesionales y de apoyo a la gestión | F30: Contratación directa | G30: Prestación de servicios profesionales y de apoyo a la gestión, o para la ejecución de trabajos artísticos que sólo puedan encomendarse a determinadas personas naturales | H30: Prestación de servicios de apoyo a las actividades administrativas en cuanto a notificación de la correspondencia generada por el área de gestión del desarrollo, administrativa y financiera y área de gestión policiva de la Alcaldía de Antonio Nariño. | I30: Inversión | J30: Un nuevo contrato social y ambiental para la Bogotá del Siglo XXI | K30: 57 | L30: =IF(ISERROR(VLOOKUP(K30,Proposito_programa!$C$2:$E$59,2,FALSE))," ",VLOOKUP(K30,Proposito_programa!$C$2:$E$59,2,FALSE)) -> Gestión pública local | M30: =IF(ISERROR(VLOOKUP(K30,Proposito_programa!$C$2:$E$59,3,FALSE))," ",VLOOKUP(K30,Proposito_programa!$C$2:$E$59,3,FALSE)) -> Propósito 5: Construir Bogotá - Región con gobierno abierto, transparente y ciudadanía consciente | N30: 2198 | O30: 1 | P30: 79469325 | Q30: EVERARDO YARA YARA | R30: Persona Natural | W30: 16200000 | AA30: 16200000 | AB30: 16200000 | AC30: 2022-01-13 | AD30: 2022-01-14 | AE30: 2022-07-12 | AF30: 180 | AM30: En ejecución | AN30: 1
A31: 18 | B31: 2022 | C31: FDLANCD-018-2022((66818) | D31: https://community.secop.gov.co/Public/Tendering/OpportunityDetail/Index?noticeUID=CO1.NTC.2542748&isFromPublicArea=True&isModal=False | E31: Contratos de prestación de servicios profesionales y de apoyo a la gestión | F31: Contratación directa | G31: Prestación de servicios profesionales y de apoyo a la gestión, o para la ejecución de trabajos artísticos que sólo puedan encomendarse a determinadas personas naturales | H31: Prestar servicios de apoyo a la gestión del fondo de desarrollo local de Antonio Nariño en los asuntos operativos relacionados con la seguridad, la convivencia y el desarrollo de actividad económica en la localidad, con conformidad con el marco normativo aplicable en la materia. | I31: Inversión | J31: Un nuevo contrato social y ambiental para la Bogotá del Siglo XXI | K31: 57 | L31: =IF(ISERROR(VLOOKUP(K31,Proposito_programa!$C$2:$E$59,2,FALSE))," ",VLOOKUP(K31,Proposito_programa!$C$2:$E$59,2,FALSE)) -> Gestión pública local | M31: =IF(ISERROR(VLOOKUP(K31,Proposito_programa!$C$2:$E$59,3,FALSE))," ",VLOOKUP(K31,Proposito_programa!$C$2:$E$59,3,FALSE)) -> Propósito 5: Construir Bogotá - Región con gobierno abierto, transparente y ciudadanía consciente | N31: 2198 | O31: 1 | P31: 51678981 | Q31: BLANCA IDALY SUAREZ HERNANDEZ | R31: Persona Natural | W31: 19680000 | AA31: 19680000 | AB31: 19680000 | AC31: 2022-01-13 | AD31: 2022-01-14 | AE31: 2022-09-12 | AF31: 240 | AM31: En ejecución | AN31: 1
A32: 19 | B32: 2022 | C32: FDLANCD-019-2022(66818) | D32: https://community.secop.gov.co/Public/Tendering/OpportunityDetail/Index?noticeUID=CO1.NTC.2542873&isFromPublicArea=True&isModal=False | E32: Contratos de prestación de servicios profesionales y de apoyo a la gestión | F32: Contratación directa | G32: Prestación de servicios profesionales y de apoyo a la gestión, o para la ejecución de trabajos artísticos que sólo puedan encomendarse a determinadas personas naturales | H32: Prestar servicios de apoyo a la gestión del fondo de desarrollo local de Antonio Nariño en los asuntos operativos relacionados con la seguridad, la convivencia y el desarrollo de actividad económica en la localidad, con conformidad con el marco normativo aplicable en la materia. | I32: Inversión | J32: Un nuevo contrato social y ambiental para la Bogotá del Siglo XXI | K32: 57 | L32: =IF(ISERROR(VLOOKUP(K32,Proposito_programa!$C$2:$E$59,2,FALSE))," ",VLOOKUP(K32,Proposito_programa!$C$2:$E$59,2,FALSE)) -> Gestión pública local | M32: =IF(ISERROR(VLOOKUP(K32,Proposito_programa!$C$2:$E$59,3,FALSE))," ",VLOOKUP(K32,Proposito_programa!$C$2:$E$59,3,FALSE)) -> Propósito 5: Construir Bogotá - Región con gobierno abierto, transparente y ciudadanía consciente | N32: 2198 | O32: 1 | P32: 79370565 | Q32: JORGE RAMIRO ORTIZ JARAMILLO | R32: Persona Natural | W32: 19680000 | AA32: 19680000 | AB32: 19680000 | AC32: 2022-01-13 | AD32: 2022-07-11 | AE32: 2022-09-12 | AF32: 240 | AM32: En ejecución | AN32: 1
A33: 20 | B33: 2022 | C33: FDLANCD-020-2022(66608) | D33: https://community.secop.gov.co/Public/Tendering/OpportunityDetail/Index?noticeUID=CO1.NTC.2545410&isFromPublicArea=True&isModal=False | E33: Contratos de prestación de servicios profesionales y de apoyo a la gestión | F33: Contratación directa | G33: Prestación de servicios profesionales y de apoyo a la gestión, o para la ejecución de trabajos artísticos que sólo puedan encomendarse a determinadas personas naturales | H33: Prestación de servicios de apoyo en la ejecución de actividades administrativas y operativas adelantadas en la Junta Administradora Local de Antonio Nariño | I33: Inversión | J33: Un nuevo contrato social y ambiental para la Bogotá del Siglo XXI | K33: 57 | L33: =IF(ISERROR(VLOOKUP(K33,Proposito_programa!$C$2:$E$59,2,FALSE))," ",VLOOKUP(K33,Proposito_programa!$C$2:$E$59,2,FALSE)) -> Gestión pública local | M33: =IF(ISERROR(VLOOKUP(K33,Proposito_programa!$C$2:$E$59,3,FALSE))," ",VLOOKUP(K33,Proposito_programa!$C$2:$E$59,3,FALSE)) -> Propósito 5: Construir Bogotá - Región con gobierno abierto, transparente y ciudadanía consciente | N33: 2198 | O33: 1 | P33: 1013643851 | Q33: PAULA ANDREA PEDRAZA QUIÑONES | R33: Persona Natural | W33: 14760000 | AA33: 14760000 | AB33: 14760000 | AC33: 2022-01-13 | AD33: 2022-01-14 | AE33: 2022-07-12 | AF33: 180 | AM33: En ejecución | AN33: 1
A34: 21 | B34: 2022 | C34: FDLANCD-021-2022(66607) | D34: https://community.secop.gov.co/Public/Tendering/OpportunityDetail/Index?noticeUID=CO1.NTC.2546200&isFromPublicArea=True&isModal=False | E34: Contratos de prestación de servicios profesionales y de apoyo a la gestión | F34: Contratación directa | G34: Prestación de servicios profesionales y de apoyo a la gestión, o para la ejecución de trabajos artísticos que sólo puedan encomendarse a determinadas personas naturales | H34: Prestación de servicios técnico administrativo de apoyo al Alcalde Local de Antonio Nariño en el manejo de los distintos asuntos y trámites asociados con la gestión administrativa local | I34: Inversión | J34: Un nuevo contrato social y ambiental para la Bogotá del Siglo XXI | K34: 57 | L34: =IF(ISERROR(VLOOKUP(K34,Proposito_programa!$C$2:$E$59,2,FALSE))," ",VLOOKUP(K34,Proposito_programa!$C$2:$E$59,2,FALSE)) -> Gestión pública local | M34: =IF(ISERROR(VLOOKUP(K34,Proposito_programa!$C$2:$E$59,3,FALSE))," ",VLOOKUP(K34,Proposito_programa!$C$2:$E$59,3,FALSE)) -> Propósito 5: Construir Bogotá - Región con gobierno abierto, transparente y ciudadanía consciente | N34: 2198 | O34: 1 | P34: 1126908588 | Q34: ANGELICA MARIA HERNANDEZ DORIA | R34: Persona Natural | W34: 48840000 | Y34: 1 | Z34: 4884000 | AA34: 53724000 | AB34: 47064000 | AC34: 2022-01-13 | AD34: 2022-01-14 | AE34: 2023-01-15 | AF34: 330 | AG34: 1 | AH34: 33 | AM34: En ejecución | AN34: 0.8760330579
A35: 22 | B35: 2022 | C35: FDLANCD-022-2022(66699) | D35: https://community.secop.gov.co/Public/Tendering/OpportunityDetail/Index?noticeUID=CO1.NTC.2554218&isFromPublicArea=True&isModal=False | E35: Contratos de prestación de servicios profesionales y de apoyo a la gestión | F35: Contratación directa | G35: Prestación de servicios profesionales y de apoyo a la gestión, o para la ejecución de trabajos artísticos que sólo puedan encomendarse a determinadas personas naturales | H35: Prestar los servicios profesionales como administrador de red brindando asistencia y soporte técnico de la infraestructura tecnológica de la Alcaldía Local, así como a los usuarios que desarrollen sus actividades en las áreas de la Alcaldía Local y Junta Administradora Local. | I35: Inversión | J35: Un nuevo contrato social y ambiental para la Bogotá del Siglo XXI | K35: 57 | L35: =IF(ISERROR(VLOOKUP(K35,Proposito_programa!$C$2:$E$59,2,FALSE))," ",VLOOKUP(K35,Proposito_programa!$C$2:$E$59,2,FALSE)) -> Gestión pública local | M35: =IF(ISERROR(VLOOKUP(K35,Proposito_programa!$C$2:$E$59,3,FALSE))," ",VLOOKUP(K35,Proposito_programa!$C$2:$E$59,3,FALSE)) -> Propósito 5: Construir Bogotá - Región con gobierno abierto, transparente y ciudadanía consciente | N35: 2198 | O35: 1 | P35: 79890568 | Q35: ABEL ERNESTO CASTIBLANCO DURAN | R35: Persona Natural | W35: 32400000 | AA35: 32400000 | AB35: 32400000 | AC35: 2022-01-14 | AD35: 2022-01-17 | AE35: 2022-07-16 | AF35: 180 | AM35: En ejecución | AN35: 1
A36: 23 | B36: 2022 | C36: FDLANCD-023-2022(66818) | D36: https://community.secop.gov.co/Public/Tendering/OpportunityDetail/Index?noticeUID=CO1.NTC.2546577&isFromPublicArea=True&isModal=False | E36: Contratos de prestación de servicios profesionales y de apoyo a la gestión | F36: Contratación directa | G36: Prestación de servicios profesionales y de apoyo a la gestión, o para la ejecución de trabajos artísticos que sólo puedan encomendarse a determinadas personas naturales | H36: Prestar servicios de apoyo a la gestión del fondo de desarrollo local de Antonio Nariño en los asuntos operativos relacionados con la seguridad, la convivencia y el desarrollo de actividad económica en la localidad, con conformidad con el marco normativo aplicable en la materia. | I36: Inversión | J36: Un nuevo contrato social y ambiental para la Bogotá del Siglo XXI | K36: 57 | L36: =IF(ISERROR(VLOOKUP(K36,Proposito_programa!$C$2:$E$59,2,FALSE))," ",VLOOKUP(K36,Proposito_programa!$C$2:$E$59,2,FALSE)) -> Gestión pública local | M36: =IF(ISERROR(VLOOKUP(K36,Proposito_programa!$C$2:$E$59,3,FALSE))," ",VLOOKUP(K36,Proposito_programa!$C$2:$E$59,3,FALSE)) -> Propósito 5: Construir Bogotá - Región con gobierno abierto, transparente y ciudadanía consciente | N36: 2198 | O36: 1 | P36: 51879613 | Q36: YAZMIN PARRA MARQUEZ | R36: Persona Natural | W36: 19680000 | AA36: 19680000 | AB36: 19680000 | AC36: 2022-01-13 | AD36: 2022-01-14 | AE36: 2022-09-12 | AF36: 240 | AM36: En ejecución | AN36: 1
A37: 24 | B37: 2022 | C37: FDLANCD-024-2022(67660) | D37: https://community.secop.gov.co/Public/Tendering/OpportunityDetail/Index?noticeUID=CO1.NTC.2548422&isFromPublicArea=True&isModal=False | E37: Contratos de prestación de servicios profesionales y de apoyo a la gestión | F37: Contratación directa | G37: Prestación de servicios profesionales y de apoyo a la gestión, o para la ejecución de trabajos artísticos que sólo puedan encomendarse a determinadas personas naturales | H37: Prestacion de servicios profesionales como apoyo en la formulacion, seguimiento, supervicion y liquidacion de proyectos de obra e infraestructura relacionados con malla vial y espacio publico en la localidad Antonio Nariño. | I37: Inversión | J37: Un nuevo contrato social y ambiental para la Bogotá del Siglo XXI | K37: 49 | L37: =IF(ISERROR(VLOOKUP(K37,Proposito_programa!$C$2:$E$59,2,FALSE))," ",VLOOKUP(K37,Proposito_programa!$C$2:$E$59,2,FALSE)) -> Movilidad segura, sostenible y accesible | M37: =IF(ISERROR(VLOOKUP(K37,Proposito_programa!$C$2:$E$59,3,FALSE))," ",VLOOKUP(K37,Proposito_programa!$C$2:$E$59,3,FALSE)) -> Propósito 4: Hacer de Bogotá Región un modelo de movilidad multimodal, incluyente y sostenible | N37: 2186 | O37: 1 | P37: 1074133645 | Q37: MANUEL EDUARDO ALVAREZ VANEGAS | R37: Persona Natural | W37: 36000000 | AA37: 36000000 | AB37: 33600000 | AC37: 2022-01-13 | AD37: 2022-01-14 | AE37: 2022-07-12 | AF37: 180 | AM37: En ejecución | AN37: 0.9333333333
A38: 25 | B38: 2022 | C38: FDLANCD-025-2022(66717) | D38: https://community.secop.gov.co/Public/Tendering/OpportunityDetail/Index?noticeUID=CO1.NTC.2548081&isFromPublicArea=True&isModal=False | E38: Contratos de prestación de servicios profesionales y de apoyo a la gestión | F38: Contratación directa | G38: Prestación de servicios profesionales y de apoyo a la gestión, o para la ejecución de trabajos artísticos que sólo puedan encomendarse a determinadas personas naturales | H38: Apoyar al Alcalde Local en la formulación, seguimiento e implementación de la estrategia local para la terminación jurídica o inactivación de las actuaciones administrativas que cursan en la Alcaldía Local. | I38: Inversión | J38: Un nuevo contrato social y ambiental para la Bogotá del Siglo XXI | K38: 57 | L38: Gestión pública local | M38: =IF(ISERROR(VLOOKUP(K38,Proposito_programa!$C$2:$E$59,3,FALSE))," ",VLOOKUP(K38,Proposito_programa!$C$2:$E$59,3,FALSE)) -> Propósito 5: Construir Bogotá - Región con gobierno abierto, transparente y ciudadanía consciente | N38: 2189 | O38: 1 | P38: 79614602 | Q38: RAUL ANTONIO VARGAS CAMARGO | R38: Persona Natural | W38: 57600000 | AA38: 57600000 | AB38: 57600000 | AC38: 2022-01-13 | AD38: 2022-01-18 | AE38: 2022-09-16 | AF38: 240 | AM38: En ejecución | AN38: 1
A39: 26 | B39: 2022 | C39: FDLANCD-026-2022(67699) | D39: https://community.secop.gov.co/Public/Tendering/OpportunityDetail/Index?noticeUID=CO1.NTC.2550322&isFromPublicArea=True&isModal=False | E39: Contratos de prestación de servicios profesionales y de apoyo a la gestión | F39: Contratación directa | G39: Prestación de servicios profesionales y de apoyo a la gestión, o para la ejecución de trabajos artísticos que sólo puedan encomendarse a determinadas personas naturales | H39: Apoyar al equipo de prensa y comunicaciones de la Alcaldía Local en la realización de productos y piezas digitales, impresas y publicitarias de gran formato y de animación gráfica, así como apoyar la producción y montaje de eventos | I39: Inversión | J39: Un nuevo contrato social y ambiental para la Bogotá del Siglo XXI | K39: 57 | L39: =IF(ISERROR(VLOOKUP(K39,Proposito_programa!$C$2:$E$59,2,FALSE))," ",VLOOKUP(K39,Proposito_programa!$C$2:$E$59,2,FALSE)) -> Gestión pública local | M39: =IF(ISERROR(VLOOKUP(K39,Proposito_programa!$C$2:$E$59,3,FALSE))," ",VLOOKUP(K39,Proposito_programa!$C$2:$E$59,3,FALSE)) -> Propósito 5: Construir Bogotá - Región con gobierno abierto, transparente y ciudadanía consciente | N39: 2198 | O39: 1 | P39: 1018456962 | Q39: JUAN CAMILO MONTENGRO SANCHEZ | R39: Persona Natural | W39: 27720000 | AA39: 27720000 | AB39: 27720000 | AC39: 2022-01-13 | AD39: 2022-01-14 | AE39: 2022-07-12 | AF39: 180 | AM39: En ejecución | AN39: 1
A40: 27 | B40: 2022 | C40: FDLANCD-027-2022(67094) | D40: https://community.secop.gov.co/Public/Tendering/OpportunityDetail/Index?noticeUID=CO1.NTC.2596936&isFromPublicArea=True&isModal=False | E40: Contratos de prestación de servicios profesionales y de apoyo a la gestión | F40: Contratación directa | G40: Prestación de servicios profesionales y de apoyo a la gestión, o para la ejecución de trabajos artísticos que sólo puedan encomendarse a determinadas personas naturales | H40: Apoyar jurídicamente la ejecución de las acciones requeridas para el trámite e impulso procesal de las actuaciones contravencionales y/o querellas que cursen en las Inspecciones de Policía de la Localidad | I40: Inversión | J40: Un nuevo contrato social y ambiental para la Bogotá del Siglo XXI | K40: 57 | L40: =IF(ISERROR(VLOOKUP(K40,Proposito_programa!$C$2:$E$59,2,FALSE))," ",VLOOKUP(K40,Proposito_programa!$C$2:$E$59,2,FALSE)) -> Gestión pública local | M40: =IF(ISERROR(VLOOKUP(K40,Proposito_programa!$C$2:$E$59,3,FALSE))," ",VLOOKUP(K40,Proposito_programa!$C$2:$E$59,3,FALSE)) -> Propósito 5: Construir Bogotá - Región con gobierno abierto, transparente y ciudadanía consciente | N40: 2189 | O40: 1 | P40: 10194914219 | Q40: OSCAR MAURICIO CARMONA CELIS | R40: Persona Natural | W40: 27720000 | AA40: 27720000 | AB40: 27720000 | AC40: 2022-01-18 | AD40: 2022-01-19 | AE40: 2022-07-17 | AF40: 180 | AM40: En ejecución | AN40: 1
A41: 28 | B41: 2022 | C41: FDLANCD-028-2022(66612) | D41: https://community.secop.gov.co/Public/Tendering/OpportunityDetail/Index?noticeUID=CO1.NTC.2589310&isFromPublicArea=True&isModal=False | E41: Contratos de prestación de servicios profesionales y de apoyo a la gestión | F41: Contratación directa | G41: Prestación de servicios profesionales y de apoyo a la gestión, o para la ejecución de trabajos artísticos que sólo puedan encomendarse a determinadas personas naturales | H41: Prestar los servicios profesionales para la operación, prestación, seguimiento y cumplimiento de los procedimientos administrativos, operativos y programáticos del Servicio Apoyo Económico Tipo C, que contribuyan a la garantía de los derechos de la población mayor en el marco de la Política Pública Social para el Envejecimiento y la Vejez en el Distrito Capital a cargo de la Alcaldía Local de Antonio Nariño | I41: Inversión | J41: Un nuevo contrato social y ambiental para la Bogotá del Siglo XXI | K41: 1 | L41: =IF(ISERROR(VLOOKUP(K41,Proposito_programa!$C$2:$E$59,2,FALSE))," ",VLOOKUP(K41,Proposito_programa!$C$2:$E$59,2,FALSE)) -> Subsidios y transferencias para la equidad | M41: =IF(ISERROR(VLOOKUP(K41,Proposito_programa!$C$2:$E$59,3,FALSE))," ",VLOOKUP(K41,Proposito_programa!$C$2:$E$59,3,FALSE)) -> Propósito 1: Hacer un nuevo contrato social para incrementar la inclusión social, productiva y política | N41: 1851 | O41: 1 | P41: CE 423466 | Q41: SUSANA PATRICIA ENRIQUEZ | R41: Persona Natural | W41: 32400000 | AA41: 32400000 | AB41: 32400000 | AC41: 2022-01-17 | AD41: 2022-01-19 | AE41: 2022-07-17 | AF41: 180 | AM41: En ejecución | AN41: 1
A42: 29 | B42: 2022 | C42: FDLANCD-029-2022(69835) | D42: https://community.secop.gov.co/Public/Tendering/OpportunityDetail/Index?noticeUID=CO1.NTC.2582183&isFromPublicArea=True&isModal=False | E42: Contratos de prestación de servicios profesionales y de apoyo a la gestión | F42: Contratación directa | G42: Prestación de servicios profesionales y de apoyo a la gestión, o para la ejecución de trabajos artísticos que sólo puedan encomendarse a determinadas personas naturales | H42: Prestacion de servicios de apoyo asistencial en el Área de Gestion del Desarrollo, Administrativa y Financiera del Fondo de Desarrollo Local de Antonio Nariño | I42: Inversión | J42: Un nuevo contrato social y ambiental para la Bogotá del Siglo XXI | K42: 57 | L42: =IF(ISERROR(VLOOKUP(K42,Proposito_programa!$C$2:$E$59,2,FALSE))," ",VLOOKUP(K42,Proposito_programa!$C$2:$E$59,2,FALSE)) -> Gestión pública local | M42: =IF(ISERROR(VLOOKUP(K42,Proposito_programa!$C$2:$E$59,3,FALSE))," ",VLOOKUP(K42,Proposito_programa!$C$2:$E$59,3,FALSE)) -> Propósito 5: Construir Bogotá - Región con gobierno abierto, transparente y ciudadanía consciente | N42: 2198 | O42: 1 | P42: 1023875489 | Q42: JORGE DIEGO ALBERTO VEGA POVEDA | R42: Persona Natural | W42: 11160000 | AA42: 11160000 | AB42: 11160000 | AC42: 2022-01-17 | AD42: 2022-01-18 | AE42: 2022-07-16 | AF42: 180 | AM42: En ejecución | AN42: 1
A43: 30 | B43: 2022 | C43: FDLANCD-030-2022(66793) | D43: https://community.secop.gov.co/Public/Tendering/OpportunityDetail/Index?noticeUID=CO1.NTC.2558255&isFromPublicArea=True&isModal=False | E43: Contratos de prestación de servicios profesionales y de apoyo a la gestión | F43: Contratación directa | G43: Prestación de servicios profesionales y de apoyo a la gestión, o para la ejecución de trabajos artísticos que sólo puedan encomendarse a determinadas personas naturales | H43: Prestación de servicios de apoyo a la gestión para la conducción de los vehículos que conforman el parque automotor en propiedad o custodia del Fondo de Desarrollo Local de Antonio Nariño, y el transporte de funcionarios y contratistas para la realización de las actividades misionales de la Alcaldía Local de Antonio Nariño | I43: Inversión | J43: Un nuevo contrato social y ambiental para la Bogotá del Siglo XXI | K43: 57 | L43: =IF(ISERROR(VLOOKUP(K43,Proposito_programa!$C$2:$E$59,2,FALSE))," ",VLOOKUP(K43,Proposito_programa!$C$2:$E$59,2,FALSE)) -> Gestión pública local | M43: =IF(ISERROR(VLOOKUP(K43,Proposito_programa!$C$2:$E$59,3,FALSE))," ",VLOOKUP(K43,Proposito_programa!$C$2:$E$59,3,FALSE)) -> Propósito 5: Construir Bogotá - Región con gobierno abierto, transparente y ciudadanía consciente | N43: 2198 | O43: 1 | P43: 79488817 | Q43: CARLOS MARTIN BOJACA TORRES | R43: Persona Natural | W43: 29997000 | Y43: 1 | Z43: 2727000 | AA43: 32724000 | AB43: 28633500 | AC43: 2022-01-14 | AD43: 2022-01-17 | AE43: 2023-01-15 | AF43: 330 | AG43: 1 | AH43: 30 | AM43: En ejecución | AN43: 0.875
A44: 31 | B44: 2022 | C44: FDLANCD-031-2022(67406) | D44: https://community.secop.gov.co/Public/Tendering/OpportunityDetail/Index?noticeUID=CO1.NTC.2560328&isFromPublicArea=True&isModal=False | E44: Contratos de prestación de servicios profesionales y de apoyo a la gestión | F44: Contratación directa | G44: Prestación de servicios profesionales y de apoyo a la gestión, o para la ejecución de trabajos artísticos que sólo puedan encomendarse a determinadas personas naturales | H44: Apoyar técnicamente las distintas etapas de los procesos de competencia de las Inspecciones de Policía de la Localidad, según reparto. | I44: Inversión | J44: Un nuevo contrato social y ambiental para la Bogotá del Siglo XXI | K44: 57 | L44: =IF(ISERROR(VLOOKUP(K44,Proposito_programa!$C$2:$E$59,2,FALSE))," ",VLOOKUP(K44,Proposito_programa!$C$2:$E$59,2,FALSE)) -> Gestión pública local | M44: =IF(ISERROR(VLOOKUP(K44,Proposito_programa!$C$2:$E$59,3,FALSE))," ",VLOOKUP(K44,Proposito_programa!$C$2:$E$59,3,FALSE)) -> Propósito 5: Construir Bogotá - Región con gobierno abierto, transparente y ciudadanía consciente | N44: 2198 | O44: 1 | P44: 5230855 | Q44: WILFREDO MUÑOZ ARAUJO | R44: Persona Natural | W44: 59400000 | AA44: 59400000 | AB44: 56700000 | AC44: 2022-01-14 | AD44: 2022-01-17 | AE44: 2022-12-15 | AF44: 330 | AM44: En ejecución | AN44: 0.9545454545
A45: 32 | B45: 2022 | C45: FDLANCD-032-2022(66852) | D45: https://community.secop.gov.co/Public/Tendering/OpportunityDetail/Index?noticeUID=CO1.NTC.2564288&isFromPublicArea=True&isModal=False | E45: Contratos de prestación de servicios profesionales y de apoyo a la gestión | F45: Contratación directa | G45: Prestación de servicios profesionales y de apoyo a la gestión, o para la ejecución de trabajos artísticos que sólo puedan encomendarse a determinadas personas naturales | H45: Apoyar al Alcalde (sa) Local en la promoción, acompañamiento, articulación y atención de las instancias de coordinación interinstitucionales y las instancias de participación locales, así como los procesos comunitarios en la localidad. | I45: Inversión | J45: Un nuevo contrato social y ambiental para la Bogotá del Siglo XXI | K45: 55 | L45: =IF(ISERROR(VLOOKUP(K45,Proposito_programa!$C$2:$E$59,2,FALSE))," ",VLOOKUP(K45,Proposito_programa!$C$2:$E$59,2,FALSE)) -> Fortalecimiento de cultura ciudadana y su institucionalidad | M45: =IF(ISERROR(VLOOKUP(K45,Proposito_programa!$C$2:$E$59,3,FALSE))," ",VLOOKUP(K45,Proposito_programa!$C$2:$E$59,3,FALSE)) -> Propósito 5: Construir Bogotá - Región con gobierno abierto, transparente y ciudadanía consciente | N45: 2190 | O45: 1 | P45: 1082896812 | Q45: ANGELA VANESSA ABELLA | R45: Persona Natural | W45: 27720000 | AA45: 27720000 | AB45: 27720000 | AC45: 2022-01-14 | AD45: 2022-01-17 | AE45: 2022-07-16 | AF45: 180 | AM45: En ejecución | AN45: 1
A46: 33 | B46: 2022 | C46: FDLANCD-033-2022(66801) | D46: https://community.secop.gov.co/Public/Tendering/OpportunityDetail/Index?noticeUID=CO1.NTC.2579578&isFromPublicArea=True&isModal=False | E46: Contratos de prestación de servicios profesionales y de apoyo a la gestión | F46: Contratación directa | G46: Prestación de servicios profesionales y de apoyo a la gestión, o para la ejecución de trabajos artísticos que sólo puedan encomendarse a determinadas personas naturales | H46: Prestar los servicios profesionales apoyando en la revisión y designación en los diferentes trámites relacionados con los procesos de selección de contratistas del Fondo de Desarrollo Local de Antonio Nariño | I46: Inversión | J46: Un nuevo contrato social y ambiental para la Bogotá del Siglo XXI | K46: 57 | L46: =IF(ISERROR(VLOOKUP(K46,Proposito_programa!$C$2:$E$59,2,FALSE))," ",VLOOKUP(K46,Proposito_programa!$C$2:$E$59,2,FALSE)) -> Gestión pública local | M46: =IF(ISERROR(VLOOKUP(K46,Proposito_programa!$C$2:$E$59,3,FALSE))," ",VLOOKUP(K46,Proposito_programa!$C$2:$E$59,3,FALSE)) -> Propósito 5: Construir Bogotá - Región con gobierno abierto, transparente y ciudadanía consciente | N46: 2198 | O46: 1 | P46: 1015449672 | Q46: JULIANA ANDREA PINILLOS SANCHEZ | R46: Persona Natural | W46: 77220000 | Y46: 1 | Z46: 7020000 | AA46: 84240000 | AB46: 73476000 | AC46: 2022-01-17 | AD46: 2022-01-18 | AE46: 2023-01-15 | AF46: 330 | AG46: 1 | AH46: 30 | AM46: En ejecución | AN46: 0.8722222222
A47: 34 | B47: 2022 | C47: FDLANCD-034-2022(67678) | D47: https://community.secop.gov.co/Public/Tendering/OpportunityDetail/Index?noticeUID=CO1.NTC.2650192&isFromPublicArea=True&isModal=False | E47: Contratos de prestación de servicios profesionales y de apoyo a la gestión | F47: Contratación directa | G47: Prestación de servicios profesionales y de apoyo a la gestión, o para la ejecución de trabajos artísticos que sólo puedan encomendarse a determinadas personas naturales | H47: Prestar servicios profesionales como abogado para apoyar al despacho del alcalde local de Antonio Nariño en los distintos aspectos jurídicos y de acompañamiento asociados con la inspección, vigilancia y control de la alcaldía local en materia de actividad económica, despachos comisorios, convivencia ciudadana y uso del espacio público de conformidad con la normatividad nacional, distrital y local vigente. | I47: Inversión | J47: Un nuevo contrato social y ambiental para la Bogotá del Siglo XXI | K47: 57 | L47: =IF(ISERROR(VLOOKUP(K47,Proposito_programa!$C$2:$E$59,2,FALSE))," ",VLOOKUP(K47,Proposito_programa!$C$2:$E$59,2,FALSE)) -> Gestión pública local | M47: =IF(ISERROR(VLOOKUP(K47,Proposito_programa!$C$2:$E$59,3,FALSE))," ",VLOOKUP(K47,Proposito_programa!$C$2:$E$59,3,FALSE)) -> Propósito 5: Construir Bogotá - Región con gobierno abierto, transparente y ciudadanía consciente | N47: 2198 | O47: 1 | P47: 65716349 | Q47: ERIKA ANDREA MACIAS CARDENAS | R47: Persona Natural | W47: 42318000 | AA47: =+W47+X47+Z47 -> 42318000 | AB47: 42318000 | AC47: 2022-01-21 | AD47: 2022-02-04 | AE47: 2022-08-05 | AF47: 180 | AM47: En ejecución | AN47: 1
A48: 35 | B48: 2022 | C48: FDLANCD-035-2022(66850) | D48: https://community.secop.gov.co/Public/Tendering/OpportunityDetail/Index?noticeUID=CO1.NTC.2581270&isFromPublicArea=True&isModal=False | E48: Contratos de prestación de servicios profesionales y de apoyo a la gestión | F48: Contratación directa | G48: Prestación de servicios profesionales y de apoyo a la gestión, o para la ejecución de trabajos artísticos que sólo puedan encomendarse a determinadas personas naturales | H48: Prestación de servicios profesionales como abogado para apoyar la estructuración, seguimiento y control de procesos contractuales que deriven del proyecto de inversión 2200 conforme a las Acciones de fomento y promoción de actividades en el campo deportivo del Fondo de Desarrollo Local de Antonio Nariño | I48: Inversión | J48: Un nuevo contrato social y ambiental para la Bogotá del Siglo XXI | K48: 20 | L48: =IF(ISERROR(VLOOKUP(K48,Proposito_programa!$C$2:$E$59,2,FALSE))," ",VLOOKUP(K48,Proposito_programa!$C$2:$E$59,2,FALSE)) -> Bogotá, referente en cultura, deporte, recreación y actividad física, con parques para el desarrollo y la salud | M48: =IF(ISERROR(VLOOKUP(K48,Proposito_programa!$C$2:$E$59,3,FALSE))," ",VLOOKUP(K48,Proposito_programa!$C$2:$E$59,3,FALSE)) -> Propósito 1: Hacer un nuevo contrato social para incrementar la inclusión social, productiva y política | N48: 2200 | O48: 1 | P48: 1019002889 | Q48: EFREY ARMANDO SANABRIA MORENO | R48: Persona Natural | W48: 32400000 | AA48: 32400000 | AB48: 32400000 | AC48: 2022-01-17 | AD48: 2022-01-18 | AE48: 2022-07-16 | AF48: 180 | AM48: En ejecución | AN48: 1
A49: 36 | B49: 2022 | C49: FDLANCD-036-2022(66837) | D49: https://community.secop.gov.co/Public/Tendering/OpportunityDetail/Index?noticeUID=CO1.NTC.2583308&isFromPublicArea=True&isModal=False | E49: Contratos de prestación de servicios profesionales y de apoyo a la gestión | F49: Contratación directa | G49: Prestación de servicios profesionales y de apoyo a la gestión, o para la ejecución de trabajos artísticos que sólo puedan encomendarse a determinadas personas naturales | H49: Prestación de servicios profesionales como abogado para apoyar la estructuración, seguimiento y control de procesos contractuales que deriven del proyecto de inversión 2048 conforme a las acciones de promoción para la educación de la localidad de Antonio Nariño. | I49: Inversión | J49: Un nuevo contrato social y ambiental para la Bogotá del Siglo XXI | K49: 17 | L49: =IF(ISERROR(VLOOKUP(K49,Proposito_programa!$C$2:$E$59,2,FALSE))," ",VLOOKUP(K49,Proposito_programa!$C$2:$E$59,2,FALSE)) -> Jóvenes con capacidades: Proyecto de vida para la ciudadanía, la innovación y el trabajo del siglo XXI | M49: =IF(ISERROR(VLOOKUP(K49,Proposito_programa!$C$2:$E$59,3,FALSE))," ",VLOOKUP(K49,Proposito_programa!$C$2:$E$59,3,FALSE)) -> Propósito 1: Hacer un nuevo contrato social para incrementar la inclusión social, productiva y política | N49: 2048 | O49: 1 | P49: 1072715196 | Q49: ANDRES FELIPE ROJAS GARZON | R49: Persona Natural | W49: 32400000 | AA49: 32400000 | AB49: 32400000 | AC49: 2022-01-17 | AD49: 2022-01-18 | AE49: 2022-07-16 | AF49: 180 | AM49: En ejecución | AN49: 1
A50: 37 | B50: 2022 | C50: FDLANCD-037-2022(67406) | D50: https://community.secop.gov.co/Public/Tendering/OpportunityDetail/Index?noticeUID=CO1.NTC.2590833&isFromPublicArea=True&isModal=False | E50: Contratos de prestación de servicios profesionales y de apoyo a la gestión | F50: Contratación directa | G50: Prestación de servicios profesionales y de apoyo a la gestión, o para la ejecución de trabajos artísticos que sólo puedan encomendarse a determinadas personas naturales | H50: Apoyar técnicamente las distintas etapas de los procesos de competencia de las Inspecciones de Policía de la Localidad, según reparto. | I50: Inversión | J50: Un nuevo contrato social y ambiental para la Bogotá del Siglo XXI | K50: 57 | L50: =IF(ISERROR(VLOOKUP(K50,Proposito_programa!$C$2:$E$59,2,FALSE))," ",VLOOKUP(K50,Proposito_programa!$C$2:$E$59,2,FALSE)) -> Gestión pública local | M50: =IF(ISERROR(VLOOKUP(K50,Proposito_programa!$C$2:$E$59,3,FALSE))," ",VLOOKUP(K50,Proposito_programa!$C$2:$E$59,3,FALSE)) -> Propósito 5: Construir Bogotá - Región con gobierno abierto, transparente y ciudadanía consciente | N50: 2198 | O50: 1 | P50: 1019047566 | Q50: LAURA ALEJANDRA MORENO MOLINA | R50: Persona Natural | W50: 59400000 | Y50: 1 | Z50: 5220000 | AA50: =+W50+X50+Z50 -> 64620000 | AB50: 56520000 | AC50: 2022-01-17 | AD50: 2022-01-18 | AE50: 2023-01-15 | AF50: 330 | AG50: 1 | AH50: 29 | AM50: En ejecución | AN50: 0.8746518106
A51: 38 | B51: 2022 | C51: FDLANCD-038-2022(67784) | D51: https://community.secop.gov.co/Public/Tendering/OpportunityDetail/Index?noticeUID=CO1.NTC.2590548&isFromPublicArea=True&isModal=False | E51: Contratos de prestación de servicios profesionales y de apoyo a la gestión | F51: Contratación directa | G51: Prestación de servicios profesionales y de apoyo a la gestión, o para la ejecución de trabajos artísticos que sólo puedan encomendarse a determinadas personas naturales | H51: Prestación de servicios profesionales para apoyar al área gestión del desarrollo, administrativa y financiera en el diligenciamiento de las actuaciones de los documentos técnicos de soporte y fichas de estadística básicas de inversión y elaboración de los documentos soporte necesarios para ejecutar los proyectos de inversión del fondo de desarrollo local de Antonio Nariño | I51: Inversión | J51: Un nuevo contrato social y ambiental para la Bogotá del Siglo XXI | K51: 57 | L51: =IF(ISERROR(VLOOKUP(K51,Proposito_programa!$C$2:$E$59,2,FALSE))," ",VLOOKUP(K51,Proposito_programa!$C$2:$E$59,2,FALSE)) -> Gestión pública local | M51: =IF(ISERROR(VLOOKUP(K51,Proposito_programa!$C$2:$E$59,3,FALSE))," ",VLOOKUP(K51,Proposito_programa!$C$2:$E$59,3,FALSE)) -> Propósito 5: Construir Bogotá - Región con gobierno abierto, transparente y ciudadanía consciente | N51: 2198 | O51: 1 | P51: 1016009101 | Q51: CRISTIAN ANDRÉS ALBARRACÍN MÁRQUEZ | R51: Persona Natural | W51: 27720000 | AA51: 27720000 | AB51: 27720000 | AC51: 2022-01-17 | AD51: 2022-01-18 | AE51: 2022-07-16 | AF51: 180 | AM51: En ejecución | AN51: 1
A52: 39 | B52: 2022 | C52: FDLANCD-039-2022(68134) | D52: https://community.secop.gov.co/Public/Tendering/OpportunityDetail/Index?noticeUID=CO1.NTC.2597530&isFromPublicArea=True&isModal=False | E52: Contratos de prestación de servicios profesionales y de apoyo a la gestión | F52: Contratación directa | G52: Prestación de servicios profesionales y de apoyo a la gestión, o para la ejecución de trabajos artísticos que sólo puedan encomendarse a determinadas personas naturales | H52: Prestar servicios de apoyo a la gestión al fondo de desarrollo local de Antonio Nariño en el seguimiento a los procesos con jóvenes, así como en los procesos de participación ciudadana en la localidad. | I52: Inversión | J52: Un nuevo contrato social y ambiental para la Bogotá del Siglo XXI | K52: 17 | L52: =IF(ISERROR(VLOOKUP(K52,Proposito_programa!$C$2:$E$59,2,FALSE))," ",VLOOKUP(K52,Proposito_programa!$C$2:$E$59,2,FALSE)) -> Jóvenes con capacidades: Proyecto de vida para la ciudadanía, la innovación y el trabajo del siglo XXI | M52: =IF(ISERROR(VLOOKUP(K52,Proposito_programa!$C$2:$E$59,3,FALSE))," ",VLOOKUP(K52,Proposito_programa!$C$2:$E$59,3,FALSE)) -> Propósito 1: Hacer un nuevo contrato social para incrementar la inclusión social, productiva y política | N52: 2199 | O52: 1 | P52: 1013632075 | Q52: JUAN SEBASTIAN MARIN MARIN | R52: Persona Natural | W52: 14760000 | AA52: 14760000 | AB52: 14760000 | AC52: 2022-01-18 | AD52: 2022-01-19 | AE52: 2022-07-17 | AF52: 180 | AM52: En ejecución | AN52: 1
A53: 40 | B53: 2022 | C53: FDLANCD-040-2022(67158) | D53: https://community.secop.gov.co/Public/Tendering/OpportunityDetail/Index?noticeUID=CO1.NTC.2598376&isFromPublicArea=True&isModal=False | E53: Contratos de prestación de servicios profesionales y de apoyo a la gestión | F53: Contratación directa | G53: Prestación de servicios profesionales y de apoyo a la gestión, o para la ejecución de trabajos artísticos que sólo puedan encomendarse a determinadas personas naturales | H53: Prestar los servicios de apoyo como técnico administrativo en el área de gestión de desarrollo del Fondo de Desarrollo Local de Antonio Nariño para los diferentes asuntos contractuales que adelanta la entidad. | I53: Inversión | J53: Un nuevo contrato social y ambiental para la Bogotá del Siglo XXI | K53: 57 | L53: =IF(ISERROR(VLOOKUP(K53,Proposito_programa!$C$2:$E$59,2,FALSE))," ",VLOOKUP(K53,Proposito_programa!$C$2:$E$59,2,FALSE)) -> Gestión pública local | M53: =IF(ISERROR(VLOOKUP(K53,Proposito_programa!$C$2:$E$59,3,FALSE))," ",VLOOKUP(K53,Proposito_programa!$C$2:$E$59,3,FALSE)) -> Propósito 5: Construir Bogotá - Región con gobierno abierto, transparente y ciudadanía consciente | N53: 2198 | O53: 1 | P53: 101422250 | Q53: SEBASTIAN FELIPE MERCHAN GIRALDO | R53: Persona Natural | W53: 16740000 | AA53: 16740000 | AB53: 14694000 | AC53: 2022-01-18 | AD53: 2022-01-24 | AE53: 2022-07-22 | AF53: 180 | AM53: En ejecución | AN53: 0.8777777778
A54: 41 | B54: 2022 | C54: FDLANCD-041-2022(67774) | D54: https://community.secop.gov.co/Public/Tendering/OpportunityDetail/Index?noticeUID=CO1.NTC.2595375&isFromPublicArea=True&isModal=False | E54: Contratos de prestación de servicios profesionales y de apoyo a la gestión | F54: Contratación directa | G54: Prestación de servicios profesionales y de apoyo a la gestión, o para la ejecución de trabajos artísticos que sólo puedan encomendarse a determinadas personas naturales | H54: Prestación de servicios de apoyo a la gestión para la conducción de los vehículos que conforman el parque automotor en propiedad o custodia del Fondo de Desarrollo Local de Antonio Nariño, y el transporte de funcionarios y contratistas para la realización de las actividades misionales de la Alcaldía Local de Antonio Nariño | I54: Inversión | J54: Un nuevo contrato social y ambiental para la Bogotá del Siglo XXI | K54: 57 | L54: =IF(ISERROR(VLOOKUP(K54,Proposito_programa!$C$2:$E$59,2,FALSE))," ",VLOOKUP(K54,Proposito_programa!$C$2:$E$59,2,FALSE)) -> Gestión pública local | M54: =IF(ISERROR(VLOOKUP(K54,Proposito_programa!$C$2:$E$59,3,FALSE))," ",VLOOKUP(K54,Proposito_programa!$C$2:$E$59,3,FALSE)) -> Propósito 5: Construir Bogotá - Región con gobierno abierto, transparente y ciudadanía consciente | N54: 2198 | O54: 1 | P54: 79392568 | Q54: HECTOR GIOVANNY AYALA RODRIGUEZ | R54: Persona Natural | W54: 14760000 | AA54: 14760000 | AB54: 14760000 | AC54: 2022-01-18 | AD54: 2022-01-19 | AE54: 2022-07-17 | AF54: 180 | AM54: En ejecución | AN54: 1
A55: 42 | B55: 2022 | C55: FDLANCD-042-2022(69866) | D55: https://community.secop.gov.co/Public/Tendering/OpportunityDetail/Index?noticeUID=CO1.NTC.2595183&isFromPublicArea=True&isModal=False | E55: Contratos de prestación de servicios profesionales y de apoyo a la gestión | F55: Contratación directa | G55: Prestación de servicios profesionales y de apoyo a la gestión, o para la ejecución de trabajos artísticos que sólo puedan encomendarse a determinadas personas naturales | H55: Prestación de servicios de apoyo a las actividades administrativas en cuanto a notificación de la correspondencia generada por el área de gestión del desarrollo, administrativa y financiera y área de gestión policiva de la Alcaldía de Antonio Nariño. | I55: Inversión | J55: Un nuevo contrato social y ambiental para la Bogotá del Siglo XXI | K55: 57 | L55: =IF(ISERROR(VLOOKUP(K55,Proposito_programa!$C$2:$E$59,2,FALSE))," ",VLOOKUP(K55,Proposito_programa!$C$2:$E$59,2,FALSE)) -> Gestión pública local | M55: =IF(ISERROR(VLOOKUP(K55,Proposito_programa!$C$2:$E$59,3,FALSE))," ",VLOOKUP(K55,Proposito_programa!$C$2:$E$59,3,FALSE)) -> Propósito 5: Construir Bogotá - Región con gobierno abierto, transparente y ciudadanía consciente | N55: 2198 | O55: 1 | P55: 71594128 | Q55: JHON JAIRO MORENO PANIAGUA | R55: Persona Natural | W55: 16200000 | AA55: 16200000 | AB55: 16200000 | AC55: 2022-01-18 | AD55: 2022-01-19 | AE55: 2022-07-17 | AF55: 180 | AM55: En ejecución | AN55: 1
A56: 43 | B56: 2022 | C56: FDLANCD-043-2022(66764) | D56: https://community.secop.gov.co/Public/Tendering/OpportunityDetail/Index?noticeUID=CO1.NTC.2602992&isFromPublicArea=True&isModal=False | E56: Contratos de prestación de servicios profesionales y de apoyo a la gestión | F56: Contratación directa | G56: Prestación de servicios profesionales y de apoyo a la gestión, o para la ejecución de trabajos artísticos que sólo puedan encomendarse a determinadas personas naturales | H56: Prestar servicios profesionales para apoyar al despacho de la Alcaldía Local de Antonio Nariño en la planeación, articulación, seguimiento, ejecución y fortalecimiento de las capacidades de la alcaldía local en el cumplimiento de las funciones de inspección, vigilancia y control aplicando la normatividad nacional, distrital y local vigente. | I56: Inversión | J56: Un nuevo contrato social y ambiental para la Bogotá del Siglo XXI | K56: 57 | L56: =IF(ISERROR(VLOOKUP(K56,Proposito_programa!$C$2:$E$59,2,FALSE))," ",VLOOKUP(K56,Proposito_programa!$C$2:$E$59,2,FALSE)) -> Gestión pública local | M56: =IF(ISERROR(VLOOKUP(K56,Proposito_programa!$C$2:$E$59,3,FALSE))," ",VLOOKUP(K56,Proposito_programa!$C$2:$E$59,3,FALSE)) -> Propósito 5: Construir Bogotá - Región con gobierno abierto, transparente y ciudadanía consciente | N56: 2189 | O56: 1 | P56: 87090158 | Q56: LUIS CARLOS ERIRA TUPAZ | R56: Persona Natural | W56: 105600000 | Y56: 1 | Z56: 8320000 | AA56: 113920000 | AB56: 99840000 | AC56: 2022-01-18 | AD56: 2022-01-20 | AE56: 2023-01-14 | AF56: 330 | AM56: En ejecución | AN56: 0.8764044944
A57: 44 | B57: 2022 | C57: FDLANCD-044-2022(67114) | D57: https://community.secop.gov.co/Public/Tendering/OpportunityDetail/Index?noticeUID=CO1.NTC.2599552&isFromPublicArea=True&isModal=False | E57: Contratos de prestación de servicios profesionales y de apoyo a la gestión | F57: Contratación directa | G57: Prestación de servicios profesionales y de apoyo a la gestión, o para la ejecución de trabajos artísticos que sólo puedan encomendarse a determinadas personas naturales | H57: Prestación de servicios de apoyo a la gestión al Despacho del Alcalde Local de Antonio Nariño en el manejo de los distintos asuntos y tramites asociados con la gestión administrativa local | I57: Inversión | J57: Un nuevo contrato social y ambiental para la Bogotá del Siglo XXI | K57: 57 | L57: =IF(ISERROR(VLOOKUP(K57,Proposito_programa!$C$2:$E$59,2,FALSE))," ",VLOOKUP(K57,Proposito_programa!$C$2:$E$59,2,FALSE)) -> Gestión pública local | M57: =IF(ISERROR(VLOOKUP(K57,Proposito_programa!$C$2:$E$59,3,FALSE))," ",VLOOKUP(K57,Proposito_programa!$C$2:$E$59,3,FALSE)) -> Propósito 5: Construir Bogotá - Región con gobierno abierto, transparente y ciudadanía consciente | N57: 2198 | O57: 1 | P57: 1070979522 | Q57: MARIA DANIELA MONTERO | R57: Persona Natural | W57: 14760000 | AA57: 14760000 | AB57: 14760000 | AC57: 2022-01-18 | AD57: 2022-01-20 | AE57: 2022-07-18 | AF57: 180 | AI57: 1053869262 | AJ57: MARIA DANIELA MONTERO DIAZ | AK57: 2022-06-01 | AL57: 14760000 | AM57: En ejecución | AN57: 1
A58: 45 | B58: 2022 | C58: FDLANCD-045-2022(67784) | D58: https://community.secop.gov.co/Public/Tendering/OpportunityDetail/Index?noticeUID=CO1.NTC.2599793&isFromPublicArea=True&isModal=False | E58: Contratos de prestación de servicios profesionales y de apoyo a la gestión | F58: Contratación directa | G58: Prestación de servicios profesionales y de apoyo a la gestión, o para la ejecución de trabajos artísticos que sólo puedan encomendarse a determinadas personas naturales | H58: Prestación de servicios profesionales para apoyar al área gestión del desarrollo, administrativa y financiera en el diligenciamiento de las actuaciones de los documentos técnicos de soporte y fichas de estadística básicas de inversión y elaboración de los documentos soporte necesarios para ejecutar los proyectos de inversión del fondo de desarrollo local de Antonio Nariño | I58: Inversión | J58: Un nuevo contrato social y ambiental para la Bogotá del Siglo XXI | K58: 57 | L58: =IF(ISERROR(VLOOKUP(K58,Proposito_programa!$C$2:$E$59,2,FALSE))," ",VLOOKUP(K58,Proposito_programa!$C$2:$E$59,2,FALSE)) -> Gestión pública local | M58: =IF(ISERROR(VLOOKUP(K58,Proposito_programa!$C$2:$E$59,3,FALSE))," ",VLOOKUP(K58,Proposito_programa!$C$2:$E$59,3,FALSE)) -> Propósito 5: Construir Bogotá - Región con gobierno abierto, transparente y ciudadanía consciente | N58: 2198 | O58: 1 | P58: 80252467 | Q58: MARIA FERNANDA GUARIN ROMERO | R58: Persona Natural | W58: 27720000 | AA58: 27720000 | AB58: 24332000 | AC58: 2022-01-18 | AD58: 2022-01-21 | AE58: 2022-07-19 | AF58: 180 | AI58: 80252467 | AJ58: JAIRO LEON VARGAS | AK58: 2022-05-03 | AL58: 27720000 | AM58: En ejecución | AN58: 0.8777777778
A59: 46 | B59: 2022 | C59: FDLANCD-046-2022(66978) | D59: https://community.secop.gov.co/Public/Tendering/OpportunityDetail/Index?noticeUID=CO1.NTC.2604016&isFromPublicArea=True&isModal=False | E59: Contratos de prestación de servicios profesionales y de apoyo a la gestión | F59: Contratación directa | G59: Prestación de servicios profesionales y de apoyo a la gestión, o para la ejecución de trabajos artísticos que sólo puedan encomendarse a determinadas personas naturales | H59: Prestacion de servicios profesionales al area de gestion de desarrollo local Antonio Nariño para apoyar la formulacion, socializacion y seguimiento de los programas y proyectos de inversion, relacionados con la infraestructura del fondo, necesarios para el cumplimiento del plan de desarrollo local. | I59: Inversión | J59: Un nuevo contrato social y ambiental para la Bogotá del Siglo XXI | K59: 33 | L59: =IF(ISERROR(VLOOKUP(K59,Proposito_programa!$C$2:$E$59,2,FALSE))," ",VLOOKUP(K59,Proposito_programa!$C$2:$E$59,2,FALSE)) -> Más árboles y más y mejor espacio público | M59: =IF(ISERROR(VLOOKUP(K59,Proposito_programa!$C$2:$E$59,3,FALSE))," ",VLOOKUP(K59,Proposito_programa!$C$2:$E$59,3,FALSE)) -> Propósito 2 : Cambiar Nuestros Hábitos de Vida para Reverdecer a Bogotá y Adaptarnos y Mitigar la Crisis Climática | N59: 2207 | O59: 1 | P59: 30204199 | Q59: ANA NICELY CASAS GERENA | R59: Persona Natural | W59: 27720000 | AA59: 27720000 | AB59: 27720000 | AC59: 2022-01-18 | AD59: 2022-01-19 | AE59: 2022-07-17 | AF59: 180 | AM59: En ejecución | AN59: 1
A60: 47 | B60: 2022 | C60: FDLANCD-047-2022(66692) | D60: https://community.secop.gov.co/Public/Tendering/OpportunityDetail/Index?noticeUID=CO1.NTC.2607498&isFromPublicArea=True&isModal=False | E60: Contratos de prestación de servicios profesionales y de apoyo a la gestión | F60: Contratación directa | G60: Prestación de servicios profesionales y de apoyo a la gestión, o para la ejecución de trabajos artísticos que sólo puedan encomendarse a determinadas personas naturales | H60: Apoyar técnicamente a los responsables e integrantes de los procesos en la implementación de herramientas de gestión, siguiendo los lineamientos metodológicos establecidos por la Oficina Asesora de Planeación de la Secretaría Distrital de Gobierno. | I60: Inversión | J60: Un nuevo contrato social y ambiental para la Bogotá del Siglo XXI | K60: 57 | L60: =IF(ISERROR(VLOOKUP(K60,Proposito_programa!$C$2:$E$59,2,FALSE))," ",VLOOKUP(K60,Proposito_programa!$C$2:$E$59,2,FALSE)) -> Gestión pública local | M60: =IF(ISERROR(VLOOKUP(K60,Proposito_programa!$C$2:$E$59,3,FALSE))," ",VLOOKUP(K60,Proposito_programa!$C$2:$E$59,3,FALSE)) -> Propósito 5: Construir Bogotá - Región con gobierno abierto, transparente y ciudadanía consciente | N60: 2198 | O60: 1 | P60: 52951852 | Q60: ANGELA FERNANDA DIAZ TORRES | R60: Persona Natural | W60: 32400000 | AA60: 32400000 | AB60: 29160000 | AC60: 2021-01-19 | AD60: 2022-01-20 | AE60: 2022-07-18 | AF60: 180 | AM60: En ejecución | AN60: 0.9
A61: 48 | B61: 2022 | C61: FDLANCD-048-2022(66818 ) | D61: https://community.secop.gov.co/Public/Tendering/OpportunityDetail/Index?noticeUID=CO1.NTC.2607573&isFromPublicArea=True&isModal=False | E61: Contratos de prestación de servicios profesionales y de apoyo a la gestión | F61: Contratación directa | G61: Prestación de servicios profesionales y de apoyo a la gestión, o para la ejecución de trabajos artísticos que sólo puedan encomendarse a determinadas personas naturales | H61: Prestar servicios de apoyo a la gestión del fondo de desarrollo local de Antonio Nariño en los asuntos operativos relacionados con la seguridad, la convivencia y el desarrollo de actividad económica en la localidad, con conformidad con el marco normativo aplicable en la materia. | I61: Inversión | J61: Un nuevo contrato social y ambiental para la Bogotá del Siglo XXI | K61: 57 | L61: =IF(ISERROR(VLOOKUP(K61,Proposito_programa!$C$2:$E$59,2,FALSE))," ",VLOOKUP(K61,Proposito_programa!$C$2:$E$59,2,FALSE)) -> Gestión pública local | M61: =IF(ISERROR(VLOOKUP(K61,Proposito_programa!$C$2:$E$59,3,FALSE))," ",VLOOKUP(K61,Proposito_programa!$C$2:$E$59,3,FALSE)) -> Propósito 5: Construir Bogotá - Región con gobierno abierto, transparente y ciudadanía consciente | N61: 2198 | O61: 1 | P61: 1013659896 | Q61: FELIPE ARANGO MORALES | R61: Persona Natural | W61: 19680000 | AA61: 19680000 | AB61: 19680000 | AC61: 2021-01-19 | AD61: 2022-01-20 | AE61: 2022-09-18 | AF61: 240 | AM61: En ejecución | AN61: 1
A62: 49 | B62: 2022 | C62: FDLANCD-049-2022(68249) | D62: https://community.secop.gov.co/Public/Tendering/OpportunityDetail/Index?noticeUID=CO1.NTC.2609975&isFromPublicArea=True&isModal=False | E62: Contratos de prestación de servicios profesionales y de apoyo a la gestión | F62: Contratación directa | G62: Prestación de servicios profesionales y de apoyo a la gestión, o para la ejecución de trabajos artísticos que sólo puedan encomendarse a determinadas personas naturales | H62: Prestar servicios de apoyo a la gestión al fondo de desarrollo local de Antonio Nariño en el acompañamiento a las actividades realizadas dentro de los procesos de participación local. | I62: Inversión | J62: Un nuevo contrato social y ambiental para la Bogotá del Siglo XXI | K62: 55 | L62: =IF(ISERROR(VLOOKUP(K62,Proposito_programa!$C$2:$E$59,2,FALSE))," ",VLOOKUP(K62,Proposito_programa!$C$2:$E$59,2,FALSE)) -> Fortalecimiento de cultura ciudadana y su institucionalidad | M62: =IF(ISERROR(VLOOKUP(K62,Proposito_programa!$C$2:$E$59,3,FALSE))," ",VLOOKUP(K62,Proposito_programa!$C$2:$E$59,3,FALSE)) -> Propósito 5: Construir Bogotá - Región con gobierno abierto, transparente y ciudadanía consciente | N62: 2190 | O62: 1 | P62: 1013590912 | Q62: JHON NUMAEL URREGO BELTRAN | R62: Persona Natural | W62: 14760000 | AA62: 14760000 | AB62: 14760000 | AC62: 2021-01-19 | AD62: 2022-01-20 | AE62: 2022-09-18 | AF62: 180 | AM62: En ejecución | AN62: 1
A63: 50 | B63: 2022 | C63: FDLANCD-050-2022(67706) | D63: https://community.secop.gov.co/Public/Tendering/OpportunityDetail/Index?noticeUID=CO1.NTC.2612169&isFromPublicArea=True&isModal=False | E63: Contratos de prestación de servicios profesionales y de apoyo a la gestión | F63: Contratación directa | G63: Prestación de servicios profesionales y de apoyo a la gestión, o para la ejecución de trabajos artísticos que sólo puedan encomendarse a determinadas personas naturales | H63: Prestar los servicios técnicos para la operación, seguimiento y cumplimiento de los procesos y procedimientos del servicio social apoyo económico Tipo C, requeridos para el oportuno y adecuado registro, cruce y reporte de los datos del sistema de información y registro de beneficiarios-SIRBE, que contribuyan a la garantía de los derechos de la población mayor en el marco de la política pública social para envejecimiento y la vejez en el Distrito Capital a cargo de la Alcaldía Local | I63: Inversión | J63: Un nuevo contrato social y ambiental para la Bogotá del Siglo XXI | K63: 1 | L63: =IF(ISERROR(VLOOKUP(K63,Proposito_programa!$C$2:$E$59,2,FALSE))," ",VLOOKUP(K63,Proposito_programa!$C$2:$E$59,2,FALSE)) -> Subsidios y transferencias para la equidad | M63: =IF(ISERROR(VLOOKUP(K63,Proposito_programa!$C$2:$E$59,3,FALSE))," ",VLOOKUP(K63,Proposito_programa!$C$2:$E$59,3,FALSE)) -> Propósito 1: Hacer un nuevo contrato social para incrementar la inclusión social, productiva y política | N63: 1851 | O63: 1 | P63: 1013690740 | Q63: SEBASTIAN EDUARDO BRAVO ZAFRA | R63: Persona Natural | W63: 20160000 | AA63: 20160000 | AB63: 20160000 | AC63: 2021-01-19 | AD63: 2022-01-21 | AE63: 2022-07-19 | AF63: 180 | AM63: En ejecución | AN63: 1
A64: 51 | B64: 2022 | C64: FDLANCD-051-2022(67709) | D64: https://community.secop.gov.co/Public/Tendering/OpportunityDetail/Index?noticeUID=CO1.NTC.2612161&isFromPublicArea=True&isModal=False | E64: Contratos de prestación de servicios profesionales y de apoyo a la gestión | F64: Contratación directa | G64: Prestación de servicios profesionales y de apoyo a la gestión, o para la ejecución de trabajos artísticos que sólo puedan encomendarse a determinadas personas naturales | H64: Prestar servicios profesionales, para apoyar la formulación, ejecución, supervisión, seguimiento cierre y/o liquidación de los procesos contractuales que den respuesta al proyecto de inversión de acciones para establecer acuerdos ciudadanos de la localidad de Antonio Nariño. | I64: Inversión | J64: Un nuevo contrato social y ambiental para la Bogotá del Siglo XXI | K64: 45 | L64: =IF(ISERROR(VLOOKUP(K64,Proposito_programa!$C$2:$E$59,2,FALSE))," ",VLOOKUP(K64,Proposito_programa!$C$2:$E$59,2,FALSE)) -> Espacio público más seguro y construido colectivamente | M64: =IF(ISERROR(VLOOKUP(K64,Proposito_programa!$C$2:$E$59,3,FALSE))," ",VLOOKUP(K64,Proposito_programa!$C$2:$E$59,3,FALSE)) -> Propósito 3: Inspirar confianza y legitimidad para vivir sin miedo y ser epicentro de cultura ciudadana, paz y reconciliación | N64: 2183 | O64: 1 | P64: 51966940 | Q64: ALEYRA CAPERA RODRIGUEZ | R64: Persona Natural | W64: 27720000 | AA64: 27720000 | AB64: 18172000 | AC64: 2021-01-19 | AD64: 2022-01-21 | AE64: 2022-07-19 | AF64: 180 | AI64: 51966940 | AJ64: ALEYRA CAPERA RODRIGUEZ | AK64: 2022-03-03 | AL64: 27720000 | AM64: En ejecución | AN64: 0.6555555556
A65: 52 | B65: 2022 | C65: FDLANCD-052-2022(67094) | D65: https://community.secop.gov.co/Public/Tendering/OpportunityDetail/Index?noticeUID=CO1.NTC.2612066&isFromPublicArea=True&isModal=False | E65: Contratos de prestación de servicios profesionales y de apoyo a la gestión | F65: Contratación directa | G65: Prestación de servicios profesionales y de apoyo a la gestión, o para la ejecución de trabajos artísticos que sólo puedan encomendarse a determinadas personas naturales | H65: Apoyar jurídicamente la ejecución de las acciones requeridas para el trámite e impulso procesal de las actuaciones contravencionales y/o querellas que cursen en las Inspecciones de Policía de la Localidad | I65: Inversión | J65: Un nuevo contrato social y ambiental para la Bogotá del Siglo XXI | K65: 57 | L65: =IF(ISERROR(VLOOKUP(K65,Proposito_programa!$C$2:$E$59,2,FALSE))," ",VLOOKUP(K65,Proposito_programa!$C$2:$E$59,2,FALSE)) -> Gestión pública local | M65: =IF(ISERROR(VLOOKUP(K65,Proposito_programa!$C$2:$E$59,3,FALSE))," ",VLOOKUP(K65,Proposito_programa!$C$2:$E$59,3,FALSE)) -> Propósito 5: Construir Bogotá - Región con gobierno abierto, transparente y ciudadanía consciente | N65: 2189 | O65: 1 | P65: 53029627 | Q65: JENNY PAOLA MENDIVELSO DUARTE | R65: Persona Natural | W65: 27720000 | AA65: 27720000 | AB65: 27720000 | AC65: 2021-01-19 | AD65: 2022-01-21 | AE65: 2022-07-19 | AF65: 180 | AM65: En ejecución | AN65: 1
A66: 53 | B66: 2022 | C66: FDLANCD-053-2022(68140) | D66: https://community.secop.gov.co/Public/Tendering/OpportunityDetail/Index?noticeUID=CO1.NTC.2612650&isFromPublicArea=True&isModal=False | E66: Contratos de prestación de servicios profesionales y de apoyo a la gestión | F66: Contratación directa | G66: Prestación de servicios profesionales y de apoyo a la gestión, o para la ejecución de trabajos artísticos que sólo puedan encomendarse a determinadas personas naturales | H66: Prestacion de servicios profesionales para la formulacion, definicion,socializacion y seguimiento de una propuesta integral de intervencion urbanistica en espacios y escenarios locales y su inclusion en los distintos planes, programas y proyectos de inversion.. | I66: Inversión | J66: Un nuevo contrato social y ambiental para la Bogotá del Siglo XXI | K66: 49 | L66: =IF(ISERROR(VLOOKUP(K66,Proposito_programa!$C$2:$E$59,2,FALSE))," ",VLOOKUP(K66,Proposito_programa!$C$2:$E$59,2,FALSE)) -> Movilidad segura, sostenible y accesible | M66: =IF(ISERROR(VLOOKUP(K66,Proposito_programa!$C$2:$E$59,3,FALSE))," ",VLOOKUP(K66,Proposito_programa!$C$2:$E$59,3,FALSE)) -> Propósito 4: Hacer de Bogotá Región un modelo de movilidad multimodal, incluyente y sostenible | N66: 2186 | O66: 1 | P66: 79600820 | Q66: JUAN ANTONIO ZAFRA | R66: Persona Natural | W66: 51840000 | Y66: 1 | Z66: 22032000 | AA66: 73872000 | AB66: 67392000 | AC66: 2021-01-19 | AD66: 2022-01-20 | AE66: 2022-12-31 | AF66: 240 | AG66: 1 | AH66: 102 | AM66: En ejecución | AN66: 0.9122807018
A67: 54 | B67: 2022 | C67: FDLANCD-054-2022(68140) | D67: https://community.secop.gov.co/Public/Tendering/OpportunityDetail/Index?noticeUID=CO1.NTC.2612934&isFromPublicArea=True&isModal=False | E67: Contratos de prestación de servicios profesionales y de apoyo a la gestión | F67: Contratación directa | G67: Prestación de servicios profesionales y de apoyo a la gestión, o para la ejecución de trabajos artísticos que sólo puedan encomendarse a determinadas personas naturales | H67: Prestacion de servicios profesionales para la formulacion, definicion,socializacion y seguimiento de una propuesta integral de intervencion urbanistica en espacios y escenarios locales y su inclusion en los distintos planes, programas y proyectos de inversion.. | I67: Inversión | J67: Un nuevo contrato social y ambiental para la Bogotá del Siglo XXI | K67: 49 | L67: =IF(ISERROR(VLOOKUP(K67,Proposito_programa!$C$2:$E$59,2,FALSE))," ",VLOOKUP(K67,Proposito_programa!$C$2:$E$59,2,FALSE)) -> Movilidad segura, sostenible y accesible | M67: =IF(ISERROR(VLOOKUP(K67,Proposito_programa!$C$2:$E$59,3,FALSE))," ",VLOOKUP(K67,Proposito_programa!$C$2:$E$59,3,FALSE)) -> Propósito 4: Hacer de Bogotá Región un modelo de movilidad multimodal, incluyente y sostenible | N67: 2186 | O67: 1 | P67: 1019067443 | Q67: JUAN CAMILO GALLEGO VIVES | R67: Persona Natural | W67: 51840000 | Y67: 1 | Z67: 22032000 | AA67: 73872000 | AB67: 67392000 | AC67: 2021-01-19 | AD67: 2022-01-20 | AE67: 2022-12-31 | AF67: 240 | AG67: 1 | AH67: 102 | AM67: En ejecución | AN67: 0.9122807018
A68: 55 | B68: 2022 | C68: FDLANCD-055-2022(68140) | D68: https://community.secop.gov.co/Public/Tendering/OpportunityDetail/Index?noticeUID=CO1.NTC.2613203&isFromPublicArea=True&isModal=False | E68: Contratos de prestación de servicios profesionales y de apoyo a la gestión | F68: Contratación directa | G68: Prestación de servicios profesionales y de apoyo a la gestión, o para la ejecución de trabajos artísticos que sólo puedan encomendarse a determinadas personas naturales | H68: Prestacion de servicios profesionales para la formulacion, definicion,socializacion y seguimiento de una propuesta integral de intervencion urbanistica en espacios y escenarios locales y su inclusion en los distintos planes, programas y proyectos de inversion.. | I68: Inversión | J68: Un nuevo contrato social y ambiental para la Bogotá del Siglo XXI | K68: 49 | L68: =IF(ISERROR(VLOOKUP(K68,Proposito_programa!$C$2:$E$59,2,FALSE))," ",VLOOKUP(K68,Proposito_programa!$C$2:$E$59,2,FALSE)) -> Movilidad segura, sostenible y accesible | M68: =IF(ISERROR(VLOOKUP(K68,Proposito_programa!$C$2:$E$59,3,FALSE))," ",VLOOKUP(K68,Proposito_programa!$C$2:$E$59,3,FALSE)) -> Propósito 4: Hacer de Bogotá Región un modelo de movilidad multimodal, incluyente y sostenible | N68: 2186 | O68: 1 | P68: 1013656467 | Q68: DAVID FELIPE GIRALDO | R68: Persona Natural | W68: 51840000 | Y68: 2 | Z68: =22032000+3240000 -> 25272000 | AA68: 77112000 | AB68: 67392000 | AC68: 2021-01-19 | AD68: 2022-01-20 | AE68: 2022-12-31 | AF68: 240 | AG68: 2 | AH68: 117 | AM68: En ejecución | AN68: 0.8739495798
A69: 56 | B69: 2022 | C69: FDLANCD-056-2022(68140) | D69: https://community.secop.gov.co/Public/Tendering/OpportunityDetail/Index?noticeUID=CO1.NTC.2613354&isFromPublicArea=True&isModal=False | E69: Contratos de prestación de servicios profesionales y de apoyo a la gestión | F69: Contratación directa | G69: Prestación de servicios profesionales y de apoyo a la gestión, o para la ejecución de trabajos artísticos que sólo puedan encomendarse a determinadas personas naturales | H69: Prestacion de servicios profesionales para la formulacion, definicion,socializacion y seguimiento de una propuesta integral de intervencion urbanistica en espacios y escenarios locales y su inclusion en los distintos planes, programas y proyectos de inversion.. | I69: Inversión | J69: Un nuevo contrato social y ambiental para la Bogotá del Siglo XXI | K69: 49 | L69: =IF(ISERROR(VLOOKUP(K69,Proposito_programa!$C$2:$E$59,2,FALSE))," ",VLOOKUP(K69,Proposito_programa!$C$2:$E$59,2,FALSE)) -> Movilidad segura, sostenible y accesible | M69: =IF(ISERROR(VLOOKUP(K69,Proposito_programa!$C$2:$E$59,3,FALSE))," ",VLOOKUP(K69,Proposito_programa!$C$2:$E$59,3,FALSE)) -> Propósito 4: Hacer de Bogotá Región un modelo de movilidad multimodal, incluyente y sostenible | N69: 2186 | O69: 1 | P69: 1026570525 | Q69: JUAN JOSE LONDOÑO | R69: Persona Natural | W69: 51840000 | Y69: 1 | Z69: 22032000 | AA69: 73872000 | AB69: 67392000 | AC69: 2021-01-19 | AD69: 2022-01-20 | AE69: 2022-12-31 | AF69: 240 | AG69: 1 | AH69: 102 | AM69: En ejecución | AN69: 0.9122807018
A70: 57 | B70: 2022 | C70: FDLANCD-057-2022(67781) | D70: https://community.secop.gov.co/Public/Tendering/OpportunityDetail/Index?noticeUID=CO1.NTC.2614727&isFromPublicArea=True&isModal=False | E70: Contratos de prestación de servicios profesionales y de apoyo a la gestión | F70: Contratación directa | G70: Prestación de servicios profesionales y de apoyo a la gestión, o para la ejecución de trabajos artísticos que sólo puedan encomendarse a determinadas personas naturales | H70: Prestar servicios profesionales, para apoyar la formulación, ejecución, supervisión, seguimiento cierre y/o liquidación de los procesos contractuales que den respuesta al proyecto de inversión de acciones integrales para la productividad y el emprendimiento de la localidad de Antonio Nariño. | I70: Inversión | J70: Un nuevo contrato social y ambiental para la Bogotá del Siglo XXI | K70: 6 | L70: =IF(ISERROR(VLOOKUP(K70,Proposito_programa!$C$2:$E$59,2,FALSE))," ",VLOOKUP(K70,Proposito_programa!$C$2:$E$59,2,FALSE)) -> Sistema Distrital de Cuidado | M70: =IF(ISERROR(VLOOKUP(K70,Proposito_programa!$C$2:$E$59,3,FALSE))," ",VLOOKUP(K70,Proposito_programa!$C$2:$E$59,3,FALSE)) -> Propósito 1: Hacer un nuevo contrato social para incrementar la inclusión social, productiva y política | N70: 2191 | O70: 1 | P70: 19378831 | Q70: JULIO ROBERTO FUENTES MURILLO | R70: Persona Natural | W70: 27720000 | AA70: 27720000 | AB70: 27720000 | AC70: 2021-01-19 | AD70: 2022-01-21 | AE70: 2022-07-19 | AF70: 180 | AM70: En ejecución | AN70: 1
A71: 58 | B71: 2022 | C71: FDLANCD-058-2022(67569) | D71: https://community.secop.gov.co/Public/Tendering/OpportunityDetail/Index?noticeUID=CO1.NTC.2619822&isFromPublicArea=True&isModal=False | E71: Contratos de prestación de servicios profesionales y de apoyo a la gestión | F71: Contratación directa | G71: Prestación de servicios profesionales y de apoyo a la gestión, o para la ejecución de trabajos artísticos que sólo puedan encomendarse a determinadas personas naturales | H71: Coordina, lidera y asesora los planes y estrategias de comunicación interna y externa para la divulgación de los programas, proyectos y actividades de la Alcaldía Local. | I71: Inversión | J71: Un nuevo contrato social y ambiental para la Bogotá del Siglo XXI | K71: 57 | L71: =IF(ISERROR(VLOOKUP(K71,Proposito_programa!$C$2:$E$59,2,FALSE))," ",VLOOKUP(K71,Proposito_programa!$C$2:$E$59,2,FALSE)) -> Gestión pública local | M71: =IF(ISERROR(VLOOKUP(K71,Proposito_programa!$C$2:$E$59,3,FALSE))," ",VLOOKUP(K71,Proposito_programa!$C$2:$E$59,3,FALSE)) -> Propósito 5: Construir Bogotá - Región con gobierno abierto, transparente y ciudadanía consciente | N71: 2198 | O71: 1 | P71: 83161135 | Q71: CARLOS HIGUITA VARGAS | R71: Persona Natural | W71: 42120000 | AA71: 42120000 | AB71: 42120000 | AC71: 2021-01-19 | AD71: 2022-01-21 | AE71: 2022-07-19 | AF71: 180 | AM71: En ejecución | AN71: 1
A72: 59 | B72: 2022 | C72: FDLANCD-059-2022(67406) | D72: https://community.secop.gov.co/Public/Tendering/OpportunityDetail/Index?noticeUID=CO1.NTC.2618379&isFromPublicArea=True&isModal=False | E72: Contratos de prestación de servicios profesionales y de apoyo a la gestión | F72: Contratación directa | G72: Prestación de servicios profesionales y de apoyo a la gestión, o para la ejecución de trabajos artísticos que sólo puedan encomendarse a determinadas personas naturales | H72: Apoyar técnicamente las distintas etapas de los procesos de competencia de las Inspecciones de Policía de la Localidad, según reparto. | I72: Inversión | J72: Un nuevo contrato social y ambiental para la Bogotá del Siglo XXI | K72: 57 | L72: =IF(ISERROR(VLOOKUP(K72,Proposito_programa!$C$2:$E$59,2,FALSE))," ",VLOOKUP(K72,Proposito_programa!$C$2:$E$59,2,FALSE)) -> Gestión pública local | M72: =IF(ISERROR(VLOOKUP(K72,Proposito_programa!$C$2:$E$59,3,FALSE))," ",VLOOKUP(K72,Proposito_programa!$C$2:$E$59,3,FALSE)) -> Propósito 5: Construir Bogotá - Región con gobierno abierto, transparente y ciudadanía consciente | N72: 2198 | O72: 1 | P72: 87070701 | Q72: DAVID GARCIA JIMENEZ | R72: Persona Natural | W72: 59400000 | AA72: 59400000 | AB72: 56160000 | AC72: 2021-01-19 | AD72: 2022-01-20 | AE72: 2022-12-18 | AF72: 330 | AM72: En ejecución | AN72: 0.9454545455
A73: 60 | B73: 2022 | C73: FDLANCD-060-2022(68805) | D73: https://community.secop.gov.co/Public/Tendering/OpportunityDetail/Index?noticeUID=CO1.NTC.2619369&isFromPublicArea=True&isModal=False | E73: Contratos de prestación de servicios profesionales y de apoyo a la gestión | F73: Contratación directa | G73: Prestación de servicios profesionales y de apoyo a la gestión, o para la ejecución de trabajos artísticos que sólo puedan encomendarse a determinadas personas naturales | H73: Prestación de servicios para apoyar la gestión y ejecución de actividades administrativas y operativas que se adelantan en el Área de Gestión del Desarrollo, Administrativa y Financiera de la Alcaldía Local de Antonio Nariño | I73: Inversión | J73: Un nuevo contrato social y ambiental para la Bogotá del Siglo XXI | K73: 57 | L73: =IF(ISERROR(VLOOKUP(K73,Proposito_programa!$C$2:$E$59,2,FALSE))," ",VLOOKUP(K73,Proposito_programa!$C$2:$E$59,2,FALSE)) -> Gestión pública local | M73: =IF(ISERROR(VLOOKUP(K73,Proposito_programa!$C$2:$E$59,3,FALSE))," ",VLOOKUP(K73,Proposito_programa!$C$2:$E$59,3,FALSE)) -> Propósito 5: Construir Bogotá - Región con gobierno abierto, transparente y ciudadanía consciente | N73: 2198 | O73: 1 | P73: 1022351156 | Q73: JHON FREDY ALVAREZ BARRERA | R73: Persona Natural | W73: 11160000 | AA73: 11160000 | AB73: 11160000 | AC73: 2021-01-19 | AD73: 2022-01-20 | AE73: 2022-07-18 | AF73: 180 | AM73: En ejecución | AN73: 1
A74: 61 | B74: 2022 | C74: FDLANCD-061-2022(69673) | D74: https://community.secop.gov.co/Public/Tendering/OpportunityDetail/Index?noticeUID=CO1.NTC.2627549&isFromPublicArea=True&isModal=False | E74: Contratos de prestación de servicios profesionales y de apoyo a la gestión | F74: Contratación directa | G74: Prestación de servicios profesionales y de apoyo a la gestión, o para la ejecución de trabajos artísticos que sólo puedan encomendarse a determinadas personas naturales | H74: Apoyar la formulación, gestión y seguimiento de actividades enfocadas a la gestión ambiental externa, encaminadas a la mitigación de los diferentes impactos ambientales y la conservación de los recursos naturales de la localidad | I74: Inversión | J74: Un nuevo contrato social y ambiental para la Bogotá del Siglo XXI | K74: 33 | L74: =IF(ISERROR(VLOOKUP(K74,Proposito_programa!$C$2:$E$59,2,FALSE))," ",VLOOKUP(K74,Proposito_programa!$C$2:$E$59,2,FALSE)) -> Más árboles y más y mejor espacio público | M74: =IF(ISERROR(VLOOKUP(K74,Proposito_programa!$C$2:$E$59,3,FALSE))," ",VLOOKUP(K74,Proposito_programa!$C$2:$E$59,3,FALSE)) -> Propósito 2 : Cambiar Nuestros Hábitos de Vida para Reverdecer a Bogotá y Adaptarnos y Mitigar la Crisis Climática | N74: 2206 | O74: 1 | P74: 1013636599 | Q74: MAYRA JIMENA WILCHES GONZALEZ | R74: Persona Natural | W74: 13860000 | AA74: 13860000 | AB74: 13860000 | AC74: 2022-01-20 | AD74: 2022-01-26 | AE74: 2022-07-24 | AF74: 180
A75: 61 | B75: 2022 | C75: FDLANCD-061-2022(69673) | D75: https://community.secop.gov.co/Public/Tendering/OpportunityDetail/Index?noticeUID=CO1.NTC.2627549&isFromPublicArea=True&isModal=False | E75: Contratos de prestación de servicios profesionales y de apoyo a la gestión | F75: Contratación directa | G75: Prestación de servicios profesionales y de apoyo a la gestión, o para la ejecución de trabajos artísticos que sólo puedan encomendarse a determinadas personas naturales | H75: Apoyar la formulación, gestión y seguimiento de actividades enfocadas a la gestión ambiental externa, encaminadas a la mitigación de los diferentes impactos ambientales y la conservación de los recursos naturales de la localidad | I75: Inversión | J75: Un nuevo contrato social y ambiental para la Bogotá del Siglo XXI | K75: 38 | L75: =IF(ISERROR(VLOOKUP(K75,Proposito_programa!$C$2:$E$59,2,FALSE))," ",VLOOKUP(K75,Proposito_programa!$C$2:$E$59,2,FALSE)) -> Ecoeficiencia, reciclaje, manejo de residuos e inclusión de la población recicladora | M75: =IF(ISERROR(VLOOKUP(K75,Proposito_programa!$C$2:$E$59,3,FALSE))," ",VLOOKUP(K75,Proposito_programa!$C$2:$E$59,3,FALSE)) -> Propósito 2 : Cambiar Nuestros Hábitos de Vida para Reverdecer a Bogotá y Adaptarnos y Mitigar la Crisis Climática | N75: 2210 | W75: 4620000 | AA75: =+W75+X75+Z75 -> 4620000 | AB75: 4620000
A76: 61 | B76: 2022 | C76: FDLANCD-061-2022(69673) | D76: https://community.secop.gov.co/Public/Tendering/OpportunityDetail/Index?noticeUID=CO1.NTC.2627549&isFromPublicArea=True&isModal=False | E76: Contratos de prestación de servicios profesionales y de apoyo a la gestión | F76: Contratación directa | G76: Prestación de servicios profesionales y de apoyo a la gestión, o para la ejecución de trabajos artísticos que sólo puedan encomendarse a determinadas personas naturales | H76: Apoyar la formulación, gestión y seguimiento de actividades enfocadas a la gestión ambiental externa, encaminadas a la mitigación de los diferentes impactos ambientales y la conservación de los recursos naturales de la localidad | I76: Inversión | J76: Un nuevo contrato social y ambiental para la Bogotá del Siglo XXI | K76: 27 | L76: Cambio cultural para la gestión de la crisis climática | M76: Propósito 2 : Cambiar Nuestros Hábitos de Vida para Reverdecer a Bogotá y Adaptarnos y Mitigar la Crisis Climática | N76: 2204 | W76: 4620000 | AA76: =+W76+X76+Z76 -> 4620000 | AB76: 4620000 | AC76: 2022-01-20 | AD76: 2022-01-26 | AE76: 2022-07-24 | AF76: 180
A77: 61 | B77: 2022 | C77: FDLANCD-061-2022(69673) | D77: https://community.secop.gov.co/Public/Tendering/OpportunityDetail/Index?noticeUID=CO1.NTC.2627549&isFromPublicArea=True&isModal=False | E77: Contratos de prestación de servicios profesionales y de apoyo a la gestión | F77: Contratación directa | G77: Prestación de servicios profesionales y de apoyo a la gestión, o para la ejecución de trabajos artísticos que sólo puedan encomendarse a determinadas personas naturales | H77: Apoyar la formulación, gestión y seguimiento de actividades enfocadas a la gestión ambiental externa, encaminadas a la mitigación de los diferentes impactos ambientales y la conservación de los recursos naturales de la localidad | I77: Inversión | J77: Un nuevo contrato social y ambiental para la Bogotá del Siglo XXI | K77: 24 | L77: =IF(ISERROR(VLOOKUP(K77,Proposito_programa!$C$2:$E$59,2,FALSE))," ",VLOOKUP(K77,Proposito_programa!$C$2:$E$59,2,FALSE)) -> Bogotá región emprendedora e innovadora | M77: =IF(ISERROR(VLOOKUP(K77,Proposito_programa!$C$2:$E$59,3,FALSE))," ",VLOOKUP(K77,Proposito_programa!$C$2:$E$59,3,FALSE)) -> Propósito 1: Hacer un nuevo contrato social para incrementar la inclusión social, productiva y política | N77: 2203 | O77: 1 | P77: 1013636599 | Q77: MAYRA JIMENA WILCHEZ GONZALEZ | R77: Persona Natural | W77: 4620000 | AA77: 4620000 | AB77: 4620000 | AC77: 2022-01-20 | AD77: 2022-01-26 | AE77: 2022-07-24 | AF77: 180 | AM77: En ejecución | AN77: 1
A78: 62 | B78: 2022 | C78: FDLANCD-062-2022(67828) | D78: https://community.secop.gov.co/Public/Tendering/OpportunityDetail/Index?noticeUID=CO1.NTC.2627329&isFromPublicArea=True&isModal=False | E78: Contratos de prestación de servicios profesionales y de apoyo a la gestión | F78: Contratación directa | G78: Prestación de servicios profesionales y de apoyo a la gestión, o para la ejecución de trabajos artísticos que sólo puedan encomendarse a determinadas personas naturales | H78: Prestar servicios de apoyo a las labores de caracter operacional y/o administrativas que se adelanten en el area de gestion de desarrollo local en el marco del desarrollo de los proyectos de infraestructura de la localidad de Antonio Nariño. | I78: Inversión | J78: Un nuevo contrato social y ambiental para la Bogotá del Siglo XXI | K78: 33 | L78: =IF(ISERROR(VLOOKUP(K78,Proposito_programa!$C$2:$E$59,2,FALSE))," ",VLOOKUP(K78,Proposito_programa!$C$2:$E$59,2,FALSE)) -> Más árboles y más y mejor espacio público | M78: =IF(ISERROR(VLOOKUP(K78,Proposito_programa!$C$2:$E$59,3,FALSE))," ",VLOOKUP(K78,Proposito_programa!$C$2:$E$59,3,FALSE)) -> Propósito 2 : Cambiar Nuestros Hábitos de Vida para Reverdecer a Bogotá y Adaptarnos y Mitigar la Crisis Climática | N78: 2207 | O78: 1 | P78: 1013633122 | Q78: JAIME PRIETO RUIZ | R78: Persona Natural | W78: 11160000 | AA78: 11160000 | AB78: 11160000 | AC78: 2022-01-20 | AD78: 2022-01-21 | AE78: 2022-07-19 | AF78: 180 | AM78: En ejecución | AN78: 1
A79: 63 | B79: 2022 | C79: FDLANCD-063-2022(66854) | D79: https://community.secop.gov.co/Public/Tendering/OpportunityDetail/Index?noticeUID=CO1.NTC.2633703&isFromPublicArea=True&isModal=False | E79: Contratos de prestación de servicios profesionales y de apoyo a la gestión | F79: Contratación directa | G79: Prestación de servicios profesionales y de apoyo a la gestión, o para la ejecución de trabajos artísticos que sólo puedan encomendarse a determinadas personas naturales | H79: Prestar los servicios profesionales como abogado en los diversos temas contractuales que requiera el área de gestión de desarrollo del Fondo de Desarrollo Local de Antonio Nariño. | I79: Inversión | J79: Un nuevo contrato social y ambiental para la Bogotá del Siglo XXI | K79: 57 | L79: =IF(ISERROR(VLOOKUP(K79,Proposito_programa!$C$2:$E$59,2,FALSE))," ",VLOOKUP(K79,Proposito_programa!$C$2:$E$59,2,FALSE)) -> Gestión pública local | M79: =IF(ISERROR(VLOOKUP(K79,Proposito_programa!$C$2:$E$59,3,FALSE))," ",VLOOKUP(K79,Proposito_programa!$C$2:$E$59,3,FALSE)) -> Propósito 5: Construir Bogotá - Región con gobierno abierto, transparente y ciudadanía consciente | N79: 2198 | O79: 1 | P79: 52231157 | Q79: OMAIRA HEREDIA CRUZ | R79: Persona Natural | W79: 66000000 | Y79: 1 | Z79: 2200000 | AA79: =+W79+X79+Z79 -> 68200000 | AB79: 62200000 | AC79: 2022-01-20 | AD79: 2022-01-21 | AE79: 2022-12-30 | AF79: 330 | AG79: 1 | AH79: 11 | AM79: En ejecución | AN79: 0.9120234604
A80: 64 | B80: 2022 | C80: FDLANCD-064-2022(67781) | D80: https://community.secop.gov.co/Public/Tendering/OpportunityDetail/Index?noticeUID=CO1.NTC.2627875&isFromPublicArea=True&isModal=False | E80: Contratos de prestación de servicios profesionales y de apoyo a la gestión | F80: Contratación directa | G80: Prestación de servicios profesionales y de apoyo a la gestión, o para la ejecución de trabajos artísticos que sólo puedan encomendarse a determinadas personas naturales | H80: Prestar servicios profesionales, para apoyar la formulación, ejecución, supervisión, seguimiento cierre y/o liquidación de los procesos contractuales que den respuesta al proyecto de inversión de acciones integrales para la productividad y el emprendimiento de la localidad de Antonio Nariño. | I80: Inversión | J80: Un nuevo contrato social y ambiental para la Bogotá del Siglo XXI | K80: 6 | L80: =IF(ISERROR(VLOOKUP(K80,Proposito_programa!$C$2:$E$59,2,FALSE))," ",VLOOKUP(K80,Proposito_programa!$C$2:$E$59,2,FALSE)) -> Sistema Distrital de Cuidado | M80: =IF(ISERROR(VLOOKUP(K80,Proposito_programa!$C$2:$E$59,3,FALSE))," ",VLOOKUP(K80,Proposito_programa!$C$2:$E$59,3,FALSE)) -> Propósito 1: Hacer un nuevo contrato social para incrementar la inclusión social, productiva y política | N80: 2191 | O80: 1 | P80: 87067788 | Q80: CARLOS HERNANDO CASTRO GUEVARA | R80: Persona Natural | W80: 27720000 | AA80: 27720000 | AB80: 27720000 | AC80: 2022-01-20 | AD80: 2022-01-24 | AE80: 2022-07-22 | AF80: 180 | AM80: En ejecución | AN80: 1
A81: 65 | B81: 2022 | C81: FDLANCD-065-2022(66978) | D81: https://community.secop.gov.co/Public/Tendering/OpportunityDetail/Index?noticeUID=CO1.NTC.2643860&isFromPublicArea=True&isModal=False | E81: Contratos de prestación de servicios profesionales y de apoyo a la gestión | F81: Contratación directa | G81: Prestación de servicios profesionales y de apoyo a la gestión, o para la ejecución de trabajos artísticos que sólo puedan encomendarse a determinadas personas naturales | H81: Prestacion de servicios profesionales al area de gestion de desarrollo local Antonio Nariño para apoyar la formulacion, socializacion y seguimiento de los programas y proyectos de inversion, relacionados con la infraestructura del fond, necesarios para el cumplimiento del plan de desarrollo local. | I81: Inversión | J81: Un nuevo contrato social y ambiental para la Bogotá del Siglo XXI | K81: 33 | L81: =IF(ISERROR(VLOOKUP(K81,Proposito_programa!$C$2:$E$59,2,FALSE))," ",VLOOKUP(K81,Proposito_programa!$C$2:$E$59,2,FALSE)) -> Más árboles y más y mejor espacio público | M81: =IF(ISERROR(VLOOKUP(K81,Proposito_programa!$C$2:$E$59,3,FALSE))," ",VLOOKUP(K81,Proposito_programa!$C$2:$E$59,3,FALSE)) -> Propósito 2 : Cambiar Nuestros Hábitos de Vida para Reverdecer a Bogotá y Adaptarnos y Mitigar la Crisis Climática | N81: 2207 | O81: 1 | P81: 1015471920 | Q81: VALENTINA ROCHA VEGA | R81: Persona Natural | W81: 27720000 | AA81: 27720000 | AB81: 27720000 | AC81: 2022-01-21 | AD81: 2022-01-24 | AE81: 2022-07-22 | AF81: 180 | AM81: En ejecución | AN81: 1
A82: 66 | B82: 2022 | C82: FDLANCD-066-2020(70779) | D82: https://community.secop.gov.co/Public/Tendering/OpportunityDetail/Index?noticeUID=CO1.NTC.2637827&isFromPublicArea=True&isModal=False | E82: Contratos de prestación de servicios profesionales y de apoyo a la gestión | F82: Contratación directa | G82: Prestación de servicios profesionales y de apoyo a la gestión, o para la ejecución de trabajos artísticos que sólo puedan encomendarse a determinadas personas naturales | H82: Prestar servicios de apoyo que adelanta el área de gestión local de Antonio Nariño para dar respuesta a derechos de petición y apoyo de trámites requeridos por las entidades distritales relacionado al proceso de planeación | I82: Inversión | J82: Un nuevo contrato social y ambiental para la Bogotá del Siglo XXI | K82: 55 | L82: =IF(ISERROR(VLOOKUP(K82,Proposito_programa!$C$2:$E$59,2,FALSE))," ",VLOOKUP(K82,Proposito_programa!$C$2:$E$59,2,FALSE)) -> Fortalecimiento de cultura ciudadana y su institucionalidad | M82: =IF(ISERROR(VLOOKUP(K82,Proposito_programa!$C$2:$E$59,3,FALSE))," ",VLOOKUP(K82,Proposito_programa!$C$2:$E$59,3,FALSE)) -> Propósito 5: Construir Bogotá - Región con gobierno abierto, transparente y ciudadanía consciente | N82: 2190 | O82: 1 | P82: 79352014 | Q82: JUAN PABLO ZAMBRANO | R82: Persona Natural | W82: 10080000 | AA82: 10080000 | AB82: 10080000 | AC82: 2022-01-20 | AD82: 2022-01-21 | AE82: 2022-07-19 | AF82: 180 | AM82: En ejecución | AN82: 1
A83: 67 | B83: 2022 | C83: FDLANCD-067-2022(68818) | D83: https://community.secop.gov.co/Public/Tendering/OpportunityDetail/Index?noticeUID=CO1.NTC.2637942&isFromPublicArea=True&isModal=False | E83: Contratos de prestación de servicios profesionales y de apoyo a la gestión | F83: Contratación directa | G83: Prestación de servicios profesionales y de apoyo a la gestión, o para la ejecución de trabajos artísticos que sólo puedan encomendarse a determinadas personas naturales | H83: Apoyar al (la) alcalde (sa) local en la promoción, articulación, acompañamiento y seguimiento para la atención y protección de los animales domésticos y silvestres de la localidad. | I83: Inversión | J83: Un nuevo contrato social y ambiental para la Bogotá del Siglo XXI | K83: 34 | L83: =IF(ISERROR(VLOOKUP(K83,Proposito_programa!$C$2:$E$59,2,FALSE))," ",VLOOKUP(K83,Proposito_programa!$C$2:$E$59,2,FALSE)) -> Bogotá protectora de los animales | M83: =IF(ISERROR(VLOOKUP(K83,Proposito_programa!$C$2:$E$59,3,FALSE))," ",VLOOKUP(K83,Proposito_programa!$C$2:$E$59,3,FALSE)) -> Propósito 2 : Cambiar Nuestros Hábitos de Vida para Reverdecer a Bogotá y Adaptarnos y Mitigar la Crisis Climática | N83: 2209 | O83: 1 | P83: 1085293465 | Q83: BRAYAN NICOLAS ACOSTA LUCERO | R83: Persona Natural | W83: 27720000 | AA83: 27720000 | AB83: 27720000 | AC83: 2022-01-20 | AD83: 2022-01-24 | AE83: 2022-07-22 | AF83: 180 | AI83: 1026583068 | AJ83: BRAYAN NICOLAS ACOSTA LUCERO | AK83: 2022-02-22 | AL83: 27720000 | AM83: En ejecución | AN83: =IF(ISERROR(AB83/AA83),"-",(AB83/AA83)) -> 1
A84: 68 | B84: 2022 | C84: FDLANCD-068-2022(67707) | D84: https://community.secop.gov.co/Public/Tendering/OpportunityDetail/Index?noticeUID=CO1.NTC.2644674&isFromPublicArea=True&isModal=False | E84: Contratos de prestación de servicios profesionales y de apoyo a la gestión | F84: Contratación directa | G84: Prestación de servicios profesionales y de apoyo a la gestión, o para la ejecución de trabajos artísticos que sólo puedan encomendarse a determinadas personas naturales | H84: PRESTACIÓN DE SERVICIOS PROFESIONALES PARA LA ADMINISTRACIÓN, DESARROLLO Y FORTALECIMIENTO DE LAS ACTIVIDADES CULTURALES Y ARTÍSTICAS QUE SE BRINDAN A LA COMUNIDAD EN EL TEATRO VILLA MAYOR DE LA LOCALIDAD ANTONIO NARIÑO | I84: Inversión | J84: Un nuevo contrato social y ambiental para la Bogotá del Siglo XXI | K84: 21 | L84: =IF(ISERROR(VLOOKUP(K84,Proposito_programa!$C$2:$E$59,2,FALSE))," ",VLOOKUP(K84,Proposito_programa!$C$2:$E$59,2,FALSE)) -> Creación y vida cotidiana: Apropiación ciudadana del arte, la cultura y el patrimonio, para la democracia cultural | M84: =IF(ISERROR(VLOOKUP(K84,Proposito_programa!$C$2:$E$59,3,FALSE))," ",VLOOKUP(K84,Proposito_programa!$C$2:$E$59,3,FALSE)) -> Propósito 1: Hacer un nuevo contrato social para incrementar la inclusión social, productiva y política | N84: 2201 | O84: 1 | P84: 80871795 | Q84: ALVARO ANDRES MARTINEZ CORONEL | R84: Persona Natural | W84: 40860000 | AA84: 40860000 | AB84: 40860000 | AC84: 2022-01-21 | AD84: 2022-02-01 | AE84: 2022-07-28 | AF84: 180 | AM84: En ejecución | AN84: 1
A85: 69 | B85: 2022 | C85: FDLANCD-069-2022(68723) | D85: https://community.secop.gov.co/Public/Tendering/OpportunityDetail/Index?noticeUID=CO1.NTC.2649276&isFromPublicArea=True&isModal=False | E85: Contratos de prestación de servicios profesionales y de apoyo a la gestión | F85: Contratación directa | G85: Prestación de servicios profesionales y de apoyo a la gestión, o para la ejecución de trabajos artísticos que sólo puedan encomendarse a determinadas personas naturales | H85: PRESTAR SERVICIOS PROFESIONALES COMO ABOGADO PARA APOYAR LOS DISTINTOS PROCEDIMIENTOS SANCIONATORIOS Y TRÁMITES ADMINISTRATIVOS QUE ADELANTA EL EQUIPO DE INSPECCIÓN, VIGILANCIA Y CONTROL DEL ÁREA DE GESTIÓN POLICIVA Y JURÍDICA DEL FONDO DE DESARROLLO LOCAL ANTONIO NARIÑO, CON OCASIÓN A LA INFRACCIÓN Y APLICACIÓN DE NORMAS POLICIVAS EN MATERIA DE PROTECCIÓN AL CONSUMIDOR, CONTROL DE CALIDAD, PRECIOS, PESAS Y MEDIDAS. | I85: Inversión | J85: Un nuevo contrato social y ambiental para la Bogotá del Siglo XXI | K85: 57 | L85: =IF(ISERROR(VLOOKUP(K85,Proposito_programa!$C$2:$E$59,2,FALSE))," ",VLOOKUP(K85,Proposito_programa!$C$2:$E$59,2,FALSE)) -> Gestión pública local | M85: =IF(ISERROR(VLOOKUP(K85,Proposito_programa!$C$2:$E$59,3,FALSE))," ",VLOOKUP(K85,Proposito_programa!$C$2:$E$59,3,FALSE)) -> Propósito 5: Construir Bogotá - Región con gobierno abierto, transparente y ciudadanía consciente | N85: 2189 | O85: 1 | P85: 1013631878 | Q85: ADRIANA KATTERINE HERRERA URIBE | R85: Persona Natural | W85: 27720000 | AA85: 27720000 | AB85: 27720000 | AC85: 2022-01-21 | AD85: 2022-01-25 | AE85: 2022-07-23 | AF85: 180 | AM85: En ejecución | AN85: 1
A86: 70 | B86: 2022 | C86: FDLANCD-070-2022(67161) | D86: https://community.secop.gov.co/Public/Tendering/OpportunityDetail/Index?noticeUID=CO1.NTC.2647125&isFromPublicArea=True&isModal=False | E86: Contratos de prestación de servicios profesionales y de apoyo a la gestión | F86: Contratación directa | G86: Prestación de servicios profesionales y de apoyo a la gestión, o para la ejecución de trabajos artísticos que sólo puedan encomendarse a determinadas personas naturales | H86: Prestación de servicios de apoyo en el manejo de sistemas de información en lo relacionado con la contratación que realiza el área de gestión de desarrollo del Fondo de Desarrollo Local de Antonio Nariño | I86: Inversión | J86: Un nuevo contrato social y ambiental para la Bogotá del Siglo XXI | K86: 57 | L86: =IF(ISERROR(VLOOKUP(K86,Proposito_programa!$C$2:$E$59,2,FALSE))," ",VLOOKUP(K86,Proposito_programa!$C$2:$E$59,2,FALSE)) -> Gestión pública local | M86: =IF(ISERROR(VLOOKUP(K86,Proposito_programa!$C$2:$E$59,3,FALSE))," ",VLOOKUP(K86,Proposito_programa!$C$2:$E$59,3,FALSE)) -> Propósito 5: Construir Bogotá - Región con gobierno abierto, transparente y ciudadanía consciente | N86: 2198 | O86: 1 | P86: 1032474556 | Q86: MARIA ALEJANDRA CASTRILLON CORREDOR | R86: Persona Natural | W86: 14760000 | AA86: 14760000 | AB86: 13120000 | AC86: 2022-01-21 | AD86: 2022-01-25 | AE86: 2022-07-23 | AF86: 180 | AI86: 1010203444 | AJ86: MARIA ALEJANDRA CASTRILLON CORREDOR | AK86: 2022-04-06 | AL86: 14760000 | AM86: En ejecución | AN86: 0.8888888889
A87: 71 | B87: 2022 | C87: FDLANCD-071-2022(68818) | D87: https://community.secop.gov.co/Public/Tendering/OpportunityDetail/Index?noticeUID=CO1.NTC.2653497&isFromPublicArea=True&isModal=False | E87: Contratos de prestación de servicios profesionales y de apoyo a la gestión | F87: Contratación directa | G87: Prestación de servicios profesionales y de apoyo a la gestión, o para la ejecución de trabajos artísticos que sólo puedan encomendarse a determinadas personas naturales | H87: Prestar servicios de apoyo a la gestión del fondo de desarrollo local de Antonio Nariño en los asuntos operativos relacionados con la seguridad, la convivencia y el desarrollo de actividad económica en la localidad, con conformidad con el marco normativo aplicable en la materia. | I87: Inversión | J87: Un nuevo contrato social y ambiental para la Bogotá del Siglo XXI | K87: 57 | L87: =IF(ISERROR(VLOOKUP(K87,Proposito_programa!$C$2:$E$59,2,FALSE))," ",VLOOKUP(K87,Proposito_programa!$C$2:$E$59,2,FALSE)) -> Gestión pública local | M87: =IF(ISERROR(VLOOKUP(K87,Proposito_programa!$C$2:$E$59,3,FALSE))," ",VLOOKUP(K87,Proposito_programa!$C$2:$E$59,3,FALSE)) -> Propósito 5: Construir Bogotá - Región con gobierno abierto, transparente y ciudadanía consciente | N87: 2198 | O87: 1 | P87: 19425371 | Q87: LIBARDO RUBEN CUELLAR BURGOS | R87: Persona Natural | W87: 19680000 | AA87: =+W87+X87+Z87 -> 19680000 | AB87: 19680000 | AC87: 2022-01-21 | AD87: 2022-01-24 | AE87: 2022-09-22 | AF87: 240 | AM87: En ejecución | AN87: 1
A88: 72 | B88: 2022 | C88: FDLANCD-072-2022(67094) | D88: https://community.secop.gov.co/Public/Tendering/OpportunityDetail/Index?noticeUID=CO1.NTC.2652304&isFromPublicArea=True&isModal=False | E88: Contratos de prestación de servicios profesionales y de apoyo a la gestión | F88: Contratación directa | G88: Prestación de servicios profesionales y de apoyo a la gestión, o para la ejecución de trabajos artísticos que sólo puedan encomendarse a determinadas personas naturales | H88: Apoyar jurídicamente la ejecución de las acciones requeridas para el trámite e impulso procesal de las actuaciones contravencionales y/o querellas que cursen en las Inspecciones de Policía de la Localidad | I88: Inversión | J88: Un nuevo contrato social y ambiental para la Bogotá del Siglo XXI | K88: 57 | L88: =IF(ISERROR(VLOOKUP(K88,Proposito_programa!$C$2:$E$59,2,FALSE))," ",VLOOKUP(K88,Proposito_programa!$C$2:$E$59,2,FALSE)) -> Gestión pública local | M88: =IF(ISERROR(VLOOKUP(K88,Proposito_programa!$C$2:$E$59,3,FALSE))," ",VLOOKUP(K88,Proposito_programa!$C$2:$E$59,3,FALSE)) -> Propósito 5: Construir Bogotá - Región con gobierno abierto, transparente y ciudadanía consciente | N88: 2189 | O88: 1 | P88: 64558733 | Q88: JARDIN IDALIS DIAZ PAYARES | R88: Persona Natural | W88: 27720000 | AA88: 27720000 | AB88: 19404000 | AC88: 2022-01-21 | AD88: 2022-01-26 | AE88: 2022-07-24 | AF88: 180 | AM88: En ejecución | AN88: 0.7
A89: 73 | B89: 2022 | C89: FDLNACD-073-2022(66818) | D89: https://community.secop.gov.co/Public/Tendering/OpportunityDetail/Index?noticeUID=CO1.NTC.2653339&isFromPublicArea=True&isModal=False | E89: Contratos de prestación de servicios profesionales y de apoyo a la gestión | F89: Contratación directa | G89: Prestación de servicios profesionales y de apoyo a la gestión, o para la ejecución de trabajos artísticos que sólo puedan encomendarse a determinadas personas naturales | H89: Prestar servicios de apoyo a la gestión del fondo de desarrollo local de Antonio Nariño en los asuntos operativos relacionados con la seguridad, la convivencia y el desarrollo de actividad económica en la localidad, con conformidad con el marco normativo aplicable en la materia. | I89: Inversión | J89: Un nuevo contrato social y ambiental para la Bogotá del Siglo XXI | K89: 57 | L89: =IF(ISERROR(VLOOKUP(K89,Proposito_programa!$C$2:$E$59,2,FALSE))," ",VLOOKUP(K89,Proposito_programa!$C$2:$E$59,2,FALSE)) -> Gestión pública local | M89: =IF(ISERROR(VLOOKUP(K89,Proposito_programa!$C$2:$E$59,3,FALSE))," ",VLOOKUP(K89,Proposito_programa!$C$2:$E$59,3,FALSE)) -> Propósito 5: Construir Bogotá - Región con gobierno abierto, transparente y ciudadanía consciente | N89: 2198 | O89: 1 | P89: 80920065 | Q89: DIEGO ALEJANDRO SILVA ZAPATA | R89: Persona Natural | W89: 19680000 | AA89: 19680000 | AB89: 18122000 | AC89: 2022-01-21 | AD89: 2022-02-16 | AE89: 2022-10-17 | AF89: 240 | AI89: 80920065 | AJ89: DIEGO ALEJANDRO SILVA | AK89: 2022-02-17 | AL89: $ 19.680.000 | AM89: En ejecución | AN89: 0.9208333333
A90: 74 | B90: 2022 | C90: FDLNACD-074-2022(68931) | D90: https://community.secop.gov.co/Public/Tendering/OpportunityDetail/Index?noticeUID=CO1.NTC.2653860&isFromPublicArea=True&isModal=False | E90: Contratos de prestación de servicios profesionales y de apoyo a la gestión | F90: Contratación directa | G90: Prestación de servicios profesionales y de apoyo a la gestión, o para la ejecución de trabajos artísticos que sólo puedan encomendarse a determinadas personas naturales | H90: Prestar servicios profesionales para coordinar la articulación, asistencia y acompañamiento de los procesos de planeación local, para la promoción de la participación de las mujeres y de la equidad de género, para materializar en la localidad las estrategias de territorialización y transversalización de la Política Publica de Mujeres y Equidad de género, PPMYEG. | I90: Inversión | J90: Un nuevo contrato social y ambiental para la Bogotá del Siglo XXI | K90: 40 | L90: =IF(ISERROR(VLOOKUP(K90,Proposito_programa!$C$2:$E$59,2,FALSE))," ",VLOOKUP(K90,Proposito_programa!$C$2:$E$59,2,FALSE)) -> Más mujeres viven una vida libre de violencias, se sienten seguras y acceden con confianza al sistema de justicia | M90: =IF(ISERROR(VLOOKUP(K90,Proposito_programa!$C$2:$E$59,3,FALSE))," ",VLOOKUP(K90,Proposito_programa!$C$2:$E$59,3,FALSE)) -> Propósito 3: Inspirar confianza y legitimidad para vivir sin miedo y ser epicentro de cultura ciudadana, paz y reconciliación | N90: 2197 | O90: 1 | P90: 1018438731 | Q90: YEISSON GERARDO SUA CAJAMARCA | R90: Persona Natural | W90: 32400000 | AA90: 32400000 | AB90: 30420000 | AC90: 2022-01-21 | AD90: 2022-01-24 | AE90: 2022-07-22 | AF90: 180 | AI90: 1018438731 | AJ90: YEISSON GERARDO SUA CAJAMARCA | AK90: 2022-05-03 | AL90: 32400000 | AM90: En ejecución | AN90: 0.9388888889
A91: 75 | B91: 2022 | C91: FDLNACD-075-2022(68723) | D91: https://community.secop.gov.co/Public/Tendering/OpportunityDetail/Index?noticeUID=CO1.NTC.2683822&isFromPublicArea=True&isModal=False | E91: Contratos de prestación de servicios profesionales y de apoyo a la gestión | F91: Contratación directa | G91: Prestación de servicios profesionales y de apoyo a la gestión, o para la ejecución de trabajos artísticos que sólo puedan encomendarse a determinadas personas naturales | H91: PRESTAR SERVICIOS PROFESIONALES COMO ABOGADO PARA APOYAR LOS DISTINTOS PROCEDIMIENTOS SANCIONATORIOS Y TRÁMITES ADMINISTRATIVOS QUE ADELANTA EL EQUIPO DE INSPECCIÓN, VIGILANCIA Y CONTROL DEL ÁREA DE GESTIÓN POLICIVA Y JURÍDICA DEL FONDO DE DESARROLLO LOCAL ANTONIO NARIÑO, CON OCASIÓN A LA INFRACCIÓN Y APLICACIÓN DE NORMAS POLICIVAS EN MATERIA DE PROTECCIÓN AL CONSUMIDOR, CONTROL DE CALIDAD, PRECIOS, PESAS Y MEDIDAS. | I91: Inversión | J91: Un nuevo contrato social y ambiental para la Bogotá del Siglo XXI | K91: 57 | L91: =IF(ISERROR(VLOOKUP(K91,Proposito_programa!$C$2:$E$59,2,FALSE))," ",VLOOKUP(K91,Proposito_programa!$C$2:$E$59,2,FALSE)) -> Gestión pública local | M91: =IF(ISERROR(VLOOKUP(K91,Proposito_programa!$C$2:$E$59,3,FALSE))," ",VLOOKUP(K91,Proposito_programa!$C$2:$E$59,3,FALSE)) -> Propósito 5: Construir Bogotá - Región con gobierno abierto, transparente y ciudadanía consciente | N91: 2189 | O91: 1 | P91: 1085300011 | Q91: JOHANA VANESSA ALVAREZ RODRIGUEZ | R91: Persona Natural | W91: 27720000 | AA91: 27720000 | AB91: 27720000 | AC91: 2022-01-24 | AD91: 2022-02-01 | AE91: 2022-07-31 | AF91: 180 | AM91: En ejecución | AN91: 1
A92: 76 | B92: 2022 | C92: FDLNACD-076-2022(68795) | D92: https://community.secop.gov.co/Public/Tendering/OpportunityDetail/Index?noticeUID=CO1.NTC.2683814&isFromPublicArea=True&isModal=False | E92: Contratos de prestación de servicios profesionales y de apoyo a la gestión | F92: Contratación directa | G92: Prestación de servicios profesionales y de apoyo a la gestión, o para la ejecución de trabajos artísticos que sólo puedan encomendarse a determinadas personas naturales | H92: Servicios profesionales para apoyar al alcalde de la Localidad Antonio Nariño en la implementación de mejoras a nivel medio ambientales y la gestión del riesgo. | I92: Inversión | J92: Un nuevo contrato social y ambiental para la Bogotá del Siglo XXI | K92: 30 | L92: Eficiencia en la atención de emergencias | M92: Propósito 2 : Cambiar Nuestros Hábitos de Vida para Reverdecer a Bogotá y Adaptarnos y Mitigar la Crisis Climática | N92: 2205 | O92: 1 | P92: 1018466952 | Q92: MARIA ALEJANDRA MORENO GIRALDO | R92: Persona Natural | W92: 43200000 | AA92: 43200000 | AB92: 43200000 | AC92: 2022-01-24 | AD92: 2022-02-01 | AE92: 2022-07-31 | AF92: 180
A93: 76 | B93: 2022 | C93: FDLNACD-076-2022(68795) | D93: https://community.secop.gov.co/Public/Tendering/OpportunityDetail/Index?noticeUID=CO1.NTC.2683814&isFromPublicArea=True&isModal=False | E93: Contratos de prestación de servicios profesionales y de apoyo a la gestión | F93: Contratación directa | G93: Prestación de servicios profesionales y de apoyo a la gestión, o para la ejecución de trabajos artísticos que sólo puedan encomendarse a determinadas personas naturales | H93: Servicios profesionales para apoyar al alcalde de la Localidad Antonio Nariño en la implementación de mejoras a nivel medio ambientales y la gestión del riesgo. | I93: Inversión | J93: Un nuevo contrato social y ambiental para la Bogotá del Siglo XXI | K93: 38 | L93: =IF(ISERROR(VLOOKUP(K93,Proposito_programa!$C$2:$E$59,2,FALSE))," ",VLOOKUP(K93,Proposito_programa!$C$2:$E$59,2,FALSE)) -> Ecoeficiencia, reciclaje, manejo de residuos e inclusión de la población recicladora | M93: =IF(ISERROR(VLOOKUP(K93,Proposito_programa!$C$2:$E$59,3,FALSE))," ",VLOOKUP(K93,Proposito_programa!$C$2:$E$59,3,FALSE)) -> Propósito 2 : Cambiar Nuestros Hábitos de Vida para Reverdecer a Bogotá y Adaptarnos y Mitigar la Crisis Climática | N93: 2210 | O93: 1 | P93: 1018466952 | Q93: MARIA ALEJANDRA MORENO GIRALDO | R93: Persona Natural | W93: 16200000 | AA93: 16200000 | AB93: 6660000 | AC93: 2022-01-24 | AD93: 2022-01-25 | AE93: 2022-12-23 | AF93: 330 | AM93: En ejecución | AN93: 0.4111111111
A94: 77 | B94: 2022 | C94: FDLNACD-077-2022(66854) | D94: https://community.secop.gov.co/Public/Tendering/OpportunityDetail/Index?noticeUID=CO1.NTC.2693463&isFromPublicArea=True&isModal=False | E94: Contratos de prestación de servicios profesionales y de apoyo a la gestión | F94: Contratación directa | G94: Prestación de servicios profesionales y de apoyo a la gestión, o para la ejecución de trabajos artísticos que sólo puedan encomendarse a determinadas personas naturales | H94: Prestar los servicios profesionales como abogado en los diversos temas contractuales que requiera el área de gestión de desarrollo del Fondo de Desarrollo Local de Antonio Nariño. | I94: Inversión | J94: Un nuevo contrato social y ambiental para la Bogotá del Siglo XXI | K94: 57 | L94: =IF(ISERROR(VLOOKUP(K94,Proposito_programa!$C$2:$E$59,2,FALSE))," ",VLOOKUP(K94,Proposito_programa!$C$2:$E$59,2,FALSE)) -> Gestión pública local | M94: =IF(ISERROR(VLOOKUP(K94,Proposito_programa!$C$2:$E$59,3,FALSE))," ",VLOOKUP(K94,Proposito_programa!$C$2:$E$59,3,FALSE)) -> Propósito 5: Construir Bogotá - Región con gobierno abierto, transparente y ciudadanía consciente | N94: 2198 | O94: 1 | P94: 1022363943 | Q94: MARIA NATALIA MARCILLO VELA | R94: Persona Natural | W94: 66000000 | Y94: 1 | Z94: 1400000 | AA94: 67400000 | AB94: 61400000 | AC94: 2022-01-24 | AD94: 2022-01-25 | AE94: 2022-12-30 | AF94: 330 | AM94: En ejecución | AN94: 0.9109792285
A95: 78 | B95: 2022 | C95: FDLNACD-078-2022(67771) | D95: https://community.secop.gov.co/Public/Tendering/OpportunityDetail/Index?noticeUID=CO1.NTC.2684240&isFromPublicArea=True&isModal=False | E95: Contratos de prestación de servicios profesionales y de apoyo a la gestión | F95: Contratación directa | G95: Prestación de servicios profesionales y de apoyo a la gestión, o para la ejecución de trabajos artísticos que sólo puedan encomendarse a determinadas personas naturales | H95: Prestar servicios profesionales, para apoyar la formulación, ejecución, supervisión, seguimiento cierre y/o liquidación de los procesos contractuales que den respuesta al proyecto de inversión de acciones para la construcción de memoria, verdad, reparación, víctimas, paz y reconciliación de la localidad de Antonio Nariño | I95: Inversión | J95: Un nuevo contrato social y ambiental para la Bogotá del Siglo XXI | K95: 39 | L95: =IF(ISERROR(VLOOKUP(K95,Proposito_programa!$C$2:$E$59,2,FALSE))," ",VLOOKUP(K95,Proposito_programa!$C$2:$E$59,2,FALSE)) -> Bogotá territorio de paz y atención integral a las víctimas del conflicto armado | M95: =IF(ISERROR(VLOOKUP(K95,Proposito_programa!$C$2:$E$59,3,FALSE))," ",VLOOKUP(K95,Proposito_programa!$C$2:$E$59,3,FALSE)) -> Propósito 3: Inspirar confianza y legitimidad para vivir sin miedo y ser epicentro de cultura ciudadana, paz y reconciliación | N95: 2165 | O95: 1 | P95: 1233897079 | Q95: CELESTE VALENTINA PESCADOR ALBA | R95: Persona Natural | W95: 27720000 | AA95: 27720000 | AB95: 27720000 | AC95: 2022-01-24 | AD95: 2022-01-25 | AE95: 2022-07-23 | AF95: 180 | AM95: En ejecución | AN95: 1
A96: 79 | B96: 2022 | C96: FDLNACD-079-2022(67792) | D96: https://community.secop.gov.co/Public/Tendering/OpportunityDetail/Index?noticeUID=CO1.NTC.2695308&isFromPublicArea=True&isModal=False | E96: Contratos de prestación de servicios profesionales y de apoyo a la gestión | F96: Contratación directa | G96: Prestación de servicios profesionales y de apoyo a la gestión, o para la ejecución de trabajos artísticos que sólo puedan encomendarse a determinadas personas naturales | H96: Prestar servicios profesionales al despacho del Alcalde local para el seguimiento de la gestión financiera del presupuesto del Plan de Desarrollo Local y el apoyo a las actividades inherentes al Modelo de Planeación y Gestión | I96: Inversión | J96: Un nuevo contrato social y ambiental para la Bogotá del Siglo XXI | K96: 57 | L96: =IF(ISERROR(VLOOKUP(K96,Proposito_programa!$C$2:$E$59,2,FALSE))," ",VLOOKUP(K96,Proposito_programa!$C$2:$E$59,2,FALSE)) -> Gestión pública local | M96: =IF(ISERROR(VLOOKUP(K96,Proposito_programa!$C$2:$E$59,3,FALSE))," ",VLOOKUP(K96,Proposito_programa!$C$2:$E$59,3,FALSE)) -> Propósito 5: Construir Bogotá - Región con gobierno abierto, transparente y ciudadanía consciente | N96: 2198 | O96: 1 | P96: 19244462 | Q96: MANUEL EDUARDO ROJAS GUZMAN | R96: Persona Natural | W96: 30600000 | AA96: 30600000 | AB96: 26350000 | AC96: 2022-01-24 | AD96: 2022-01-27 | AE96: 2022-07-25 | AF96: 180 | AI96: 19244462 | AJ96: MANUEL EDUARDO ROJAS GUZMAN | AK96: 2022-03-01 | AL96: 30600000 | AM96: En ejecución | AN96: 0.8611111111
A97: 80 | B97: 2022 | C97: FDLNACD-080-2022(67795) | D97: https://community.secop.gov.co/Public/Tendering/OpportunityDetail/Index?noticeUID=CO1.NTC.2695359&isFromPublicArea=True&isModal=False | E97: Contratos de prestación de servicios profesionales y de apoyo a la gestión | F97: Contratación directa | G97: Prestación de servicios profesionales y de apoyo a la gestión, o para la ejecución de trabajos artísticos que sólo puedan encomendarse a determinadas personas naturales | H97: PRESTACIÓN DE SERVICIOS PROFESIONALES PARA APOYAR AL ÁREA GESTIÓN DEL DESARROLLO, ADMINISTRATIVA Y FINANCIERA DE LA ALCALDÍA LOCAL EN LA ELABORACIÓN DE ESTUDIOS DEL SECTOR Y DEMÁS ACTIVIDADES FINANCIERAS Y PRESUPUESTALES NECESARIAS PARA LOS PROCESOS DE CONTRATACIÓN QUE ADELANTA EL FONDO DE DESARROLLO LOCAL DE ANTONIO NARIÑO | I97: Inversión | J97: Un nuevo contrato social y ambiental para la Bogotá del Siglo XXI | K97: 57 | L97: =IF(ISERROR(VLOOKUP(K97,Proposito_programa!$C$2:$E$59,2,FALSE))," ",VLOOKUP(K97,Proposito_programa!$C$2:$E$59,2,FALSE)) -> Gestión pública local | M97: =IF(ISERROR(VLOOKUP(K97,Proposito_programa!$C$2:$E$59,3,FALSE))," ",VLOOKUP(K97,Proposito_programa!$C$2:$E$59,3,FALSE)) -> Propósito 5: Construir Bogotá - Región con gobierno abierto, transparente y ciudadanía consciente | N97: 2198 | O97: 1 | P97: 79436634 | Q97: JAIME ARIAS GUZMAN | R97: Persona Natural | W97: 27720000 | AA97: 27720000 | AB97: 27720000 | AC97: 2022-01-24 | AD97: 2022-01-25 | AE97: 2022-07-23 | AF97: 180 | AM97: En ejecución | AN97: 1
A98: 81 | B98: 2022 | C98: FDLANCD-081-2022(66818) | D98: https://community.secop.gov.co/Public/Tendering/OpportunityDetail/Index?noticeUID=CO1.NTC.2693979&isFromPublicArea=True&isModal=False | E98: Contratos de prestación de servicios profesionales y de apoyo a la gestión | F98: Contratación directa | G98: Prestación de servicios profesionales y de apoyo a la gestión, o para la ejecución de trabajos artísticos que sólo puedan encomendarse a determinadas personas naturales | H98: Prestar servicios de apoyo a la gestión del fondo de desarrollo local de Antonio Nariño en los asuntos operativos relacionados con la seguridad, la convivencia y el desarrollo de actividad económica en la localidad, con conformidad con el marco normativo aplicable en la materia | I98: Inversión | J98: Un nuevo contrato social y ambiental para la Bogotá del Siglo XXI | K98: 57 | L98: =IF(ISERROR(VLOOKUP(K98,Proposito_programa!$C$2:$E$59,2,FALSE))," ",VLOOKUP(K98,Proposito_programa!$C$2:$E$59,2,FALSE)) -> Gestión pública local | M98: =IF(ISERROR(VLOOKUP(K98,Proposito_programa!$C$2:$E$59,3,FALSE))," ",VLOOKUP(K98,Proposito_programa!$C$2:$E$59,3,FALSE)) -> Propósito 5: Construir Bogotá - Región con gobierno abierto, transparente y ciudadanía consciente | N98: 2198 | O98: 1 | P98: 74327554 | Q98: WILLIAN ARMANDO VELA ULLOA | R98: Persona Natural | W98: 19680000 | AA98: 19680000 | AB98: 19680000 | AC98: 2022-01-24 | AD98: 2022-02-01 | AE98: 2022-09-30 | AF98: 240 | AM98: En ejecución | AN98: 1
A99: 82 | B99: 2022 | C99: FDLANCD-082-2022(66818) | D99: https://community.secop.gov.co/Public/Tendering/OpportunityDetail/Index?noticeUID=CO1.NTC.2704484&isFromPublicArea=True&isModal=False | E99: Contratos de prestación de servicios profesionales y de apoyo a la gestión | F99: Contratación directa | G99: Prestación de servicios profesionales y de apoyo a la gestión, o para la ejecución de trabajos artísticos que sólo puedan encomendarse a determinadas personas naturales | H99: Prestar servicios de apoyo a la gestión del fondo de desarrollo local de Antonio Nariño en los asuntos operativos relacionados con la seguridad, la convivencia y el desarrollo de actividad económica en la localidad, con conformidad con el marco normativo aplicable en la materia. | I99: Inversión | J99: Un nuevo contrato social y ambiental para la Bogotá del Siglo XXI | K99: 57 | L99: =IF(ISERROR(VLOOKUP(K99,Proposito_programa!$C$2:$E$59,2,FALSE))," ",VLOOKUP(K99,Proposito_programa!$C$2:$E$59,2,FALSE)) -> Gestión pública local | M99: =IF(ISERROR(VLOOKUP(K99,Proposito_programa!$C$2:$E$59,3,FALSE))," ",VLOOKUP(K99,Proposito_programa!$C$2:$E$59,3,FALSE)) -> Propósito 5: Construir Bogotá - Región con gobierno abierto, transparente y ciudadanía consciente | N99: 2198 | O99: 1 | P99: 19341321 | Q99: ALVARO AMARIS ROJAS | R99: Persona Natural | W99: 19680000 | AA99: 19680000 | AB99: 19680000 | AC99: 2022-01-25 | AD99: 2022-01-27 | AE99: 2022-09-25 | AF99: 240 | AM99: En ejecución | AN99: 1
A100: 83 | B100: 2022 | C100: FDLANCD-083-2022(70024) | D100: https://community.secop.gov.co/Public/Tendering/OpportunityDetail/Index?noticeUID=CO1.NTC.2724380&isFromPublicArea=True&isModal=False | E100: Contratos de prestación de servicios profesionales y de apoyo a la gestión | F100: Contratación directa | G100: Prestación de servicios profesionales y de apoyo a la gestión, o para la ejecución de trabajos artísticos que sólo puedan encomendarse a determinadas personas naturales | H100: PRESTAR SERVICIOS DE APOYO A LA ALCALDÍA LOCAL DE ANTONIO NARIÑO A LA GESTIÓN ADMINISTRATIVA DEL TEATRO VILLA MAYOR | I100: Inversión | J100: Un nuevo contrato social y ambiental para la Bogotá del Siglo XXI | K100: 21 | L100: =IF(ISERROR(VLOOKUP(K100,Proposito_programa!$C$2:$E$59,2,FALSE))," ",VLOOKUP(K100,Proposito_programa!$C$2:$E$59,2,FALSE)) -> Creación y vida cotidiana: Apropiación ciudadana del arte, la cultura y el patrimonio, para la democracia cultural | M100: =IF(ISERROR(VLOOKUP(K100,Proposito_programa!$C$2:$E$59,3,FALSE))," ",VLOOKUP(K100,Proposito_programa!$C$2:$E$59,3,FALSE)) -> Propósito 1: Hacer un nuevo contrato social para incrementar la inclusión social, productiva y política | N100: 2201 | O100: 1 | P100: 1143835530 | Q100: SARA JIMENEZ NIETO | R100: Persona Natural | W100: 14760000 | AA100: 14760000 | AB100: 14760000 | AC100: 2022-01-26 | AD100: 2022-02-02 | AE100: 2022-08-01 | AF100: 180 | AM100: En ejecución | AN100: 1
A101: 84 | B101: 2022 | C101: FDLANCD-084-2022(68249) | D101: https://community.secop.gov.co/Public/Tendering/OpportunityDetail/Index?noticeUID=CO1.NTC.2698845&isFromPublicArea=True&isModal=False | E101: Contratos de prestación de servicios profesionales y de apoyo a la gestión | F101: Contratación directa | G101: Prestación de servicios profesionales y de apoyo a la gestión, o para la ejecución de trabajos artísticos que sólo puedan encomendarse a determinadas personas naturales | H101: Prestar servicios de apoyo a la gestión al fondo de desarrollo local de Antonio Nariño en el acompañamiento a las actividades realizadas dentro de los procesos de participación local | I101: Inversión | J101: Un nuevo contrato social y ambiental para la Bogotá del Siglo XXI | K101: 55 | L101: =IF(ISERROR(VLOOKUP(K101,Proposito_programa!$C$2:$E$59,2,FALSE))," ",VLOOKUP(K101,Proposito_programa!$C$2:$E$59,2,FALSE)) -> Fortalecimiento de cultura ciudadana y su institucionalidad | M101: =IF(ISERROR(VLOOKUP(K101,Proposito_programa!$C$2:$E$59,3,FALSE))," ",VLOOKUP(K101,Proposito_programa!$C$2:$E$59,3,FALSE)) -> Propósito 5: Construir Bogotá - Región con gobierno abierto, transparente y ciudadanía consciente | N101: 2190 | O101: 1 | P101: 1013681550 | Q101: NORELLA DEL PILAR FLECHAS GUERRERO | R101: Persona Natural | W101: 14760000 | AA101: 14760000 | AB101: 14760000 | AC101: 2022-01-24 | AD101: 2022-01-27 | AE101: 2022-07-25 | AF101: 180 | AM101: En ejecución | AN101: 1
A102: 85 | B102: 2022 | C102: FDLANCD-085-2022(67473) | D102: https://community.secop.gov.co/Public/Tendering/OpportunityDetail/Index?noticeUID=CO1.NTC.2698456&isFromPublicArea=True&isModal=False | E102: Contratos de prestación de servicios profesionales y de apoyo a la gestión | F102: Contratación directa | G102: Prestación de servicios profesionales y de apoyo a la gestión, o para la ejecución de trabajos artísticos que sólo puedan encomendarse a determinadas personas naturales | H102: Prestar servicios de apoyo a la gestion en las labores asistenciales a las actividades relacionadas con la inspeccion, vigilancia y control que deba adelantar la alcaldia local en materia de actividad economica, despachos comisorios y convivencia ciudadana en la localidad. | I102: Inversión | J102: Un nuevo contrato social y ambiental para la Bogotá del Siglo XXI | K102: 57 | L102: =IF(ISERROR(VLOOKUP(K102,Proposito_programa!$C$2:$E$59,2,FALSE))," ",VLOOKUP(K102,Proposito_programa!$C$2:$E$59,2,FALSE)) -> Gestión pública local | M102: =IF(ISERROR(VLOOKUP(K102,Proposito_programa!$C$2:$E$59,3,FALSE))," ",VLOOKUP(K102,Proposito_programa!$C$2:$E$59,3,FALSE)) -> Propósito 5: Construir Bogotá - Región con gobierno abierto, transparente y ciudadanía consciente | N102: 2189 | O102: 1 | P102: 1069176392 | Q102: NATALY ACEVEDO BUITRAGO | R102: Persona Natural | W102: 14760000 | AA102: 14760000 | AB102: 14760000 | AC102: 2022-01-24 | AD102: 2022-01-27 | AE102: 2022-07-25 | AF102: 180 | AM102: En ejecución | AN102: 1
A103: 86 | B103: 2022 | C103: FDLANCD-086-2022(67789) | D103: https://community.secop.gov.co/Public/Tendering/OpportunityDetail/Index?noticeUID=CO1.NTC.2708750&isFromPublicArea=True&isModal=False | E103: Contratos de prestación de servicios profesionales y de apoyo a la gestión | F103: Contratación directa | G103: Prestación de servicios profesionales y de apoyo a la gestión, o para la ejecución de trabajos artísticos que sólo puedan encomendarse a determinadas personas naturales | H103: Prestar servicios profesionales, para apoyar la formulación, ejecución, supervisión,seguimiento cierre y/o liquidación de los procesos contractuales que den respuesta al proyecto de inversión relacionado con acciones de promoción para la educación superior de la localidad de Antonio Nariño. | I103: Inversión | J103: Un nuevo contrato social y ambiental para la Bogotá del Siglo XXI | K103: 17 | L103: =IF(ISERROR(VLOOKUP(K103,Proposito_programa!$C$2:$E$59,2,FALSE))," ",VLOOKUP(K103,Proposito_programa!$C$2:$E$59,2,FALSE)) -> Jóvenes con capacidades: Proyecto de vida para la ciudadanía, la innovación y el trabajo del siglo XXI | M103: =IF(ISERROR(VLOOKUP(K103,Proposito_programa!$C$2:$E$59,3,FALSE))," ",VLOOKUP(K103,Proposito_programa!$C$2:$E$59,3,FALSE)) -> Propósito 1: Hacer un nuevo contrato social para incrementar la inclusión social, productiva y política | N103: 2048 | O103: 1 | P103: 51826370 | Q103: MARTA YANET MORALES CASTILLO | R103: Persona Natural | W103: 27720000 | AA103: 27720000 | AB103: 27720000 | AC103: 2022-01-25 | AD103: 2022-02-01 | AE103: 2022-07-31 | AF103: 180 | AM103: En ejecución | AN103: 1
A104: 87 | B104: 2022 | C104: FDLANCD-087-2022(67114) | D104: https://community.secop.gov.co/Public/Tendering/OpportunityDetail/Index?noticeUID=CO1.NTC.2707022&isFromPublicArea=True&isModal=False | E104: Contratos de prestación de servicios profesionales y de apoyo a la gestión | F104: Contratación directa | G104: Prestación de servicios profesionales y de apoyo a la gestión, o para la ejecución de trabajos artísticos que sólo puedan encomendarse a determinadas personas naturales | H104: PRESTACIÓN DE SERVICIOS DE APOYO A LA GESTIÓN AL DESPACHO DEL ALCALDE LOCAL DE ANTONIO NARIÑO EN EL MANEJO DE LOS DISTINTOS ASUNTOS Y TRAMITES ASOCIADOS CON LA GESTIÓN ADMINISTRATIVA LOCAL. | I104: Inversión | J104: Un nuevo contrato social y ambiental para la Bogotá del Siglo XXI | K104: 57 | L104: =IF(ISERROR(VLOOKUP(K104,Proposito_programa!$C$2:$E$59,2,FALSE))," ",VLOOKUP(K104,Proposito_programa!$C$2:$E$59,2,FALSE)) -> Gestión pública local | M104: =IF(ISERROR(VLOOKUP(K104,Proposito_programa!$C$2:$E$59,3,FALSE))," ",VLOOKUP(K104,Proposito_programa!$C$2:$E$59,3,FALSE)) -> Propósito 5: Construir Bogotá - Región con gobierno abierto, transparente y ciudadanía consciente | N104: 2198 | O104: 1 | P104: 51953774 | Q104: AMPARO TORRES ESGUERRA | R104: Persona Natural | W104: 14760000 | AA104: 14760000 | AB104: 14760000 | AC104: 2022-01-25 | AD104: 2022-02-01 | AE104: 2022-07-31 | AF104: 180 | AM104: En ejecución | AN104: 1
A105: 88 | B105: 2022 | C105: FDLANCD-088-2022(67785) | D105: https://community.secop.gov.co/Public/Tendering/OpportunityDetail/Index?noticeUID=CO1.NTC.2705126&isFromPublicArea=True&isModal=False | E105: Contratos de prestación de servicios profesionales y de apoyo a la gestión | F105: Contratación directa | G105: Prestación de servicios profesionales y de apoyo a la gestión, o para la ejecución de trabajos artísticos que sólo puedan encomendarse a determinadas personas naturales | H105: Prestar servicios profesionales, para apoyar la formulación, ejecución, supervisión, seguimiento cierre y/o liquidación de los procesos contractuales que den respuesta al proyecto de inversión para acciones de fomento y promoción de actividades en el campo deportivo de la localidad de Antonio Nariño | I105: Inversión | J105: Un nuevo contrato social y ambiental para la Bogotá del Siglo XXI | K105: 20 | L105: =IF(ISERROR(VLOOKUP(K105,Proposito_programa!$C$2:$E$59,2,FALSE))," ",VLOOKUP(K105,Proposito_programa!$C$2:$E$59,2,FALSE)) -> Bogotá, referente en cultura, deporte, recreación y actividad física, con parques para el desarrollo y la salud | M105: =IF(ISERROR(VLOOKUP(K105,Proposito_programa!$C$2:$E$59,3,FALSE))," ",VLOOKUP(K105,Proposito_programa!$C$2:$E$59,3,FALSE)) -> Propósito 1: Hacer un nuevo contrato social para incrementar la inclusión social, productiva y política | N105: 2200 | O105: 1 | P105: 1013681219 | Q105: JENNIFFER ROJAS HERNANDEZ | R105: Persona Natural | W105: 27720000 | AA105: 27720000 | AB105: 27720000 | AC105: 2022-01-25 | AD105: 2022-01-26 | AE105: 2022-07-24 | AF105: 180 | AM105: En ejecución | AN105: 1
A106: 89 | B106: 2022 | C106: FDLANCD-089-2022(67774) | D106: https://community.secop.gov.co/Public/Tendering/OpportunityDetail/Index?noticeUID=CO1.NTC.2707241&isFromPublicArea=True&isModal=False | E106: Contratos de prestación de servicios profesionales y de apoyo a la gestión | F106: Contratación directa | G106: Prestación de servicios profesionales y de apoyo a la gestión, o para la ejecución de trabajos artísticos que sólo puedan encomendarse a determinadas personas naturales | H106: Prestación de servicios de apoyo a la gestión para la conducción de los vehículos que conforman el parque automotor en propiedad o custodia del Fondo de Desarrollo Local de Antonio Nariño, y el transporte de funcionarios y contratistas para la realización de las actividades misionales de la Alcaldía Local de Antonio Nariño | I106: Inversión | J106: Un nuevo contrato social y ambiental para la Bogotá del Siglo XXI | K106: 57 | L106: =IF(ISERROR(VLOOKUP(K106,Proposito_programa!$C$2:$E$59,2,FALSE))," ",VLOOKUP(K106,Proposito_programa!$C$2:$E$59,2,FALSE)) -> Gestión pública local | M106: =IF(ISERROR(VLOOKUP(K106,Proposito_programa!$C$2:$E$59,3,FALSE))," ",VLOOKUP(K106,Proposito_programa!$C$2:$E$59,3,FALSE)) -> Propósito 5: Construir Bogotá - Región con gobierno abierto, transparente y ciudadanía consciente | N106: 2198 | O106: 1 | P106: 1033752784 | Q106: ANDRES FELIPE ARIZA PANQUEBA | R106: Persona Natural | W106: 14760000 | AA106: 14760000 | AB106: 14760000 | AC106: 2022-01-25 | AD106: 2022-01-26 | AE106: 2022-07-24 | AF106: 180 | AI106: 1033752784 | AJ106: ANDRES FELIPE ARIZA PANQUEBA | AK106: 2022-03-01 | AL106: 14760000 | AM106: En ejecución | AN106: 1
A107: 90 | B107: 2022 | C107: FDLANCD-090-2022(67791) | D107: https://community.secop.gov.co/Public/Tendering/OpportunityDetail/Index?noticeUID=CO1.NTC.2705384&isFromPublicArea=True&isModal=False | E107: Contratos de prestación de servicios profesionales y de apoyo a la gestión | F107: Contratación directa | G107: Prestación de servicios profesionales y de apoyo a la gestión, o para la ejecución de trabajos artísticos que sólo puedan encomendarse a determinadas personas naturales | H107: Prestar servicios profesionales, para apoyar la formulación, ejecución, supervisión, seguimiento cierre y/o liquidación de los procesos contractuales que den respuesta al proyecto de inversión de acciones de fomento y fortalecimiento de procesos participativos de la localidad de Antonio Nariño. | I107: Inversión | J107: Un nuevo contrato social y ambiental para la Bogotá del Siglo XXI | K107: 55 | L107: =IF(ISERROR(VLOOKUP(K107,Proposito_programa!$C$2:$E$59,2,FALSE))," ",VLOOKUP(K107,Proposito_programa!$C$2:$E$59,2,FALSE)) -> Fortalecimiento de cultura ciudadana y su institucionalidad | M107: =IF(ISERROR(VLOOKUP(K107,Proposito_programa!$C$2:$E$59,3,FALSE))," ",VLOOKUP(K107,Proposito_programa!$C$2:$E$59,3,FALSE)) -> Propósito 5: Construir Bogotá - Región con gobierno abierto, transparente y ciudadanía consciente | N107: 2190 | O107: 1 | P107: 1070979522 | Q107: SERGIO NICOLAS POVEDA LEON | R107: Persona Natural | W107: 27720000 | AA107: 27720000 | AB107: 22330000 | AC107: 2022-01-25 | AD107: 2022-01-27 | AE107: 2022-09-30 | AF107: 180 | AI107: 1070979522 | AJ107: SERGIO NICOLÁS POVEDA LEÓN | AK107: 11/07/20222 | AL107: $ 27.720.000 | AM107: En ejecución | AN107: 0.8055555556
A108: 91 | B108: 2022 | C108: FDLANCD-091-2022(69423) | D108: https://community.secop.gov.co/Public/Tendering/OpportunityDetail/Index?noticeUID=CO1.NTC.2795109&isFromPublicArea=True&isModal=False | E108: Contratos de prestación de servicios profesionales y de apoyo a la gestión | F108: Contratación directa | G108: Prestación de servicios profesionales y de apoyo a la gestión, o para la ejecución de trabajos artísticos que sólo puedan encomendarse a determinadas personas naturales | H108: Apoyar y dar soporte técnico al administrador y usuario final de la red de sistemas y tecnología e información de la Alcaldía Local | I108: Inversión | J108: Un nuevo contrato social y ambiental para la Bogotá del Siglo XXI | K108: 57 | L108: =IF(ISERROR(VLOOKUP(K108,Proposito_programa!$C$2:$E$59,2,FALSE))," ",VLOOKUP(K108,Proposito_programa!$C$2:$E$59,2,FALSE)) -> Gestión pública local | M108: =IF(ISERROR(VLOOKUP(K108,Proposito_programa!$C$2:$E$59,3,FALSE))," ",VLOOKUP(K108,Proposito_programa!$C$2:$E$59,3,FALSE)) -> Propósito 5: Construir Bogotá - Región con gobierno abierto, transparente y ciudadanía consciente | N108: 2198 | O108: 1 | P108: 1000136904 | Q108: YEORGETH SUSANA RUBIANO CRISTIANO | R108: Persona Natural | W108: 16740000 | AA108: 16740000 | AB108: 16740000 | AC108: 2022-01-28 | AD108: 2022-02-08 | AE108: 2022-08-09 | AF108: 180 | AM108: En ejecución | AN108: 1
A109: 92 | B109: 2022 | C109: FDLANCD-092-2022(69794) | D109: https://community.secop.gov.co/Public/Tendering/OpportunityDetail/Index?noticeUID=CO1.NTC.2709177&isFromPublicArea=True&isModal=False | E109: Contratos de prestación de servicios profesionales y de apoyo a la gestión | F109: Contratación directa | G109: Prestación de servicios profesionales y de apoyo a la gestión, o para la ejecución de trabajos artísticos que sólo puedan encomendarse a determinadas personas naturales | H109: PRESTACION DE SERVICIOS DE APOYO A LA GESTION COMO AUXILAR PARA LA TRANSCRIPCION DE LAS ACTAS QUE EXPIDA LA JUNTA ADMINISTRADORA LOCAL DE ANTONIO NARIÑO | I109: Inversión | J109: Un nuevo contrato social y ambiental para la Bogotá del Siglo XXI | K109: 57 | L109: =IF(ISERROR(VLOOKUP(K109,Proposito_programa!$C$2:$E$59,2,FALSE))," ",VLOOKUP(K109,Proposito_programa!$C$2:$E$59,2,FALSE)) -> Gestión pública local | M109: =IF(ISERROR(VLOOKUP(K109,Proposito_programa!$C$2:$E$59,3,FALSE))," ",VLOOKUP(K109,Proposito_programa!$C$2:$E$59,3,FALSE)) -> Propósito 5: Construir Bogotá - Región con gobierno abierto, transparente y ciudadanía consciente | N109: 2198 | O109: 1 | P109: 1018511981 | Q109: LEIDY DAYANNA RODRIGUEZ | R109: Persona Natural | W109: 14760000 | AA109: 14760000 | AB109: 14760000 | AC109: 2022-01-25 | AD109: 2022-01-26 | AE109: 2022-07-24 | AF109: 180 | AM109: En ejecución | AN109: 1
A110: 93 | B110: 2022 | C110: FDLANCD-093-2022(67730) | D110: https://community.secop.gov.co/Public/Tendering/OpportunityDetail/Index?noticeUID=CO1.NTC.2709355&isFromPublicArea=True&isModal=False | E110: Contratos de prestación de servicios profesionales y de apoyo a la gestión | F110: Contratación directa | G110: Prestación de servicios profesionales y de apoyo a la gestión, o para la ejecución de trabajos artísticos que sólo puedan encomendarse a determinadas personas naturales | H110: Apoya el cubrimiento de las actividades, cronogramas y agenda de la Alcaldía local a nivel interno y externo, así como la generación de contenidos periodísticos | I110: Inversión | J110: Un nuevo contrato social y ambiental para la Bogotá del Siglo XXI | K110: 57 | L110: =IF(ISERROR(VLOOKUP(K110,Proposito_programa!$C$2:$E$59,2,FALSE))," ",VLOOKUP(K110,Proposito_programa!$C$2:$E$59,2,FALSE)) -> Gestión pública local | M110: =IF(ISERROR(VLOOKUP(K110,Proposito_programa!$C$2:$E$59,3,FALSE))," ",VLOOKUP(K110,Proposito_programa!$C$2:$E$59,3,FALSE)) -> Propósito 5: Construir Bogotá - Región con gobierno abierto, transparente y ciudadanía consciente | N110: 2198 | O110: 1 | P110: 52103693 | Q110: MARIA CONSUELO BELTRAN BURGOS | R110: Persona Natural | W110: 31032000 | AA110: 31032000 | AB110: 31032000 | AC110: 2022-01-25 | AD110: 2022-01-27 | AE110: 2022-07-25 | AF110: 180 | AM110: En ejecución | AN110: 1
A111: 94 | B111: 2022 | C111: FDLANCD-094-2022(66818) | D111: https://community.secop.gov.co/Public/Tendering/OpportunityDetail/Index?noticeUID=CO1.NTC.2715050&isFromPublicArea=True&isModal=False | E111: Contratos de prestación de servicios profesionales y de apoyo a la gestión | F111: Contratación directa | G111: Prestación de servicios profesionales y de apoyo a la gestión, o para la ejecución de trabajos artísticos que sólo puedan encomendarse a determinadas personas naturales | H111: Prestar servicios de apoyo a la gestión del fondo de desarrollo local de Antonio Nariño en los asuntos operativos relacionados con la seguridad, la convivencia y el desarrollo de actividad económica en la localidad, con conformidad con el marco normativo aplicable en la materia | I111: Inversión | J111: Un nuevo contrato social y ambiental para la Bogotá del Siglo XXI | K111: 57 | L111: =IF(ISERROR(VLOOKUP(K111,Proposito_programa!$C$2:$E$59,2,FALSE))," ",VLOOKUP(K111,Proposito_programa!$C$2:$E$59,2,FALSE)) -> Gestión pública local | M111: =IF(ISERROR(VLOOKUP(K111,Proposito_programa!$C$2:$E$59,3,FALSE))," ",VLOOKUP(K111,Proposito_programa!$C$2:$E$59,3,FALSE)) -> Propósito 5: Construir Bogotá - Región con gobierno abierto, transparente y ciudadanía consciente | N111: 2198 | O111: 1 | P111: 51876386 | Q111: CLAUDIA IOMARA AYALA BELTRAN | R111: Persona Natural | W111: 19680000 | AA111: 19680000 | AB111: 19680000 | AC111: 2022-01-25 | AD111: 2022-02-01 | AE111: 2022-09-30 | AF111: 240 | AM111: En ejecución | AN111: 1
A112: 95 | B112: 2022 | C112: FDLANCD-095-2022(67795) | D112: https://community.secop.gov.co/Public/Tendering/OpportunityDetail/Index?noticeUID=CO1.NTC.2724669&isFromPublicArea=True&isModal=False | E112: Contratos de prestación de servicios profesionales y de apoyo a la gestión | F112: Contratación directa | G112: Prestación de servicios profesionales y de apoyo a la gestión, o para la ejecución de trabajos artísticos que sólo puedan encomendarse a determinadas personas naturales | H112: PRESTACIÓN DE SERVICIOS PROFESIONALES PARA APOYAR AL ÁREA GESTIÓN DEL DESARROLLO, ADMINISTRATIVA Y FINANCIERA DE LA ALCALDÍA LOCAL EN LA ELABORACIÓN DE ESTUDIOS DEL SECTOR Y DEMÁS ACTIVIDADES FINANCIERAS Y PRESUPUESTALES NECESARIAS PARA LOS PROCESOS DE CONTRATACIÓN QUE ADELANTA EL FONDO DE DESARROLLO LOCAL DE ANTONIO NARIÑO | I112: Inversión | J112: Un nuevo contrato social y ambiental para la Bogotá del Siglo XXI | K112: 57 | L112: =IF(ISERROR(VLOOKUP(K112,Proposito_programa!$C$2:$E$59,2,FALSE))," ",VLOOKUP(K112,Proposito_programa!$C$2:$E$59,2,FALSE)) -> Gestión pública local | M112: =IF(ISERROR(VLOOKUP(K112,Proposito_programa!$C$2:$E$59,3,FALSE))," ",VLOOKUP(K112,Proposito_programa!$C$2:$E$59,3,FALSE)) -> Propósito 5: Construir Bogotá - Región con gobierno abierto, transparente y ciudadanía consciente | N112: 2198 | O112: 1 | P112: 79442095 | Q112: SERGIO AUGUSTO BELTRAN MARTIN | R112: Persona Natural | W112: 27720000 | AA112: 27720000 | AB112: 27720000 | AC112: 2022-01-26 | AD112: 2022-01-27 | AE112: 2022-07-25 | AF112: 180 | AM112: En ejecución | AN112: 1
A113: 96 | B113: 2022 | C113: FDLANCD-96-2022(68255) | D113: https://community.secop.gov.co/Public/Tendering/OpportunityDetail/Index?noticeUID=CO1.NTC.2730785&isFromPublicArea=True&isModal=False | E113: Contratos de prestación de servicios profesionales y de apoyo a la gestión | F113: Contratación directa | G113: Prestación de servicios profesionales y de apoyo a la gestión, o para la ejecución de trabajos artísticos que sólo puedan encomendarse a determinadas personas naturales | H113: Apoyar jurídicamente la ejecución de las acciones requeridas para la depuración de las actuaciones administrativas que cursan en la Alcaldía Local | I113: Inversión | J113: Un nuevo contrato social y ambiental para la Bogotá del Siglo XXI | K113: 57 | L113: =IF(ISERROR(VLOOKUP(K113,Proposito_programa!$C$2:$E$59,2,FALSE))," ",VLOOKUP(K113,Proposito_programa!$C$2:$E$59,2,FALSE)) -> Gestión pública local | M113: =IF(ISERROR(VLOOKUP(K113,Proposito_programa!$C$2:$E$59,3,FALSE))," ",VLOOKUP(K113,Proposito_programa!$C$2:$E$59,3,FALSE)) -> Propósito 5: Construir Bogotá - Región con gobierno abierto, transparente y ciudadanía consciente | N113: 2198 | O113: 1 | P113: 1013609653 | Q113: JULIO CESAR GONZALEZ GOMEZ | R113: Persona Natural | W113: 27720000 | AA113: 27720000 | AB113: 27720000 | AC113: 2022-01-26 | AD113: 2022-01-27 | AE113: 2022-07-25 | AF113: 180 | AM113: En ejecución | AN113: 1
A114: 97 | B114: 2022 | C114: FDLANCD-097-2022(67788) | D114: https://community.secop.gov.co/Public/Tendering/OpportunityDetail/Index?noticeUID=CO1.NTC.2729431&isFromPublicArea=True&isModal=False | E114: Contratos de prestación de servicios profesionales y de apoyo a la gestión | F114: Contratación directa | G114: Prestación de servicios profesionales y de apoyo a la gestión, o para la ejecución de trabajos artísticos que sólo puedan encomendarse a determinadas personas naturales | H114: Prestar servicios profesionales, para apoyar la formulación, ejecución, supervisión, seguimiento cierre y/o liquidación de los procesos contractuales que den respuesta al proyecto de inversión para las acciones de fomento y promoción de actividades artísticas, interculturales, culturales y/o patrimoniales de la localidad de Antonio Nariño. | I114: Inversión | J114: Un nuevo contrato social y ambiental para la Bogotá del Siglo XXI | K114: 21 | L114: =IF(ISERROR(VLOOKUP(K114,Proposito_programa!$C$2:$E$59,2,FALSE))," ",VLOOKUP(K114,Proposito_programa!$C$2:$E$59,2,FALSE)) -> Creación y vida cotidiana: Apropiación ciudadana del arte, la cultura y el patrimonio, para la democracia cultural | M114: =IF(ISERROR(VLOOKUP(K114,Proposito_programa!$C$2:$E$59,3,FALSE))," ",VLOOKUP(K114,Proposito_programa!$C$2:$E$59,3,FALSE)) -> Propósito 1: Hacer un nuevo contrato social para incrementar la inclusión social, productiva y política | N114: 2201 | O114: 1 | P114: 7570624 | Q114: FABIAN ENRIQUE DAZA MORALES | R114: Persona Natural | W114: 27720000 | AA114: 27720000 | AB114: 27258000 | AC114: 2022-01-26 | AD114: 2022-02-02 | AE114: 2022-08-03 | AF114: 180 | AM114: En ejecución | AN114: 0.9833333333
A115: 98 | B115: 2022 | C115: FDLANCD-098-2022(68255) | D115: https://community.secop.gov.co/Public/Tendering/OpportunityDetail/Index?noticeUID=CO1.NTC.2734604&isFromPublicArea=True&isModal=False | E115: Contratos de prestación de servicios profesionales y de apoyo a la gestión | F115: Contratación directa | G115: Prestación de servicios profesionales y de apoyo a la gestión, o para la ejecución de trabajos artísticos que sólo puedan encomendarse a determinadas personas naturales | H115: Apoyar jurídicamente la ejecución de las acciones requeridas para la depuración de las actuaciones administrativas que cursan en la Alcaldía Local. | I115: Inversión | J115: Un nuevo contrato social y ambiental para la Bogotá del Siglo XXI | K115: 57 | L115: =IF(ISERROR(VLOOKUP(K115,Proposito_programa!$C$2:$E$59,2,FALSE))," ",VLOOKUP(K115,Proposito_programa!$C$2:$E$59,2,FALSE)) -> Gestión pública local | M115: =IF(ISERROR(VLOOKUP(K115,Proposito_programa!$C$2:$E$59,3,FALSE))," ",VLOOKUP(K115,Proposito_programa!$C$2:$E$59,3,FALSE)) -> Propósito 5: Construir Bogotá - Región con gobierno abierto, transparente y ciudadanía consciente | N115: 2198 | O115: 1 | P115: 1032472221 | Q115: ANGEE BRIGETH PACHECO AMADO | R115: Persona Natural | W115: 27720000 | AA115: 27720000 | AB115: 27720000 | AC115: 2022-01-26 | AD115: 2022-02-01 | AE115: 2022-07-31 | AF115: 180 | AM115: En ejecución | AN115: 1
A116: 99 | B116: 2022 | C116: FDLANCD-099-2022(68255) | D116: https://community.secop.gov.co/Public/Tendering/OpportunityDetail/Index?noticeUID=CO1.NTC.2734795&isFromPublicArea=True&isModal=False | E116: Contratos de prestación de servicios profesionales y de apoyo a la gestión | F116: Contratación directa | G116: Prestación de servicios profesionales y de apoyo a la gestión, o para la ejecución de trabajos artísticos que sólo puedan encomendarse a determinadas personas naturales | H116: Apoyar jurídicamente la ejecución de las acciones requeridas para la depuración de las actuaciones administrativas que cursan en la Alcaldía Local. | I116: Inversión | J116: Un nuevo contrato social y ambiental para la Bogotá del Siglo XXI | K116: 57 | L116: =IF(ISERROR(VLOOKUP(K116,Proposito_programa!$C$2:$E$59,2,FALSE))," ",VLOOKUP(K116,Proposito_programa!$C$2:$E$59,2,FALSE)) -> Gestión pública local | M116: =IF(ISERROR(VLOOKUP(K116,Proposito_programa!$C$2:$E$59,3,FALSE))," ",VLOOKUP(K116,Proposito_programa!$C$2:$E$59,3,FALSE)) -> Propósito 5: Construir Bogotá - Región con gobierno abierto, transparente y ciudadanía consciente | N116: 2198 | O116: 1 | P116: 1015447288 | Q116: ADRIANA KATHERIN AVILA TORRES | R116: Persona Natural | W116: 27720000 | AA116: 27720000 | AB116: 27720000 | AC116: 2022-01-26 | AD116: 2022-01-27 | AE116: 2022-07-25 | AF116: 180 | AM116: En ejecución | AN116: 1
A117: 100 | B117: 2022 | C117: FDLANCD-100-2022(68255) | D117: https://community.secop.gov.co/Public/Tendering/OpportunityDetail/Index?noticeUID=CO1.NTC.2736764&isFromPublicArea=True&isModal=False | E117: Contratos de prestación de servicios profesionales y de apoyo a la gestión | F117: Contratación directa | G117: Prestación de servicios profesionales y de apoyo a la gestión, o para la ejecución de trabajos artísticos que sólo puedan encomendarse a determinadas personas naturales | H117: Apoyar jurídicamente la ejecución de las acciones requeridas para la depuración de las actuaciones administrativas que cursan en la Alcaldía Local. | I117: Inversión | J117: Un nuevo contrato social y ambiental para la Bogotá del Siglo XXI | K117: 57 | L117: =IF(ISERROR(VLOOKUP(K117,Proposito_programa!$C$2:$E$59,2,FALSE))," ",VLOOKUP(K117,Proposito_programa!$C$2:$E$59,2,FALSE)) -> Gestión pública local | M117: =IF(ISERROR(VLOOKUP(K117,Proposito_programa!$C$2:$E$59,3,FALSE))," ",VLOOKUP(K117,Proposito_programa!$C$2:$E$59,3,FALSE)) -> Propósito 5: Construir Bogotá - Región con gobierno abierto, transparente y ciudadanía consciente | N117: 2198 | O117: 1 | P117: 1085925841 | Q117: JOSE DANIEL CHAMORRO VASQUEZ | R117: Persona Natural | W117: 27720000 | AA117: 27720000 | AB117: 27720000 | AC117: 2022-01-26 | AD117: 2022-02-01 | AE117: 2022-07-31 | AF117: 180 | AM117: En ejecución | AN117: 1
A118: 101 | B118: 2022 | C118: FDLANCD-101-2022(67771) | D118: https://community.secop.gov.co/Public/Tendering/OpportunityDetail/Index?noticeUID=CO1.NTC.2732985&isFromPublicArea=True&isModal=False | E118: Contratos de prestación de servicios profesionales y de apoyo a la gestión | F118: Contratación directa | G118: Prestación de servicios profesionales y de apoyo a la gestión, o para la ejecución de trabajos artísticos que sólo puedan encomendarse a determinadas personas naturales | H118: Prestar servicios profesionales, para apoyar la formulación, ejecución, supervisión, seguimiento cierre y/o liquidación de los procesos contractuales que den respuesta al proyecto de inversión de acciones para la construcción de memoria, verdad, reparación, víctimas, paz y reconciliación de la localidad de Antonio Nariño | I118: Inversión | J118: Un nuevo contrato social y ambiental para la Bogotá del Siglo XXI | K118: 39 | L118: =IF(ISERROR(VLOOKUP(K118,Proposito_programa!$C$2:$E$59,2,FALSE))," ",VLOOKUP(K118,Proposito_programa!$C$2:$E$59,2,FALSE)) -> Bogotá territorio de paz y atención integral a las víctimas del conflicto armado | M118: =IF(ISERROR(VLOOKUP(K118,Proposito_programa!$C$2:$E$59,3,FALSE))," ",VLOOKUP(K118,Proposito_programa!$C$2:$E$59,3,FALSE)) -> Propósito 3: Inspirar confianza y legitimidad para vivir sin miedo y ser epicentro de cultura ciudadana, paz y reconciliación | N118: 2165 | O118: 1 | P118: 1012399674 | Q118: GINNA LIZETH SERNA | R118: Persona Natural | W118: 27720000 | AA118: 27720000 | AB118: 27720000 | AC118: 2022-01-26 | AD118: 2022-01-27 | AE118: 2022-07-25 | AF118: 180 | AM118: En ejecución | AN118: 1
A119: 102 | B119: 2022 | C119: FDLANCD-102-2022(68195) | D119: https://community.secop.gov.co/Public/Tendering/OpportunityDetail/Index?noticeUID=CO1.NTC.2741330&isFromPublicArea=True&isModal=False | E119: Contratos de prestación de servicios profesionales y de apoyo a la gestión | F119: Contratación directa | G119: Prestación de servicios profesionales y de apoyo a la gestión, o para la ejecución de trabajos artísticos que sólo puedan encomendarse a determinadas personas naturales | H119: Prestar servicios profesionales como abogado para apoyar los distintos procedimientos sancionatorios y trámites administrativos que adelante el equipo de inspección, vigilancia y control del área de gestión policiva y jurídica del Fondo de Desarrollo Local Antonio Nariño, con ocasión a la infracción y aplicación de normas policivas y apoyo al despacho del alcalde local en asuntos relacionados con despachos comisorios | I119: Inversión | J119: Un nuevo contrato social y ambiental para la Bogotá del Siglo XXI | K119: 57 | L119: =IF(ISERROR(VLOOKUP(K119,Proposito_programa!$C$2:$E$59,2,FALSE))," ",VLOOKUP(K119,Proposito_programa!$C$2:$E$59,2,FALSE)) -> Gestión pública local | M119: =IF(ISERROR(VLOOKUP(K119,Proposito_programa!$C$2:$E$59,3,FALSE))," ",VLOOKUP(K119,Proposito_programa!$C$2:$E$59,3,FALSE)) -> Propósito 5: Construir Bogotá - Región con gobierno abierto, transparente y ciudadanía consciente | N119: 2198 | O119: 1 | P119: 1013649960 | Q119: CRISTIAN ALFONSO MONCADA LUGO | R119: Persona Natural | W119: 50820000 | AA119: 50820000 | AB119: 46970000 | AC119: 2022-01-26 | AD119: 2022-01-27 | AE119: 2022-12-25 | AF119: 330 | AM119: En ejecución | AN119: 0.9242424242
A120: 103 | B120: 2022 | C120: FDLANCD-103-2022(68255) | D120: https://community.secop.gov.co/Public/Tendering/OpportunityDetail/Index?noticeUID=CO1.NTC.2736552&isFromPublicArea=True&isModal=False | E120: Contratos de prestación de servicios profesionales y de apoyo a la gestión | F120: Contratación directa | G120: Prestación de servicios profesionales y de apoyo a la gestión, o para la ejecución de trabajos artísticos que sólo puedan encomendarse a determinadas personas naturales | H120: Apoyar jurídicamente la ejecución de las acciones requeridas para la depuración de las actuaciones administrativas que cursan en la Alcaldía Local. | I120: Inversión | J120: Un nuevo contrato social y ambiental para la Bogotá del Siglo XXI | K120: 57 | L120: =IF(ISERROR(VLOOKUP(K120,Proposito_programa!$C$2:$E$59,2,FALSE))," ",VLOOKUP(K120,Proposito_programa!$C$2:$E$59,2,FALSE)) -> Gestión pública local | M120: =IF(ISERROR(VLOOKUP(K120,Proposito_programa!$C$2:$E$59,3,FALSE))," ",VLOOKUP(K120,Proposito_programa!$C$2:$E$59,3,FALSE)) -> Propósito 5: Construir Bogotá - Región con gobierno abierto, transparente y ciudadanía consciente | N120: 2198 | O120: 1 | P120: 1085294675 | Q120: JAIRO CAMILO MUÑOZ SANTACRUZ | R120: Persona Natural | W120: 27720000 | AA120: 27720000 | AB120: 27720000 | AC120: 2022-01-26 | AD120: 2022-02-04 | AE120: 2022-08-05 | AF120: 180 | AM120: En ejecución | AN120: 1
A121: 104 | B121: 2022 | C121: FDLANCD-104-2022(66978) | D121: https://community.secop.gov.co/Public/Tendering/OpportunityDetail/Index?noticeUID=CO1.NTC.2741857&isFromPublicArea=True&isModal=False | E121: Contratos de prestación de servicios profesionales y de apoyo a la gestión | F121: Contratación directa | G121: Prestación de servicios profesionales y de apoyo a la gestión, o para la ejecución de trabajos artísticos que sólo puedan encomendarse a determinadas personas naturales | H121: PRESTACIÓN DE SERVICIOS PROFESIONALES AL ÁREA DE GESTIÓN DE DESARROLLO LOCAL ANTONIO NARIÑO PARA APOYAR LA FORMULACIÓN, SOCIALIZACIÓN Y SEGUIMIENTO DE LOS PROGRAMAS Y PROYECTOS DE INVERSIÓN, RELACIONADOS CON LA INFRAESTRUCTURA DEL FONDO, NECESARIOS PARA EL CUMPLIMIENTO DEL PLAN DE DESARROLLO LOCAL | I121: Inversión | J121: Un nuevo contrato social y ambiental para la Bogotá del Siglo XXI | K121: 33 | L121: =IF(ISERROR(VLOOKUP(K121,Proposito_programa!$C$2:$E$59,2,FALSE))," ",VLOOKUP(K121,Proposito_programa!$C$2:$E$59,2,FALSE)) -> Más árboles y más y mejor espacio público | M121: =IF(ISERROR(VLOOKUP(K121,Proposito_programa!$C$2:$E$59,3,FALSE))," ",VLOOKUP(K121,Proposito_programa!$C$2:$E$59,3,FALSE)) -> Propósito 2 : Cambiar Nuestros Hábitos de Vida para Reverdecer a Bogotá y Adaptarnos y Mitigar la Crisis Climática | N121: 2207 | O121: 1 | P121: 1052401425 | Q121: NELLY CATALINA ORTEGA GOMEZ | R121: Persona Natural | W121: 27720000 | AA121: 27720000 | AB121: 4620000 | AC121: 2022-01-26 | AD121: 2022-02-01 | AE121: 2022-07-31 | AF121: 180 | AM121: En ejecución | AN121: 0.1666666667
A122: 105 | B122: 2022 | C122: FDLANCD-105-2022(68189) | D122: https://community.secop.gov.co/Public/Tendering/OpportunityDetail/Index?noticeUID=CO1.NTC.2741778&isFromPublicArea=True&isModal=False | E122: Contratos de prestación de servicios profesionales y de apoyo a la gestión | F122: Contratación directa | G122: Prestación de servicios profesionales y de apoyo a la gestión, o para la ejecución de trabajos artísticos que sólo puedan encomendarse a determinadas personas naturales | H122: Prestar los servicios profesionales como abogado para fortalecer el equipo de inspección, vigilancia y control del área de gestión policiva del fondo de desarrollolocal de Antonio Nariño en cobros persuasivos | I122: Inversión | J122: Un nuevo contrato social y ambiental para la Bogotá del Siglo XXI | K122: 57 | L122: =IF(ISERROR(VLOOKUP(K122,Proposito_programa!$C$2:$E$59,2,FALSE))," ",VLOOKUP(K122,Proposito_programa!$C$2:$E$59,2,FALSE)) -> Gestión pública local | M122: =IF(ISERROR(VLOOKUP(K122,Proposito_programa!$C$2:$E$59,3,FALSE))," ",VLOOKUP(K122,Proposito_programa!$C$2:$E$59,3,FALSE)) -> Propósito 5: Construir Bogotá - Región con gobierno abierto, transparente y ciudadanía consciente | N122: 2189 | O122: 1 | P122: 1033811955 | Q122: LAURA YESSENIA LOPEZ | R122: Persona Natural | W122: 27720000 | AA122: 27720000 | AB122: 27720000 | AC122: 2022-01-26 | AD122: 2022-02-03 | AE122: 2022-08-04 | AF122: 180 | AM122: En ejecución | AN122: 1
A123: 106 | B123: 2022 | C123: FDLANCD-106-2022(68232) | D123: https://community.secop.gov.co/Public/Tendering/OpportunityDetail/Index?noticeUID=CO1.NTC.2743024&isFromPublicArea=True&isModal=False | E123: Contratos de prestación de servicios profesionales y de apoyo a la gestión | F123: Contratación directa | G123: Prestación de servicios profesionales y de apoyo a la gestión, o para la ejecución de trabajos artísticos que sólo puedan encomendarse a determinadas personas naturales | H123: Apoyar administrativa y asistencialmente a las Inspecciones de Policía de la Localidad. | I123: Inversión | J123: Un nuevo contrato social y ambiental para la Bogotá del Siglo XXI | K123: 57 | L123: =IF(ISERROR(VLOOKUP(K123,Proposito_programa!$C$2:$E$59,2,FALSE))," ",VLOOKUP(K123,Proposito_programa!$C$2:$E$59,2,FALSE)) -> Gestión pública local | M123: =IF(ISERROR(VLOOKUP(K123,Proposito_programa!$C$2:$E$59,3,FALSE))," ",VLOOKUP(K123,Proposito_programa!$C$2:$E$59,3,FALSE)) -> Propósito 5: Construir Bogotá - Región con gobierno abierto, transparente y ciudadanía consciente | N123: 2189 | O123: 1 | P123: 1065619444 | Q123: ANDRES GUILLERMO ARRIETA GARCIA | R123: Persona Natural | W123: 11286000 | AA123: 11286000 | AB123: 11286000 | AC123: 2022-01-26 | AD123: 2022-02-01 | AE123: 2022-07-31 | AF123: 180 | AM123: En ejecución | AN123: 1
A124: 107 | B124: 2022 | C124: FDLANCD-107-2022(68232) | D124: https://community.secop.gov.co/Public/Tendering/OpportunityDetail/Index?noticeUID=CO1.NTC.2743287&isFromPublicArea=True&isModal=False | E124: Contratos de prestación de servicios profesionales y de apoyo a la gestión | F124: Contratación directa | G124: Prestación de servicios profesionales y de apoyo a la gestión, o para la ejecución de trabajos artísticos que sólo puedan encomendarse a determinadas personas naturales | H124: Apoyar administrativa y asistencialmente a las Inspecciones de Policía de la Localidad. | I124: Inversión | J124: Un nuevo contrato social y ambiental para la Bogotá del Siglo XXI | K124: 57 | L124: =IF(ISERROR(VLOOKUP(K124,Proposito_programa!$C$2:$E$59,2,FALSE))," ",VLOOKUP(K124,Proposito_programa!$C$2:$E$59,2,FALSE)) -> Gestión pública local | M124: =IF(ISERROR(VLOOKUP(K124,Proposito_programa!$C$2:$E$59,3,FALSE))," ",VLOOKUP(K124,Proposito_programa!$C$2:$E$59,3,FALSE)) -> Propósito 5: Construir Bogotá - Región con gobierno abierto, transparente y ciudadanía consciente | N124: 2189 | O124: 1 | P124: 1024560826 | Q124: ANGIE MARCELA PERILLA BARAHONA | R124: Persona Natural | W124: 11286000 | AA124: =+W124+X124+Z124 -> 11286000 | AB124: 11286000 | AC124: 2022-01-26 | AD124: 2022-02-01 | AE124: 2022-07-31 | AF124: 180 | AI124: 1000469481 | AJ124: ANGIE MARCELA PERILLA BARAHONA | AK124: 2022-03-22 | AL124: 11286000 | AM124: En ejecución | AN124: 1
A125: 108 | B125: 2022 | C125: FDLANCD-108-2022(68791) | D125: https://community.secop.gov.co/Public/Tendering/OpportunityDetail/Index?noticeUID=CO1.NTC.2743059&isFromPublicArea=True&isModal=False | E125: Contratos de prestación de servicios profesionales y de apoyo a la gestión | F125: Contratación directa | G125: Prestación de servicios profesionales y de apoyo a la gestión, o para la ejecución de trabajos artísticos que sólo puedan encomendarse a determinadas personas naturales | H125: Prestar servicios de apoyo al fondo de desarrollo local de Antonio Nariño en los diferentes tramites requeridos por las entidades distritales y/o locales en los procesos de planeacion | I125: Inversión | J125: Un nuevo contrato social y ambiental para la Bogotá del Siglo XXI | K125: 6 | L125: =IF(ISERROR(VLOOKUP(K125,Proposito_programa!$C$2:$E$59,2,FALSE))," ",VLOOKUP(K125,Proposito_programa!$C$2:$E$59,2,FALSE)) -> Sistema Distrital de Cuidado | M125: =IF(ISERROR(VLOOKUP(K125,Proposito_programa!$C$2:$E$59,3,FALSE))," ",VLOOKUP(K125,Proposito_programa!$C$2:$E$59,3,FALSE)) -> Propósito 1: Hacer un nuevo contrato social para incrementar la inclusión social, productiva y política | N125: 2191 | O125: 1 | P125: 1013590697 | Q125: YURI ANDREA ALARCON RODRIGUEZ | R125: Persona Natural | W125: 14760000 | AA125: 14760000 | AB125: 14760000 | AC125: 2022-01-26 | AD125: 2022-02-01 | AE125: 2022-07-31 | AF125: 180 | AM125: En ejecución | AN125: 1
A126: 109 | B126: 2022 | C126: FDLANCD-109-2022(68278) | D126: https://community.secop.gov.co/Public/Tendering/OpportunityDetail/Index?noticeUID=CO1.NTC.2745640&isFromPublicArea=True&isModal=False | E126: Contratos de prestación de servicios profesionales y de apoyo a la gestión | F126: Contratación directa | G126: Prestación de servicios profesionales y de apoyo a la gestión, o para la ejecución de trabajos artísticos que sólo puedan encomendarse a determinadas personas naturales | H126: APOYAR TÉCNICAMENTE LAS DISTINTAS ETAPAS DE LOS PROCESOS DE COMPETENCIA DE LA ALCALDÍA LOCAL PARA LA DEPURACIÓN DE ACTUACIONES ADMINISTRATIVAS | I126: Inversión | J126: Un nuevo contrato social y ambiental para la Bogotá del Siglo XXI | K126: 57 | L126: =IF(ISERROR(VLOOKUP(K126,Proposito_programa!$C$2:$E$59,2,FALSE))," ",VLOOKUP(K126,Proposito_programa!$C$2:$E$59,2,FALSE)) -> Gestión pública local | M126: =IF(ISERROR(VLOOKUP(K126,Proposito_programa!$C$2:$E$59,3,FALSE))," ",VLOOKUP(K126,Proposito_programa!$C$2:$E$59,3,FALSE)) -> Propósito 5: Construir Bogotá - Región con gobierno abierto, transparente y ciudadanía consciente | N126: 2189 | O126: 1 | P126: 1074129871 | Q126: SANTIAGO NICOLAS MORA GUTIERREZ | R126: Persona Natural | W126: 32400000 | AA126: 32400000 | AB126: 32400000 | AC126: 2022-01-27 | AD126: 2022-02-01 | AE126: 2022-07-31 | AF126: 180 | AM126: En ejecución | AN126: 1
A127: 110 | B127: 2022 | C127: FDLANCD-110-2022(68263) | D127: https://community.secop.gov.co/Public/Tendering/OpportunityDetail/Index?noticeUID=CO1.NTC.2751720&isFromPublicArea=True&isModal=False | E127: Contratos de prestación de servicios profesionales y de apoyo a la gestión | F127: Contratación directa | G127: Prestación de servicios profesionales y de apoyo a la gestión, o para la ejecución de trabajos artísticos que sólo puedan encomendarse a determinadas personas naturales | H127: PRESTACIÓN DE SERVICIOS DE APOYO A LA GESTIÓN EN LAS LABORES ASISTENCIALES DEL ÁREA DE GESTIÓN POLICIVA, PARA LOS DISTINTOS PROCEDIMIENTOS SANCIONATORIOS Y TRÁMITES ADMINISTRATIVOS QUE ADELANTA EL EQUIPO DE INSPECCIÓN, VIGILANCIA Y CONTROL DE LA ALCALDÍA LOCAL DE ANTONIO NARIÑO | I127: Inversión | J127: Un nuevo contrato social y ambiental para la Bogotá del Siglo XXI | K127: 57 | L127: =IF(ISERROR(VLOOKUP(K127,Proposito_programa!$C$2:$E$59,2,FALSE))," ",VLOOKUP(K127,Proposito_programa!$C$2:$E$59,2,FALSE)) -> Gestión pública local | M127: =IF(ISERROR(VLOOKUP(K127,Proposito_programa!$C$2:$E$59,3,FALSE))," ",VLOOKUP(K127,Proposito_programa!$C$2:$E$59,3,FALSE)) -> Propósito 5: Construir Bogotá - Región con gobierno abierto, transparente y ciudadanía consciente | N127: 2189 | O127: 1 | P127: 79850361 | Q127: CARLOS VLADIMIR PINZON VEGA | R127: Persona Natural | W127: 14760000 | AA127: 14760000 | AB127: 14514000 | AC127: 2022-01-27 | AD127: 2022-02-02 | AE127: 2022-08-03 | AF127: 180 | AM127: En ejecución | AN127: 0.9833333333
A128: 111 | B128: 2022 | C128: FDLANCD-111-2022(66605) | D128: https://community.secop.gov.co/Public/Tendering/OpportunityDetail/Index?noticeUID=CO1.NTC.2762498&isFromPublicArea=True&isModal=False | E128: Contratos de prestación de servicios profesionales y de apoyo a la gestión | F128: Contratación directa | G128: Prestación de servicios profesionales y de apoyo a la gestión, o para la ejecución de trabajos artísticos que sólo puedan encomendarse a determinadas personas naturales | H128: PRESTAR SERVICIOS PROFESIONALES DE APOYO EN LOS PROCESOS ADMINISTRATIVOS, CONTABLES Y FINANCIEROS EN EL FONDO DE DESARROLLO LOCAL DE ANTONIO NARIÑO EN EL MARCO DE LAS NORMAS DE DERECHO CONTABLE, DE SEGURIDAD SOCIAL Y LOS PROCEDIMIENTOS VIGENTES | I128: Inversión | J128: Un nuevo contrato social y ambiental para la Bogotá del Siglo XXI | K128: 57 | L128: =IF(ISERROR(VLOOKUP(K128,Proposito_programa!$C$2:$E$59,2,FALSE))," ",VLOOKUP(K128,Proposito_programa!$C$2:$E$59,2,FALSE)) -> Gestión pública local | M128: =IF(ISERROR(VLOOKUP(K128,Proposito_programa!$C$2:$E$59,3,FALSE))," ",VLOOKUP(K128,Proposito_programa!$C$2:$E$59,3,FALSE)) -> Propósito 5: Construir Bogotá - Región con gobierno abierto, transparente y ciudadanía consciente | N128: 2198 | O128: 1 | P128: 1022379187 | Q128: NATALIA DELGADO PUENTES | R128: Persona Natural | W128: 32400000 | AA128: 32400000 | AB128: 32400000 | AC128: 2022-01-27 | AD128: 2022-02-03 | AE128: 2022-08-04 | AF128: 180 | AI128: 1022379187 | AJ128: NATHALIA DELGADO PUENTES | AK128: 2022-03-01 | AL128: 32400000 | AM128: En ejecución | AN128: 1
A129: 112 | B129: 2022 | C129: FDLANCD-112-2022(68232) | D129: https://community.secop.gov.co/Public/Tendering/OpportunityDetail/Index?noticeUID=CO1.NTC.2791298&isFromPublicArea=True&isModal=False | E129: Contratos de prestación de servicios profesionales y de apoyo a la gestión | F129: Contratación directa | G129: Prestación de servicios profesionales y de apoyo a la gestión, o para la ejecución de trabajos artísticos que sólo puedan encomendarse a determinadas personas naturales | H129: Apoyar administrativa y asistencialmente a las Inspecciones de Policía de la Localidad. | I129: Inversión | J129: Un nuevo contrato social y ambiental para la Bogotá del Siglo XXI | K129: 57 | L129: =IF(ISERROR(VLOOKUP(K129,Proposito_programa!$C$2:$E$59,2,FALSE))," ",VLOOKUP(K129,Proposito_programa!$C$2:$E$59,2,FALSE)) -> Gestión pública local | M129: =IF(ISERROR(VLOOKUP(K129,Proposito_programa!$C$2:$E$59,3,FALSE))," ",VLOOKUP(K129,Proposito_programa!$C$2:$E$59,3,FALSE)) -> Propósito 5: Construir Bogotá - Región con gobierno abierto, transparente y ciudadanía consciente | N129: 2189 | O129: 1 | P129: 1018433251 | Q129: LADY JOHANA DIAZ MORENO | R129: Persona Natural | W129: 11286000 | AA129: 11286000 | AB129: 9216900 | AC129: 2022-01-28 | AD129: 2022-02-02 | AE129: 2022-07-31 | AF129: 180 | AM129: En ejecución | AN129: 0.8166666667
A130: 113 | B130: 2022 | C130: FDLANCD-113-2022(69882) | D130: https://community.secop.gov.co/Public/Tendering/OpportunityDetail/Index?noticeUID=CO1.NTC.2756414&isFromPublicArea=True&isModal=False | E130: Contratos de prestación de servicios profesionales y de apoyo a la gestión | F130: Contratación directa | G130: Prestación de servicios profesionales y de apoyo a la gestión, o para la ejecución de trabajos artísticos que sólo puedan encomendarse a determinadas personas naturales | H130: Prestar servicios de apoyo a la gestión a la Alcaldía Local de Antonio Nariño en el seguimiento a casos de violencia intrafamiliar y sexual en poblaciones vulnerables, así como en los procesos de participación ciudadana en la localidad. | I130: Inversión | J130: Un nuevo contrato social y ambiental para la Bogotá del Siglo XXI | K130: 6 | L130: =IF(ISERROR(VLOOKUP(K130,Proposito_programa!$C$2:$E$59,2,FALSE))," ",VLOOKUP(K130,Proposito_programa!$C$2:$E$59,2,FALSE)) -> Sistema Distrital de Cuidado | M130: =IF(ISERROR(VLOOKUP(K130,Proposito_programa!$C$2:$E$59,3,FALSE))," ",VLOOKUP(K130,Proposito_programa!$C$2:$E$59,3,FALSE)) -> Propósito 1: Hacer un nuevo contrato social para incrementar la inclusión social, productiva y política | N130: 2192 | O130: 1 | P130: 1007749906 | Q130: LIZETH DAYANA RUBIANO PULIDO | R130: Persona Natural | W130: 14760000 | AA130: 14760000 | AB130: 14760000 | AC130: 2022-01-27 | AD130: 2022-02-01 | AE130: 2022-07-31 | AF130: 180 | AM130: En ejecución | AN130: 1
A131: 114 | B131: 2022 | C131: FDLANCD-114-2022(68790) | D131: https://community.secop.gov.co/Public/Tendering/OpportunityDetail/Index?noticeUID=CO1.NTC.2757687&isFromPublicArea=True&isModal=False | E131: Contratos de prestación de servicios profesionales y de apoyo a la gestión | F131: Contratación directa | G131: Prestación de servicios profesionales y de apoyo a la gestión, o para la ejecución de trabajos artísticos que sólo puedan encomendarse a determinadas personas naturales | H131: Prestar servicios profesionales, para apoyar la formulación, ejecución, supervisión, seguimiento cierre y/o liquidación de los procesos contractuales que den respuesta al proyecto de inversión acciones para las personas cuidadoras de la localidad de Antonio Nariño. | I131: Inversión | J131: Un nuevo contrato social y ambiental para la Bogotá del Siglo XXI | K131: 6 | L131: =IF(ISERROR(VLOOKUP(K131,Proposito_programa!$C$2:$E$59,2,FALSE))," ",VLOOKUP(K131,Proposito_programa!$C$2:$E$59,2,FALSE)) -> Sistema Distrital de Cuidado | M131: =IF(ISERROR(VLOOKUP(K131,Proposito_programa!$C$2:$E$59,3,FALSE))," ",VLOOKUP(K131,Proposito_programa!$C$2:$E$59,3,FALSE)) -> Propósito 1: Hacer un nuevo contrato social para incrementar la inclusión social, productiva y política | N131: 2193 | O131: 1 | P131: 51922115 | Q131: BERENICE CUEVAS PINZON | R131: Persona Natural | W131: 27720000 | AA131: 27720000 | AB131: 27720000 | AC131: 2022-01-27 | AD131: 2022-02-01 | AE131: 2022-07-31 | AF131: 180 | AM131: En ejecución | AN131: 1
A132: 115 | B132: 2022 | C132: FDLANCD-115-2022(68790) | D132: https://community.secop.gov.co/Public/Tendering/OpportunityDetail/Index?noticeUID=CO1.NTC.2757889&isFromPublicArea=True&isModal=False | E132: Contratos de prestación de servicios profesionales y de apoyo a la gestión | F132: Contratación directa | G132: Prestación de servicios profesionales y de apoyo a la gestión, o para la ejecución de trabajos artísticos que sólo puedan encomendarse a determinadas personas naturales | H132: Prestar servicios profesionales, para apoyar la formulación, ejecución, supervisión, seguimiento cierre y/o liquidación de los procesos contractuales que den respuesta al proyecto de inversión acciones para las personas cuidadoras de la localidad de Antonio Nariño. | I132: Inversión | J132: Un nuevo contrato social y ambiental para la Bogotá del Siglo XXI | K132: 6 | L132: =IF(ISERROR(VLOOKUP(K132,Proposito_programa!$C$2:$E$59,2,FALSE))," ",VLOOKUP(K132,Proposito_programa!$C$2:$E$59,2,FALSE)) -> Sistema Distrital de Cuidado | M132: =IF(ISERROR(VLOOKUP(K132,Proposito_programa!$C$2:$E$59,3,FALSE))," ",VLOOKUP(K132,Proposito_programa!$C$2:$E$59,3,FALSE)) -> Propósito 1: Hacer un nuevo contrato social para incrementar la inclusión social, productiva y política | N132: 2193 | O132: 1 | P132: 79330371 | Q132: NESTOR VARGAS LOZANO | R132: Persona Natural | W132: 27720000 | AA132: 27720000 | AB132: 27720000 | AC132: 2022-01-27 | AD132: 2022-02-01 | AE132: 2022-07-31 | AF132: 180 | AM132: En ejecución | AN132: 1
A133: 116 | B133: 2022 | C133: FDLANCD-116-2022(68821) | D133: https://community.secop.gov.co/Public/Tendering/OpportunityDetail/Index?noticeUID=CO1.NTC.2757236&isFromPublicArea=True&isModal=False | E133: Contratos de prestación de servicios profesionales y de apoyo a la gestión | F133: Contratación directa | G133: Prestación de servicios profesionales y de apoyo a la gestión, o para la ejecución de trabajos artísticos que sólo puedan encomendarse a determinadas personas naturales | H133: Apoyar en las tareas operativas de carácter archivístico desarrolladas en la Alcaldía Local para garantizar la aplicación correcta de los procedimientos técnicos. | I133: Inversión | J133: Un nuevo contrato social y ambiental para la Bogotá del Siglo XXI | K133: 57 | L133: =IF(ISERROR(VLOOKUP(K133,Proposito_programa!$C$2:$E$59,2,FALSE))," ",VLOOKUP(K133,Proposito_programa!$C$2:$E$59,2,FALSE)) -> Gestión pública local | M133: =IF(ISERROR(VLOOKUP(K133,Proposito_programa!$C$2:$E$59,3,FALSE))," ",VLOOKUP(K133,Proposito_programa!$C$2:$E$59,3,FALSE)) -> Propósito 5: Construir Bogotá - Región con gobierno abierto, transparente y ciudadanía consciente | N133: 2198 | O133: 1 | P133: 1031154492 | Q133: DIANA MARCELA SANCHEZ | R133: Persona Natural | W133: 20160000 | AA133: 20160000 | AB133: 20160000 | AC133: 2022-01-27 | AD133: 2022-02-01 | AE133: 2022-07-31 | AF133: 180 | AM133: En ejecución | AN133: 1
A134: 117 | B134: 2022 | C134: FDLANCD-117-2022(69996) | D134: https://community.secop.gov.co/Public/Tendering/OpportunityDetail/Index?noticeUID=CO1.NTC.2757622&isFromPublicArea=True&isModal=False | E134: Contratos de prestación de servicios profesionales y de apoyo a la gestión | F134: Contratación directa | G134: Prestación de servicios profesionales y de apoyo a la gestión, o para la ejecución de trabajos artísticos que sólo puedan encomendarse a determinadas personas naturales | H134: Apoyar al (a) Alcalde (sa) Local en el fortalecimiento e inclusión de las comunidades negras, afrocolombianas y palenqueras en el marco de la política pública Distrital Afrodescendientes y los espacios de participación | I134: Inversión | J134: Un nuevo contrato social y ambiental para la Bogotá del Siglo XXI | K134: 55 | L134: =IF(ISERROR(VLOOKUP(K134,Proposito_programa!$C$2:$E$59,2,FALSE))," ",VLOOKUP(K134,Proposito_programa!$C$2:$E$59,2,FALSE)) -> Fortalecimiento de cultura ciudadana y su institucionalidad | M134: =IF(ISERROR(VLOOKUP(K134,Proposito_programa!$C$2:$E$59,3,FALSE))," ",VLOOKUP(K134,Proposito_programa!$C$2:$E$59,3,FALSE)) -> Propósito 5: Construir Bogotá - Región con gobierno abierto, transparente y ciudadanía consciente | N134: 2190 | O134: 1 | P134: 1131084170 | Q134: IVET ELISABET OLAYA LOEBEL | R134: Persona Natural | W134: 27720000 | AA134: 27720000 | AB134: 22638000 | AC134: 2022-01-27 | AD134: 2022-02-01 | AE134: 2022-07-31 | AF134: 180 | AM134: En ejecución | AN134: 0.8166666667
A135: 118 | B135: 2022 | C135: FDLANCD-118-2022(70005) | D135: https://community.secop.gov.co/Public/Tendering/OpportunityDetail/Index?noticeUID=CO1.NTC.2758942&isFromPublicArea=True&isModal=False | E135: Contratos de prestación de servicios profesionales y de apoyo a la gestión | F135: Contratación directa | G135: Prestación de servicios profesionales y de apoyo a la gestión, o para la ejecución de trabajos artísticos que sólo puedan encomendarse a determinadas personas naturales | H135: Prestar servicios profesionales a la alcaldía local de Antonio Nariño para realizar acompañamiento a procesos comunitarios y apoyar la realización de las actividades de asociados al desarrollo e implementación de presupuestos participativos. | I135: Inversión | J135: Un nuevo contrato social y ambiental para la Bogotá del Siglo XXI | K135: 55 | L135: =IF(ISERROR(VLOOKUP(K135,Proposito_programa!$C$2:$E$59,2,FALSE))," ",VLOOKUP(K135,Proposito_programa!$C$2:$E$59,2,FALSE)) -> Fortalecimiento de cultura ciudadana y su institucionalidad | M135: =IF(ISERROR(VLOOKUP(K135,Proposito_programa!$C$2:$E$59,3,FALSE))," ",VLOOKUP(K135,Proposito_programa!$C$2:$E$59,3,FALSE)) -> Propósito 5: Construir Bogotá - Región con gobierno abierto, transparente y ciudadanía consciente | N135: 2190 | O135: 1 | P135: 1023898578 | Q135: LAURA ALEJANDRA AGUILAR CRUZ | R135: Persona Natural | W135: 50820000 | AA135: 50820000 | AB135: 46200000 | AC135: 2022-01-27 | AD135: 2022-02-01 | AE135: 2022-12-31 | AF135: 330 | AM135: En ejecución | AN135: 0.9090909091
A136: 119 | B136: 2022 | C136: FDLANCD-119-2022(67695) | D136: https://community.secop.gov.co/Public/Tendering/OpportunityDetail/Index?noticeUID=CO1.NTC.2763154&isFromPublicArea=True&isModal=False | E136: Contratos de prestación de servicios profesionales y de apoyo a la gestión | F136: Contratación directa | G136: Prestación de servicios profesionales y de apoyo a la gestión, o para la ejecución de trabajos artísticos que sólo puedan encomendarse a determinadas personas naturales | H136: PRESTAR SERVICIOS PROFESIONALES AL DESPACHO DEL ALCALDE LOCAL EN LA ORIENTACIÓN Y APLICACIÓN DE LA NORMATIVIDAD NACIONAL, DISTRITAL Y LOCAL, LA PROYECCIÓN DE ACTOS ADMINISTRATIVOS, RESPUESTAS A RECLAMACIONES, REQUERIMIENTOS Y DERECHOS DE PETICIÓN | I136: Inversión | J136: Un nuevo contrato social y ambiental para la Bogotá del Siglo XXI | K136: 57 | L136: =IF(ISERROR(VLOOKUP(K136,Proposito_programa!$C$2:$E$59,2,FALSE))," ",VLOOKUP(K136,Proposito_programa!$C$2:$E$59,2,FALSE)) -> Gestión pública local | M136: =IF(ISERROR(VLOOKUP(K136,Proposito_programa!$C$2:$E$59,3,FALSE))," ",VLOOKUP(K136,Proposito_programa!$C$2:$E$59,3,FALSE)) -> Propósito 5: Construir Bogotá - Región con gobierno abierto, transparente y ciudadanía consciente | N136: 2198 | O136: 1 | P136: 1020773830 | Q136: ANDRES GUILLERMO LOPEZ RAMIREZ | R136: Persona Natural | W136: 43200000 | AA136: 43200000 | AB136: 43200000 | AC136: 2022-01-27 | AD136: 2022-02-01 | AE136: 2022-09-30 | AF136: 240 | AM136: En ejecución | AN136: 1
A137: 120 | B137: 2022 | C137: FDLANCD-120-2022(68793) | D137: https://community.secop.gov.co/Public/Tendering/OpportunityDetail/Index?noticeUID=CO1.NTC.2764705&isFromPublicArea=True&isModal=False | E137: Contratos de prestación de servicios profesionales y de apoyo a la gestión | F137: Contratación directa | G137: Prestación de servicios profesionales y de apoyo a la gestión, o para la ejecución de trabajos artísticos que sólo puedan encomendarse a determinadas personas naturales | H137: Prestación de servicios de apoyo para el Fondo de Desarrollo Local de Antonio Nariño para fortalecer el montaje y el buen desarrollo de las actividades culturales y artísticas que brindan a la comunidad en el Teatro Villa Mayor | I137: Inversión | J137: Un nuevo contrato social y ambiental para la Bogotá del Siglo XXI | K137: 57 | L137: =IF(ISERROR(VLOOKUP(K137,Proposito_programa!$C$2:$E$59,2,FALSE))," ",VLOOKUP(K137,Proposito_programa!$C$2:$E$59,2,FALSE)) -> Gestión pública local | M137: =IF(ISERROR(VLOOKUP(K137,Proposito_programa!$C$2:$E$59,3,FALSE))," ",VLOOKUP(K137,Proposito_programa!$C$2:$E$59,3,FALSE)) -> Propósito 5: Construir Bogotá - Región con gobierno abierto, transparente y ciudadanía consciente | N137: 2198 | O137: 1 | P137: 1023891911 | Q137: MIGUEL FERNANDO HERNANDEZ CHICANGO | R137: Persona Natural | W137: 16740000 | AA137: 16740000 | AB137: 16740000 | AC137: 2022-01-27 | AD137: 2022-02-01 | AE137: 2022-07-31 | AF137: 180 | AM137: En ejecución | AN137: 1
A138: 121 | B138: 2022 | C138: FDLANCD-121-2022(68245) | D138: https://community.secop.gov.co/Public/Tendering/OpportunityDetail/Index?noticeUID=CO1.NTC.2763795&isFromPublicArea=True&isModal=False | E138: Contratos de prestación de servicios profesionales y de apoyo a la gestión | F138: Contratación directa | G138: Prestación de servicios profesionales y de apoyo a la gestión, o para la ejecución de trabajos artísticos que sólo puedan encomendarse a determinadas personas naturales | H138: Apoyar las labores de entrega y recibo de las comunicaciones emitidas o recibidas por las Inspecciones de Policía de la Localidad | I138: Inversión | J138: Un nuevo contrato social y ambiental para la Bogotá del Siglo XXI | K138: 57 | L138: =IF(ISERROR(VLOOKUP(K138,Proposito_programa!$C$2:$E$59,2,FALSE))," ",VLOOKUP(K138,Proposito_programa!$C$2:$E$59,2,FALSE)) -> Gestión pública local | M138: =IF(ISERROR(VLOOKUP(K138,Proposito_programa!$C$2:$E$59,3,FALSE))," ",VLOOKUP(K138,Proposito_programa!$C$2:$E$59,3,FALSE)) -> Propósito 5: Construir Bogotá - Región con gobierno abierto, transparente y ciudadanía consciente | N138: 2189 | O138: 1 | P138: 1013646511 | Q138: ANGIE PAOLA BAYONA CONTRERAS | R138: Persona Natural | W138: 11862000 | AA138: =+W138+X138+Z138 -> 11862000 | AB138: 11862000 | AC138: 2022-01-27 | AD138: 2022-02-01 | AE138: 2022-07-31 | AF138: 180 | AM138: En ejecución | AN138: 1
A139: 122 | B139: 2022 | C139: FDLANCD-122-2022(69416) | D139: https://community.secop.gov.co/Public/Tendering/OpportunityDetail/Index?noticeUID=CO1.NTC.2766544&isFromPublicArea=True&isModal=False | E139: Contratos de prestación de servicios profesionales y de apoyo a la gestión | F139: Contratación directa | G139: Prestación de servicios profesionales y de apoyo a la gestión, o para la ejecución de trabajos artísticos que sólo puedan encomendarse a determinadas personas naturales | H139: Apoyar la gestión documental de la Alcaldía Local en la implementación de los procesos de clasificación, ordenación, selección natural, foliación, identificación, levantamiento de inventarios, almacenamiento y aplicación de protocolos de eliminación y transferencias documentales | I139: Inversión | J139: Un nuevo contrato social y ambiental para la Bogotá del Siglo XXI | K139: 57 | L139: =IF(ISERROR(VLOOKUP(K139,Proposito_programa!$C$2:$E$59,2,FALSE))," ",VLOOKUP(K139,Proposito_programa!$C$2:$E$59,2,FALSE)) -> Gestión pública local | M139: =IF(ISERROR(VLOOKUP(K139,Proposito_programa!$C$2:$E$59,3,FALSE))," ",VLOOKUP(K139,Proposito_programa!$C$2:$E$59,3,FALSE)) -> Propósito 5: Construir Bogotá - Región con gobierno abierto, transparente y ciudadanía consciente | N139: 2198 | O139: 1 | P139: 79558171 | Q139: JHON NEIL CORDOBA PARRA | R139: Persona Natural | W139: 11160000 | AA139: 11160000 | AB139: 11160000 | AC139: 2022-01-27 | AD139: 2022-02-01 | AE139: 2022-07-31 | AF139: 180 | AM139: En ejecución | AN139: 1
A140: 123 | B140: 2022 | C140: FDLAN-CD-123-2022(68263) | D140: https://community.secop.gov.co/Public/Tendering/OpportunityDetail/Index?noticeUID=CO1.NTC.2767917&isFromPublicArea=True&isModal=False | E140: Contratos de prestación de servicios profesionales y de apoyo a la gestión | F140: Contratación directa | G140: Prestación de servicios profesionales y de apoyo a la gestión, o para la ejecución de trabajos artísticos que sólo puedan encomendarse a determinadas personas naturales | H140: Prestación de servicios de apoyo a la gestión en las labores asistenciales del área de gestión policiva, para los distintos procedimientos sancionatorios y trámites administrativos que adelanta el equipo de inspección, vigilancia y control de la Alcaldía Local de Antonio Nariño | I140: Inversión | J140: Un nuevo contrato social y ambiental para la Bogotá del Siglo XXI | K140: 57 | L140: =IF(ISERROR(VLOOKUP(K140,Proposito_programa!$C$2:$E$59,2,FALSE))," ",VLOOKUP(K140,Proposito_programa!$C$2:$E$59,2,FALSE)) -> Gestión pública local | M140: =IF(ISERROR(VLOOKUP(K140,Proposito_programa!$C$2:$E$59,3,FALSE))," ",VLOOKUP(K140,Proposito_programa!$C$2:$E$59,3,FALSE)) -> Propósito 5: Construir Bogotá - Región con gobierno abierto, transparente y ciudadanía consciente | N140: 2189 | O140: 1 | P140: 93399784 | Q140: JUAN CARLOS CASALLAS | R140: Persona Natural | W140: 14760000 | AA140: 14760000 | AB140: 14514000 | AC140: 2022-01-27 | AD140: 2022-02-02 | AE140: 2022-08-03 | AF140: 180 | AM140: En ejecución | AN140: 0.9833333333
A141: 124 | B141: 2022 | C141: FDLANCD-124-2022(66818) | D141: https://community.secop.gov.co/Public/Tendering/OpportunityDetail/Index?noticeUID=CO1.NTC.2770843&isFromPublicArea=True&isModal=False | E141: Contratos de prestación de servicios profesionales y de apoyo a la gestión | F141: Contratación directa | G141: Prestación de servicios profesionales y de apoyo a la gestión, o para la ejecución de trabajos artísticos que sólo puedan encomendarse a determinadas personas naturales | H141: Prestar servicios de apoyo a la gestión del fondo de desarrollo local de Antonio Nariño en los asuntos operativos relacionados con la seguridad, la convivencia y el desarrollo de actividad económica en la localidad, con conformidad con el marco normativo aplicable en la materia. | I141: Inversión | J141: Un nuevo contrato social y ambiental para la Bogotá del Siglo XXI | K141: 57 | L141: =IF(ISERROR(VLOOKUP(K141,Proposito_programa!$C$2:$E$59,2,FALSE))," ",VLOOKUP(K141,Proposito_programa!$C$2:$E$59,2,FALSE)) -> Gestión pública local | M141: =IF(ISERROR(VLOOKUP(K141,Proposito_programa!$C$2:$E$59,3,FALSE))," ",VLOOKUP(K141,Proposito_programa!$C$2:$E$59,3,FALSE)) -> Propósito 5: Construir Bogotá - Región con gobierno abierto, transparente y ciudadanía consciente | N141: 2198 | O141: 1 | P141: 1000120198 | Q141: AARON SIERRA PARDO | R141: Persona Natural | W141: 19680000 | AA141: 19680000 | AB141: 19680000 | AC141: 2022-01-28 | AD141: 2022-02-01 | AE141: 2022-09-30 | AF141: 240 | AM141: En ejecución | AN141: 1
A142: 125 | B142: 2022 | C142: FDLANCD-125-2022(68793) | D142: https://community.secop.gov.co/Public/Tendering/OpportunityDetail/Index?noticeUID=CO1.NTC.2770550&isFromPublicArea=True&isModal=False | E142: Contratos de prestación de servicios profesionales y de apoyo a la gestión | F142: Contratación directa | G142: Prestación de servicios profesionales y de apoyo a la gestión, o para la ejecución de trabajos artísticos que sólo puedan encomendarse a determinadas personas naturales | H142: Prestación de servicios de apoyo para el Fondo de Desarrollo Local de Antonio Nariño para fortalecer el montaje y el buen desarrollo de las actividades culturales y artísticas que brindan a la comunidad en el Teatro Villa Mayor | I142: Inversión | J142: Un nuevo contrato social y ambiental para la Bogotá del Siglo XXI | K142: 57 | L142: =IF(ISERROR(VLOOKUP(K142,Proposito_programa!$C$2:$E$59,2,FALSE))," ",VLOOKUP(K142,Proposito_programa!$C$2:$E$59,2,FALSE)) -> Gestión pública local | M142: =IF(ISERROR(VLOOKUP(K142,Proposito_programa!$C$2:$E$59,3,FALSE))," ",VLOOKUP(K142,Proposito_programa!$C$2:$E$59,3,FALSE)) -> Propósito 5: Construir Bogotá - Región con gobierno abierto, transparente y ciudadanía consciente | N142: 2198 | O142: 1 | P142: 1020724886 | Q142: MARTHA JIMENA RUBIANO CASTRO | R142: Persona Natural | W142: 16740000 | AA142: 16740000 | AB142: 16740000 | AC142: 2022-01-28 | AD142: 2022-02-01 | AE142: 2022-07-31 | AF142: 180 | AM142: En ejecución | AN142: 1
A143: 126 | B143: 2022 | C143: FDLAN-CD-126-2022(68259) | D143: https://community.secop.gov.co/Public/Tendering/OpportunityDetail/Index?noticeUID=CO1.NTC.2786710&isFromPublicArea=True&isModal=False | E143: Contratos de prestación de servicios profesionales y de apoyo a la gestión | F143: Contratación directa | G143: Prestación de servicios profesionales y de apoyo a la gestión, o para la ejecución de trabajos artísticos que sólo puedan encomendarse a determinadas personas naturales | H143: Prestar servicios de apoyo al Fondo de Desarrollo Local de Antonio Nariño en la implementación de estrategias que garanticen la promoción y protección del derecho a la participación democrática de los habitantes de la localidad Antonio Nariño. | I143: Inversión | J143: Un nuevo contrato social y ambiental para la Bogotá del Siglo XXI | K143: 55 | L143: =IF(ISERROR(VLOOKUP(K143,Proposito_programa!$C$2:$E$59,2,FALSE))," ",VLOOKUP(K143,Proposito_programa!$C$2:$E$59,2,FALSE)) -> Fortalecimiento de cultura ciudadana y su institucionalidad | M143: =IF(ISERROR(VLOOKUP(K143,Proposito_programa!$C$2:$E$59,3,FALSE))," ",VLOOKUP(K143,Proposito_programa!$C$2:$E$59,3,FALSE)) -> Propósito 5: Construir Bogotá - Región con gobierno abierto, transparente y ciudadanía consciente | N143: 2190 | O143: 1 | P143: 19179939 | Q143: HECTOR HUGO CORTES LOZANO | R143: Persona Natural | W143: 25560000 | AA143: 25560000 | AB143: 25560000 | AC143: 2022-01-28 | AD143: 2022-02-01 | AE143: 2022-07-31 | AF143: 180 | AM143: En ejecución | AN143: 1
A144: 127 | B144: 2022 | C144: FDLANCD-127-2022(68821) | D144: https://community.secop.gov.co/Public/Tendering/OpportunityDetail/Index?noticeUID=CO1.NTC.2787556&isFromPublicArea=True&isModal=False | E144: Contratos de prestación de servicios profesionales y de apoyo a la gestión | F144: Contratación directa | G144: Prestación de servicios profesionales y de apoyo a la gestión, o para la ejecución de trabajos artísticos que sólo puedan encomendarse a determinadas personas naturales | H144: Apoyar en las tareas operativas de carácter archivístico desarrolladas en la Alcaldía Local para garantizar la aplicación correcta de los procedimientos técnicos. | I144: Inversión | J144: Un nuevo contrato social y ambiental para la Bogotá del Siglo XXI | K144: 57 | L144: =IF(ISERROR(VLOOKUP(K144,Proposito_programa!$C$2:$E$59,2,FALSE))," ",VLOOKUP(K144,Proposito_programa!$C$2:$E$59,2,FALSE)) -> Gestión pública local | M144: =IF(ISERROR(VLOOKUP(K144,Proposito_programa!$C$2:$E$59,3,FALSE))," ",VLOOKUP(K144,Proposito_programa!$C$2:$E$59,3,FALSE)) -> Propósito 5: Construir Bogotá - Región con gobierno abierto, transparente y ciudadanía consciente | N144: 2198 | O144: 1 | P144: 52289797 | Q144: JAKELIN MENDEZ ORJUELA | R144: Persona Natural | W144: 20160000 | AA144: 20160000 | AB144: 20160000 | AC144: 2022-01-28 | AD144: 2022-02-01 | AE144: 2022-07-31 | AF144: 180 | AM144: En ejecución | AN144: 1
A145: 128 | B145: 2022 | C145: FDLANCD-128-2022(69799) | D145: https://community.secop.gov.co/Public/Tendering/OpportunityDetail/Index?noticeUID=CO1.NTC.2789460&isFromPublicArea=True&isModal=False | E145: Contratos de prestación de servicios profesionales y de apoyo a la gestión | F145: Contratación directa | G145: Prestación de servicios profesionales y de apoyo a la gestión, o para la ejecución de trabajos artísticos que sólo puedan encomendarse a determinadas personas naturales | H145: Prestar los servicios profesionales para apoyar el diseño de piezas gráficas, realización, dirección, producción y edición de material videográfico, manejo de redes y cubrimiento de eventos del Teatro Villa Mayor | I145: Inversión | J145: Un nuevo contrato social y ambiental para la Bogotá del Siglo XXI | K145: 57 | L145: =IF(ISERROR(VLOOKUP(K145,Proposito_programa!$C$2:$E$59,2,FALSE))," ",VLOOKUP(K145,Proposito_programa!$C$2:$E$59,2,FALSE)) -> Gestión pública local | M145: =IF(ISERROR(VLOOKUP(K145,Proposito_programa!$C$2:$E$59,3,FALSE))," ",VLOOKUP(K145,Proposito_programa!$C$2:$E$59,3,FALSE)) -> Propósito 5: Construir Bogotá - Región con gobierno abierto, transparente y ciudadanía consciente | N145: 2198 | O145: 1 | P145: 1010216127 | Q145: RUBEN DARIO MONTAÑEZ AGUDELO | R145: Persona Natural | W145: 27720000 | AA145: 27720000 | AB145: 27720000 | AC145: 2022-01-28 | AD145: 2022-02-04 | AE145: 2022-08-05 | AF145: 180 | AI145: 1010216127 | AJ145: RUBEN DARIO MONTAÑEZ AGUDELO | AK145: 2022-02-15 | AL145: 27720000 | AM145: En ejecución | AN145: 1
A146: 129 | B146: 2022 | C146: FDLANCD-129-2022(66712) | D146: https://community.secop.gov.co/Public/Tendering/OpportunityDetail/Index?noticeUID=CO1.NTC.2789388&isFromPublicArea=True&isModal=False | E146: Contratos de prestación de servicios profesionales y de apoyo a la gestión | F146: Contratación directa | G146: Prestación de servicios profesionales y de apoyo a la gestión, o para la ejecución de trabajos artísticos que sólo puedan encomendarse a determinadas personas naturales | H146: Prestacion de servicios de apoyo como auxiliar administrativo en el Área de Gestion de Desarrollo Local, Administrativa y Financiera del Fondo de Desarrollo Local de Antonio Nariño | I146: Inversión | J146: Un nuevo contrato social y ambiental para la Bogotá del Siglo XXI | K146: 57 | L146: =IF(ISERROR(VLOOKUP(K146,Proposito_programa!$C$2:$E$59,2,FALSE))," ",VLOOKUP(K146,Proposito_programa!$C$2:$E$59,2,FALSE)) -> Gestión pública local | M146: =IF(ISERROR(VLOOKUP(K146,Proposito_programa!$C$2:$E$59,3,FALSE))," ",VLOOKUP(K146,Proposito_programa!$C$2:$E$59,3,FALSE)) -> Propósito 5: Construir Bogotá - Región con gobierno abierto, transparente y ciudadanía consciente | N146: 2198 | O146: 1 | P146: 79910314 | Q146: MIGUEL ANGEL PRIETO ZAMUDIO | R146: Persona Natural | W146: 14760000 | AA146: 14760000 | AB146: 14514000 | AC146: 2022-01-28 | AD146: 2022-02-02 | AE146: 2022-07-31 | AF146: 180 | AI146: 79910314 | AJ146: MIGUEL ANGEL PRIETO ZAMUDIO | AK146: 2022-03-01 | AL146: 14760000 | AM146: En ejecución | AN146: 0.9833333333
A147: 130 | B147: 2022 | C147: FDLANCD-130-2022(69416) | D147: https://community.secop.gov.co/Public/Tendering/OpportunityDetail/Index?noticeUID=CO1.NTC.2790852&isFromPublicArea=True&isModal=False | E147: Contratos de prestación de servicios profesionales y de apoyo a la gestión | F147: Contratación directa | G147: Prestación de servicios profesionales y de apoyo a la gestión, o para la ejecución de trabajos artísticos que sólo puedan encomendarse a determinadas personas naturales | H147: Apoyar la gestión documental de la Alcaldía Local en la implementación de los procesos de clasificación, ordenación, selección natural, foliación, identificación, levantamiento de inventarios, almacenamiento y aplicación de protocolos de eliminación y transferencias documentales | I147: Inversión | J147: Un nuevo contrato social y ambiental para la Bogotá del Siglo XXI | K147: 57 | L147: =IF(ISERROR(VLOOKUP(K147,Proposito_programa!$C$2:$E$59,2,FALSE))," ",VLOOKUP(K147,Proposito_programa!$C$2:$E$59,2,FALSE)) -> Gestión pública local | M147: =IF(ISERROR(VLOOKUP(K147,Proposito_programa!$C$2:$E$59,3,FALSE))," ",VLOOKUP(K147,Proposito_programa!$C$2:$E$59,3,FALSE)) -> Propósito 5: Construir Bogotá - Región con gobierno abierto, transparente y ciudadanía consciente | N147: 2198 | O147: 1 | P147: 52015276 | Q147: AMPARO RAMIREZ CASTILLO | R147: Persona Natural | W147: 11160000 | AA147: 11160000 | AB147: 11160000 | AC147: 2022-01-28 | AD147: 2022-02-01 | AE147: 2022-07-31 | AF147: 180 | AM147: En ejecución | AN147: 1
A148: 131 | B148: 2022 | C148: FDLANCD-131-2022(67741) | D148: https://community.secop.gov.co/Public/Tendering/OpportunityDetail/Index?noticeUID=CO1.NTC.2794137&isFromPublicArea=True&isModal=False | E148: Contratos de prestación de servicios profesionales y de apoyo a la gestión | F148: Contratación directa | G148: Prestación de servicios profesionales y de apoyo a la gestión, o para la ejecución de trabajos artísticos que sólo puedan encomendarse a determinadas personas naturales | H148: Apoyar al equipo de prensa y comunicaciones de la Alcaldía Local en la realización y publicación de contenidos de redes sociales y canales de divulgación digital (sitio web) de la Alcaldía local. | I148: Inversión | J148: Un nuevo contrato social y ambiental para la Bogotá del Siglo XXI | K148: 57 | L148: =IF(ISERROR(VLOOKUP(K148,Proposito_programa!$C$2:$E$59,2,FALSE))," ",VLOOKUP(K148,Proposito_programa!$C$2:$E$59,2,FALSE)) -> Gestión pública local | M148: =IF(ISERROR(VLOOKUP(K148,Proposito_programa!$C$2:$E$59,3,FALSE))," ",VLOOKUP(K148,Proposito_programa!$C$2:$E$59,3,FALSE)) -> Propósito 5: Construir Bogotá - Región con gobierno abierto, transparente y ciudadanía consciente | N148: 2198 | O148: 1 | P148: 1022367369 | Q148: NATHALIA VASQUEZ CARDENAS | R148: Persona Natural | W148: 31032000 | AA148: 31032000 | AB148: 31032000 | AC148: 2022-01-28 | AD148: 2022-02-04 | AE148: 2022-08-05 | AF148: 180 | AM148: En ejecución | AN148: =IF(ISERROR(AB148/AA148),"-",(AB148/AA148)) -> 1
A149: 132 | B149: 2022 | C149: FDLANCD-132-2022(69416) | D149: https://community.secop.gov.co/Public/Tendering/OpportunityDetail/Index?noticeUID=CO1.NTC.2792204&isFromPublicArea=True&isModal=False | E149: Contratos de prestación de servicios profesionales y de apoyo a la gestión | F149: Contratación directa | G149: Prestación de servicios profesionales y de apoyo a la gestión, o para la ejecución de trabajos artísticos que sólo puedan encomendarse a determinadas personas naturales | H149: Apoyar la gestión documental de la Alcaldía Local en la implementación de los procesos de clasificación, ordenación, selección natural, foliación, identificación, levantamiento de inventarios, almacenamiento y aplicación de protocolos de eliminación y transferencias documentales | I149: Inversión | J149: Un nuevo contrato social y ambiental para la Bogotá del Siglo XXI | K149: 57 | L149: =IF(ISERROR(VLOOKUP(K149,Proposito_programa!$C$2:$E$59,2,FALSE))," ",VLOOKUP(K149,Proposito_programa!$C$2:$E$59,2,FALSE)) -> Gestión pública local | M149: =IF(ISERROR(VLOOKUP(K149,Proposito_programa!$C$2:$E$59,3,FALSE))," ",VLOOKUP(K149,Proposito_programa!$C$2:$E$59,3,FALSE)) -> Propósito 5: Construir Bogotá - Región con gobierno abierto, transparente y ciudadanía consciente | N149: 2198 | O149: 1 | P149: 39677722 | Q149: SILVIA MILENA NIETO | R149: Persona Natural | W149: 11160000 | AA149: 11160000 | AB149: 11160000 | AC149: 2022-01-28 | AD149: 2022-02-01 | AE149: 2022-07-31 | AF149: 180 | AM149: En ejecución | AN149: 1
A150: 133 | B150: 2022 | C150: FDLANCD-133-2022 (68232) | D150: https://community.secop.gov.co/Public/Tendering/OpportunityDetail/Index?noticeUID=CO1.NTC.2795362&isFromPublicArea=True&isModal=False | E150: Contratos de prestación de servicios profesionales y de apoyo a la gestión | F150: Contratación directa | G150: Prestación de servicios profesionales y de apoyo a la gestión, o para la ejecución de trabajos artísticos que sólo puedan encomendarse a determinadas personas naturales | H150: Apoyar administrativa y asistencialmente a las Inspecciones de Policía de la Localidad. | I150: Inversión | J150: Un nuevo contrato social y ambiental para la Bogotá del Siglo XXI | K150: 57 | L150: =IF(ISERROR(VLOOKUP(K150,Proposito_programa!$C$2:$E$59,2,FALSE))," ",VLOOKUP(K150,Proposito_programa!$C$2:$E$59,2,FALSE)) -> Gestión pública local | M150: =IF(ISERROR(VLOOKUP(K150,Proposito_programa!$C$2:$E$59,3,FALSE))," ",VLOOKUP(K150,Proposito_programa!$C$2:$E$59,3,FALSE)) -> Propósito 5: Construir Bogotá - Región con gobierno abierto, transparente y ciudadanía consciente | N150: 2189 | O150: 1 | P150: 80206518 | Q150: EDWIN HARVEY GUTIERREZ LOZANO | R150: Persona Natural | W150: 11286000 | AA150: 11286000 | AB150: 9405000 | AC150: 2022-01-28 | AD150: 2022-02-01 | AE150: 2022-07-31 | AF150: 180 | AM150: En ejecución | AN150: 0.8333333333
A151: 134 | B151: 2022 | C151: FDLAN-SAMC-001-2022 | D151: https://community.secop.gov.co/Public/Tendering/OpportunityDetail/Index?noticeUID=CO1.NTC.2851463&isFromPublicArea=True&isModal=False | E151: Otros | F151: Selección abreviada | G151: Selección abreviada por menor cuantía | H151: PRESTACIÓN DEL SERVICIO DE VIGILANCIA Y SEGURIDAD PRIVADA PARA LA SEDE ADMINISTRATIVA DE LA ALCALDÍA LOCAL DE ANTONIO NARIÑO, EL TEATRO VILLA MAYOR Y EL SALÓN COMUNAL DE LA FRAGUA Y DE TODOS AQUELLOS DE LOS CUALES SEA O LLEGARE A SER LEGALMENTE RESPONSABLES | I151: Funcionamiento | J151: Un nuevo contrato social y ambiental para la Bogotá del Siglo XXI | L151: =IF(ISERROR(VLOOKUP(K151,Proposito_programa!$C$2:$E$59,2,FALSE))," ",VLOOKUP(K151,Proposito_programa!$C$2:$E$59,2,FALSE)) ->  | M151: =IF(ISERROR(VLOOKUP(K151,Proposito_programa!$C$2:$E$59,3,FALSE))," ",VLOOKUP(K151,Proposito_programa!$C$2:$E$59,3,FALSE)) ->  | N151: 5250 | O151: 30 | P151: 860526793 | Q151: PROTECCION VIGILANCIA SEGURIDAD EN REORGANIZACION | R151: Persona Jurídica | W151: 264481261 | Y151: 1 | Z151: 43460282 | AA151: 307941543 | AB151: 232743513 | AC151: 2022-03-15 | AD151: 2022-03-18 | AE151: 2022-11-30 | AF151: 250 | AM151: En ejecución | AN151: 0.7558042047
A152: 135 | B152: 2022 | C152: FDLAN-CMA-001-2022 | D152: https://community.secop.gov.co/Public/Tendering/OpportunityDetail/Index?noticeUID=CO1.NTC.2864324&isFromPublicArea=True&isModal=False | E152: Consultoría | F152: Concurso de méritos | G152: No aplica | H152: CONTRATAR LOS SERVICIOS ESPECIALIZADOS DE INTERMEDIACIÓN DE SEGUROS Y ASESORÍA PARA LA FORMULACIÓN Y EL MANEJO DEL PROCESO DE SEGUROS, DESTINADOS A PROTEGER LAS PERSONAS, BIENES E INTERESES PATRIMONIALES DEL FONDO DE DESARROLLO LOCAL DE ANTONIO NARIÑO O AQUELLOS POR LOS QUE SEA LEGALMENTE RESPONSABLE | I152: Funcionamiento | J152: Un nuevo contrato social y ambiental para la Bogotá del Siglo XXI | L152: =IF(ISERROR(VLOOKUP(K152,Proposito_programa!$C$2:$E$59,2,FALSE))," ",VLOOKUP(K152,Proposito_programa!$C$2:$E$59,2,FALSE)) ->  | M152: =IF(ISERROR(VLOOKUP(K152,Proposito_programa!$C$2:$E$59,3,FALSE))," ",VLOOKUP(K152,Proposito_programa!$C$2:$E$59,3,FALSE)) ->  | N152: 0 | O152: 4 | P152: 900357596 | Q152: CAF ASESORES DE SEGUROS LTDA | R152: Persona Jurídica | W152: 0 | AA152: =+W152+X152+Z152 -> 0 | AB152: 0 | AC152: 2022-03-25 | AD152: 2022-03-28 | AE152: 2023-03-27 | AF152: 365 | AM152: En ejecución | AN152: -
A153: 136 | B153: 2022 | C153: FDLAN-MC-001-2022(71872) | D153: https://community.secop.gov.co/Public/Tendering/OpportunityDetail/Index?noticeUID=CO1.NTC.2891206&isFromPublicArea=True&isModal=False | E153: Otros | F153: Contratación mínima cuantia | G153: No aplica | H153: CONTRATAR BAJO LA MODALIDAD DE PRECIOS UNITARIOS FIJOS A MONTO AGOTABLE Y SIN FÓRMULA DE REAJUSTE, LAS OBRAS REQUERIDAS PARA EL MANTENIMIENTO DEL TEATRO VILLA MAYOR UBICADO EN LA LOCALIDAD ANTONIO NARIÑO | I153: Inversión | J153: Un nuevo contrato social y ambiental para la Bogotá del Siglo XXI | K153: 21 | L153: =IF(ISERROR(VLOOKUP(K153,Proposito_programa!$C$2:$E$59,2,FALSE))," ",VLOOKUP(K153,Proposito_programa!$C$2:$E$59,2,FALSE)) -> Creación y vida cotidiana: Apropiación ciudadana del arte, la cultura y el patrimonio, para la democracia cultural | M153: =IF(ISERROR(VLOOKUP(K153,Proposito_programa!$C$2:$E$59,3,FALSE))," ",VLOOKUP(K153,Proposito_programa!$C$2:$E$59,3,FALSE)) -> Propósito 1: Hacer un nuevo contrato social para incrementar la inclusión social, productiva y política | N153: 2201 | O153: 4 | P153: 901288767 | Q153: MAPPER CONSULTORA S.A.S. | R153: Persona Jurídica | W153: 28000000 | AA153: 28000000 | AB153: 27999932 | AC153: 2022-04-08 | AD153: 2022-04-25 | AE153: 2022-05-17 | AF153: 30 | AM153: En ejecución | AN153: 0.9999975714
A154: 137 | B154: 2022 | C154: FDLAN-MC-002-2022 (71881) | D154: https://community.secop.gov.co/Public/Tendering/OpportunityDetail/Index?noticeUID=CO1.NTC.2892922&isFromPublicArea=True&isModal=False | E154: Contratos de prestación de servicios | F154: Contratación mínima cuantia | G154: No aplica | H154: CONTRATAR EL SERVICIO DE OUTSOURCING DE MAQUINAS FOTOCOPIADORAS MULTIFUNCIONALES, INCLUIDO SU MANTENIMIENTO PREVENTIVO Y CORRECTIVO, SOPORTE TÉCNICO, REPUESTOS E INSUMOS REQUERIDOS POR LAS MISMAS Y DISPOSICIÓN FINAL DE LOS MISMOS, PARA SER INSTALADAS EN LAS DIFERENTES DEPENDENCIAS DE LA ALCALDÍA LOCAL DE ANTONIO NARIÑO, DE CONFORMIDAD CON LAS ESPECIFICACIONES TÉCNICAS | I154: Funcionamiento | J154: Un nuevo contrato social y ambiental para la Bogotá del Siglo XXI | L154: =IF(ISERROR(VLOOKUP(K154,Proposito_programa!$C$2:$E$59,2,FALSE))," ",VLOOKUP(K154,Proposito_programa!$C$2:$E$59,2,FALSE)) ->  | M154: =IF(ISERROR(VLOOKUP(K154,Proposito_programa!$C$2:$E$59,3,FALSE))," ",VLOOKUP(K154,Proposito_programa!$C$2:$E$59,3,FALSE)) ->  | N154: 5951 | O154: 2 | P154: 9004553145 | Q154: NEW COPIERS TECNOLOGY LTDA | R154: Persona Jurídica | W154: 18659200 | Y154: 2 | Z154: 7285973 | AA154: 25945173 | AB154: 15993600 | AC154: 2022-04-21 | AD154: 2022-06-26 | AE154: 2023-02-16 | AF154: 210 | AM154: En ejecución | AN154: 0.6164383641
A155: 138 | B155: 2022 | C155: FDLAN-SAMC-002-2022 | D155: https://community.secop.gov.co/Public/Tendering/OpportunityDetail/Index?noticeUID=CO1.NTC.2910510&isFromPublicArea=True&isModal=False | E155: Seguro | F155: Selección abreviada | G155: Selección abreviada por menor cuantía | H155: CONTRATAR LOS SEGUROS QUE AMPAREN LOS INTERESES PATRIMONIALES ACTUALES Y FUTUROS, ASÍ COMO LOS BIENES DE PROPIEDAD DEL FONDO DE DESARROLLO LOCAL DE ANTONIO NARIÑO, QUE ESTÉN BAJO SU RESPONSABILIDAD Y CUSTODIA Y AQUELLOS QUE SEAN ADQUIRIDOS PARA DESARROLLAR LAS FUNCIONES INHERENTES A SU ACTIVIDAD, ASÍ COMO LA EXPEDICIÓN DE UNA PÓLIZA COLECTIVA DE SEGURO DE VIDA PARA LOS EDILES DE LA LOCALIDAD Y CUALQUIER OTRA PÓLIZA DE SEGUROS QUE REQUIERA LA ENTIDAD EN EL DESARROLLO DE SU ACTIVIDAD | I155: Funcionamiento | J155: Un nuevo contrato social y ambiental para la Bogotá del Siglo XXI | L155: =IF(ISERROR(VLOOKUP(K155,Proposito_programa!$C$2:$E$59,2,FALSE))," ",VLOOKUP(K155,Proposito_programa!$C$2:$E$59,2,FALSE)) ->  | M155: =IF(ISERROR(VLOOKUP(K155,Proposito_programa!$C$2:$E$59,3,FALSE))," ",VLOOKUP(K155,Proposito_programa!$C$2:$E$59,3,FALSE)) ->  | N155: 1311 | O155: 1 | P155: 860002400 | Q155: LA PREVISORA S.A. COMPAÑIA DE SEGUROS | R155: Persona Jurídica | W155: 56697033 | Y155: 2 | Z155: 13447834 | AA155: 70144867 | AB155: 56697033 | AC155: 2022-05-02 | AD155: 2022-05-04 | AE155: 2022-12-07 | AF155: 216 | AM155: En ejecución | AN155: 0.8082848457
A156: 139 | B156: 2022 | C156: FDLAN-SAMC-003-2022 (71831) | D156: https://community.secop.gov.co/Public/Tendering/OpportunityDetail/Index?noticeUID=CO1.NTC.2946702&isFromPublicArea=True&isModal=False | E156: Obra pública | F156: Selección abreviada | G156: Selección abreviada por menor cuantía | H156: CONTRATAR BAJO LA MODALIDAD DE PRECIOS UNITARIOS FIJOS A MONTO AGOTABLE Y SIN FÓRMULA DE REAJUSTE, LAS OBRAS REQUERIDAS PARA EL MANTENIMIENTO Y CONSERVACIÓN DE SALONES COMUNALES UBICADOS EN LA LOCALIDAD ANTONIO NARIÑO | I156: Inversión | J156: Un nuevo contrato social y ambiental para la Bogotá del Siglo XXI | K156: 55 | L156: =IF(ISERROR(VLOOKUP(K156,Proposito_programa!$C$2:$E$59,2,FALSE))," ",VLOOKUP(K156,Proposito_programa!$C$2:$E$59,2,FALSE)) -> Fortalecimiento de cultura ciudadana y su institucionalidad | M156: =IF(ISERROR(VLOOKUP(K156,Proposito_programa!$C$2:$E$59,3,FALSE))," ",VLOOKUP(K156,Proposito_programa!$C$2:$E$59,3,FALSE)) -> Propósito 5: Construir Bogotá - Región con gobierno abierto, transparente y ciudadanía consciente | N156: 2190 | O156: 5 | P156: 901288767 | Q156: MAPPER CONSULTORA S.A.S. | R156: Persona Jurídica | W156: 161380000 | AA156: 161380000 | AB156: 130349050 | AC156: 2022-06-07 | AD156: 2022-08-29 | AE156: 2022-10-28 | AF156: 60 | AM156: En ejecución | AN156: 0.8077150204
A157: 140 | B157: 2022 | C157: FDLAN-MC-003-2022 (72846) | D157: https://community.secop.gov.co/Public/Tendering/OpportunityDetail/Index?noticeUID=CO1.NTC.2991257&isFromPublicArea=True&isModal=False | E157: Compraventa de bienes muebles | F157: Contratación mínima cuantia | G157: No aplica | H157: ADQUISICIÓN DE INSUMOS A MONTO AGOTABLE, NECESARIOS PARA SEPARACIÓN EN LA FUENTE Y RECICLAJE, EN CUMPLIMIENTO DEL PROYECTO 2210 ACCIONES QUE FOMENTAN EL CAMBIO DE HÁBITOS Y MEJORAMIENTO DE LAS CONDICIONES AMBIENTALES EN LA LOCALIDAD DE ANTONIO. | I157: Inversión | J157: Un nuevo contrato social y ambiental para la Bogotá del Siglo XXI | K157: 38 | L157: =IF(ISERROR(VLOOKUP(K157,Proposito_programa!$C$2:$E$59,2,FALSE))," ",VLOOKUP(K157,Proposito_programa!$C$2:$E$59,2,FALSE)) -> Ecoeficiencia, reciclaje, manejo de residuos e inclusión de la población recicladora | M157: =IF(ISERROR(VLOOKUP(K157,Proposito_programa!$C$2:$E$59,3,FALSE))," ",VLOOKUP(K157,Proposito_programa!$C$2:$E$59,3,FALSE)) -> Propósito 2 : Cambiar Nuestros Hábitos de Vida para Reverdecer a Bogotá y Adaptarnos y Mitigar la Crisis Climática | N157: 2210 | O157: 5 | P157: 900975944 | Q157: FEC SUMINISTROS Y SERVICIOS SAS | R157: Persona Jurídica | W157: 26930000 | AA157: 26930000 | AB157: 0 | AC157: 2022-06-07 | AD157: 2022-08-08 | AE157: 2022-11-05 | AF157: 30 | AM157: En ejecución | AN157: 0
A158: 141 | B158: 2022 | C158: FDLAN-CD-141-2022(73901) | D158: https://community.secop.gov.co/Public/Tendering/OpportunityDetail/Index?noticeUID=CO1.NTC.3031006&isFromPublicArea=True&isModal=False | E158: Contratos de prestación de servicios profesionales y de apoyo a la gestión | F158: Contratación directa | G158: Prestación de servicios profesionales y de apoyo a la gestión, o para la ejecución de trabajos artísticos que sólo puedan encomendarse a determinadas personas naturales | H158: PRESTAR SERVICIOS PROFESIONALES DE APOYO EN LOS PROCESOS ADMINISTRATIVOS, CONTABLES Y FINANCIEROS EN EL FONDO DE DESARROLLO LOCAL DE ANTONIO NARIÑO EN EL MARCO DE LAS NORMAS DE DERECHO CONTABLE, DE SEGURIDAD SOCIAL Y LOS PROCEDIMIENTOS VIGENTES | I158: Inversión | J158: Un nuevo contrato social y ambiental para la Bogotá del Siglo XXI | K158: 57 | L158: =IF(ISERROR(VLOOKUP(K158,Proposito_programa!$C$2:$E$59,2,FALSE))," ",VLOOKUP(K158,Proposito_programa!$C$2:$E$59,2,FALSE)) -> Gestión pública local | M158: =IF(ISERROR(VLOOKUP(K158,Proposito_programa!$C$2:$E$59,3,FALSE))," ",VLOOKUP(K158,Proposito_programa!$C$2:$E$59,3,FALSE)) -> Propósito 5: Construir Bogotá - Región con gobierno abierto, transparente y ciudadanía consciente | N158: 2198 | O158: 1 | P158: 1022342284 | Q158: YULY ANDREA SOLANO GUERRERO | R158: Persona Natural | W158: 27000000 | Y158: 1 | Z158: 5940000 | AA158: 32940000 | AB158: 24840000 | AC158: 2022-07-12 | AD158: 2022-07-13 | AE158: 2023-01-15 | AF158: 150 | AM158: En ejecución | AN158: 0.7540983607
A159: 142 | B159: 2022 | C159: FDLAN-CD-142-2022(73957) | D159: https://community.secop.gov.co/Public/Tendering/OpportunityDetail/Index?noticeUID=CO1.NTC.3031764&isFromPublicArea=True&isModal=False | E159: Contratos de prestación de servicios profesionales y de apoyo a la gestión | F159: Contratación directa | G159: Prestación de servicios profesionales y de apoyo a la gestión, o para la ejecución de trabajos artísticos que sólo puedan encomendarse a determinadas personas naturales | H159: PRESTACIÓN DE SERVICIOS DE APOYO EN EL MANEJO DE SISTEMAS DE INFORMACIÓN EN LO RELACIONADO CON LA CONTRATACIÓN QUE REALIZA EL ÁREA DE GESTIÓN DE DESARROLLO DEL FONDO DE DESARROLLO LOCAL DE ANTONIO NARIÑO. | I159: Inversión | J159: Un nuevo contrato social y ambiental para la Bogotá del Siglo XXI | K159: 57 | L159: =IF(ISERROR(VLOOKUP(K159,Proposito_programa!$C$2:$E$59,2,FALSE))," ",VLOOKUP(K159,Proposito_programa!$C$2:$E$59,2,FALSE)) -> Gestión pública local | M159: =IF(ISERROR(VLOOKUP(K159,Proposito_programa!$C$2:$E$59,3,FALSE))," ",VLOOKUP(K159,Proposito_programa!$C$2:$E$59,3,FALSE)) -> Propósito 5: Construir Bogotá - Región con gobierno abierto, transparente y ciudadanía consciente | N159: 2198 | O159: 1 | P159: 80793701 | Q159: JAIME ERNESTO ALARCON LOPEZ | R159: Persona Natural | W159: 12300000 | AA159: 12300000 | AB159: 11234000 | AC159: 2022-07-13 | AD159: 2022-07-14 | AE159: 2022-12-13 | AF159: 150 | AM159: En ejecución | AN159: 0.9133333333
A160: 143 | B160: 2022 | C160: FDLAN-CD-143-2022-CPS-P (73784) | D160: https://community.secop.gov.co/Public/Tendering/OpportunityDetail/Index?noticeUID=CO1.NTC.3036988&isFromPublicArea=True&isModal=False | E160: Contratos de prestación de servicios profesionales y de apoyo a la gestión | F160: Contratación directa | G160: Prestación de servicios profesionales y de apoyo a la gestión, o para la ejecución de trabajos artísticos que sólo puedan encomendarse a determinadas personas naturales | H160: PRESTACIÓN DE SERVICIOS PROFESIONALES COMO ABOGADO PARA APOYAR LA ESTRUCTURACIÓN, SEGUIMIENTO Y CONTROL DE PROCESOS CONTRACTUALES QUE DERIVEN DEL PROYECTO DE INVERSIÓN 2201 CONFORME A LAS ACCIONES DE FOMENTO Y PROMOCIÓN DE ACTIVIDADES ARTÍSTICAS, INTERCULTURALES, CULTURALES Y/O PATRIMONIALES DE LA LOCALIDAD DE ANTONIO NARIÑO | I160: Inversión | J160: Un nuevo contrato social y ambiental para la Bogotá del Siglo XXI | K160: 21 | L160: =IF(ISERROR(VLOOKUP(K160,Proposito_programa!$C$2:$E$59,2,FALSE))," ",VLOOKUP(K160,Proposito_programa!$C$2:$E$59,2,FALSE)) -> Creación y vida cotidiana: Apropiación ciudadana del arte, la cultura y el patrimonio, para la democracia cultural | M160: =IF(ISERROR(VLOOKUP(K160,Proposito_programa!$C$2:$E$59,3,FALSE))," ",VLOOKUP(K160,Proposito_programa!$C$2:$E$59,3,FALSE)) -> Propósito 1: Hacer un nuevo contrato social para incrementar la inclusión social, productiva y política | N160: 2201 | O160: 1 | P160: 79696837 | Q160: EDWIN GUILLERMO MOLINA CARDONA | R160: Persona Natural | W160: 27000000 | Y160: 1 | Z160: 2880000 | AA160: 29880000 | AB160: 24480000 | AC160: 2022-07-14 | AD160: 2022-07-15 | AE160: 2022-12-30 | AF160: 150 | AG160: 1 | AH160: 16 | AM160: En ejecución | AN160: 0.8192771084
A161: 144 | B161: 2022 | C161: FDLANCD-144-2022-CPS(73903) | D161: https://community.secop.gov.co/Public/Tendering/OpportunityDetail/Index?noticeUID=CO1.NTC.3037323&isFromPublicArea=True&isModal=False | E161: Contratos de prestación de servicios profesionales y de apoyo a la gestión | F161: Contratación directa | G161: Prestación de servicios profesionales y de apoyo a la gestión, o para la ejecución de trabajos artísticos que sólo puedan encomendarse a determinadas personas naturales | H161: APOYAR AL EQUIPO DE PRENSA Y COMUNICACIONES DE LA ALCALDÍA LOCAL EN LA REALIZACIÓN DE PRODUCTOS Y PIEZAS DIGITALES, IMPRESAS Y PUBLICITARIAS DE GRAN FORMATO Y DE ANIMACIÓN GRÁFICA, ASÍ COMO APOYAR LA PRODUCCIÓN Y MONTAJE DE EVENTOS | I161: Inversión | J161: Un nuevo contrato social y ambiental para la Bogotá del Siglo XXI | K161: 57 | L161: =IF(ISERROR(VLOOKUP(K161,Proposito_programa!$C$2:$E$59,2,FALSE))," ",VLOOKUP(K161,Proposito_programa!$C$2:$E$59,2,FALSE)) -> Gestión pública local | M161: =IF(ISERROR(VLOOKUP(K161,Proposito_programa!$C$2:$E$59,3,FALSE))," ",VLOOKUP(K161,Proposito_programa!$C$2:$E$59,3,FALSE)) -> Propósito 5: Construir Bogotá - Región con gobierno abierto, transparente y ciudadanía consciente | N161: 2198 | O161: 1 | P161: 1018456962 | Q161: JUAN CAMILO MONTENEGRO SANCHEZ | R161: Persona Natural | W161: 23100000 | Z161: 2464000 | AA161: =+W161+X161+Z161 -> 25564000 | AB161: 20944000 | AC161: 2022-07-14 | AD161: 2022-07-15 | AE161: 2022-12-30 | AF161: 150 | AG161: 1 | AH161: 16 | AM161: En ejecución | AN161: 0.8192771084
A162: 145 | B162: 2022 | C162: FDLANCD-145-2022 (73854) | D162: https://community.secop.gov.co/Public/Tendering/OpportunityDetail/Index?noticeUID=CO1.NTC.3040659&isFromPublicArea=True&isModal=False | E162: Contratos de prestación de servicios profesionales y de apoyo a la gestión | F162: Contratación directa | G162: Prestación de servicios profesionales y de apoyo a la gestión, o para la ejecución de trabajos artísticos que sólo puedan encomendarse a determinadas personas naturales | H162: PRESTACIÓN DE SERVICIOS PROFESIONALES COMO APOYO EN LA FORMULACIÓN, SEGUIMIENTO, SUPERVISIÓN Y LIQUIDACIÓN DE PROYECTOS DE OBRA E INFRAESTRUCTURA RELACIONADOS CON MALLA VIAL Y ESPACIO PÚBLICO EN LA LOCALIDAD ANTONIO NARIÑO. | I162: Inversión | J162: Un nuevo contrato social y ambiental para la Bogotá del Siglo XXI | K162: 49 | L162: =IF(ISERROR(VLOOKUP(K162,Proposito_programa!$C$2:$E$59,2,FALSE))," ",VLOOKUP(K162,Proposito_programa!$C$2:$E$59,2,FALSE)) -> Movilidad segura, sostenible y accesible | M162: =IF(ISERROR(VLOOKUP(K162,Proposito_programa!$C$2:$E$59,3,FALSE))," ",VLOOKUP(K162,Proposito_programa!$C$2:$E$59,3,FALSE)) -> Propósito 4: Hacer de Bogotá Región un modelo de movilidad multimodal, incluyente y sostenible | N162: 2186 | O162: 1 | P162: 1074133645 | Q162: MANUEL EDUARDO ALVAREZ VANEGAS | R162: Persona Natural | W162: 32400000 | Y162: 1 | Z162: 3200000 | AA162: =+W162+X162+Z162 -> 35600000 | AB162: 26600000 | AC162: 2022-07-15 | AD162: 2022-07-18 | AE162: 2022-12-29 | AF162: 162 | AG162: 1 | AH162: 16 | AM162: En ejecución | AN162: 0.7471910112
A163: 146 | B163: 2022 | C163: FDLANCD-146-2022 (73868) | D163: https://community.secop.gov.co/Public/Tendering/OpportunityDetail/Index?noticeUID=CO1.NTC.3042277&isFromPublicArea=True&isModal=False | E163: Contratos de prestación de servicios profesionales y de apoyo a la gestión | F163: Contratación directa | G163: Prestación de servicios profesionales y de apoyo a la gestión, o para la ejecución de trabajos artísticos que sólo puedan encomendarse a determinadas personas naturales | H163: PRESTACIÓN DE SERVICIOS PROFESIONALES AL ÁREA DE GESTIÓN DE DESARROLLO LOCAL ANTONIO NARIÑO PARA APOYAR LA FORMULACIÓN, SOCIALIZACIÓN Y SEGUIMIENTO DE LOS PROGRAMAS Y PROYECTOS DE INVERSIÓN, RELACIONADOS CON LA INFRAESTRUCTURA DEL FONDO, NECESARIOS PARA EL CUMPLIMIENTO DEL PLAN DE DESARROLLO LOCAL. | I163: Inversión | J163: Un nuevo contrato social y ambiental para la Bogotá del Siglo XXI | K163: 33 | L163: =IF(ISERROR(VLOOKUP(K163,Proposito_programa!$C$2:$E$59,2,FALSE))," ",VLOOKUP(K163,Proposito_programa!$C$2:$E$59,2,FALSE)) -> Más árboles y más y mejor espacio público | M163: =IF(ISERROR(VLOOKUP(K163,Proposito_programa!$C$2:$E$59,3,FALSE))," ",VLOOKUP(K163,Proposito_programa!$C$2:$E$59,3,FALSE)) -> Propósito 2 : Cambiar Nuestros Hábitos de Vida para Reverdecer a Bogotá y Adaptarnos y Mitigar la Crisis Climática | N163: 2207 | O163: 1 | P163: 19272504 | Q163: CESAR AUGUSTO LARA RUGELES | R163: Persona Natural | W163: 23870000 | AA163: =+W163+X163+Z163 -> 23870000 | AB163: 20482000 | AC163: 2022-07-15 | AD163: 2022-07-18 | AE163: 2022-12-22 | AF163: 155 | AM163: En ejecución | AN163: 0.8580645161
A164: 147 | B164: 2022 | C164: FDLANCD-147-2022 (73802) | D164: https://community.secop.gov.co/Public/Tendering/OpportunityDetail/Index?noticeUID=CO1.NTC.3046713&isFromPublicArea=True&isModal=False | E164: Contratos de prestación de servicios profesionales y de apoyo a la gestión | F164: Contratación directa | G164: Prestación de servicios profesionales y de apoyo a la gestión, o para la ejecución de trabajos artísticos que sólo puedan encomendarse a determinadas personas naturales | H164: PRESTACIÓN DE SERVICIOS PROFESIONALES COMO ABOGADO PARA APOYAR LA ESTRUCTURACIÓN, SEGUIMIENTO Y CONTROL DE PROCESOS CONTRACTUALES QUE DERIVEN DEL PROYECTO DE INVERSIÓN 2191 CONFORME A LAS ACCIONES INTEGRALES PARA LA PRODUCTIVIDAD Y EMPRENDIMIENTO DEL FONDO DE DESARROLLO LOCAL DE ANTONIO NARIÑO. | I164: Inversión | J164: Un nuevo contrato social y ambiental para la Bogotá del Siglo XXI | K164: 6 | L164: =IF(ISERROR(VLOOKUP(K164,Proposito_programa!$C$2:$E$59,2,FALSE))," ",VLOOKUP(K164,Proposito_programa!$C$2:$E$59,2,FALSE)) -> Sistema Distrital de Cuidado | M164: =IF(ISERROR(VLOOKUP(K164,Proposito_programa!$C$2:$E$59,3,FALSE))," ",VLOOKUP(K164,Proposito_programa!$C$2:$E$59,3,FALSE)) -> Propósito 1: Hacer un nuevo contrato social para incrementar la inclusión social, productiva y política | N164: 2191 | O164: 1 | P164: 1094906434 | Q164: SANTIAGO DUQUE TABARES | R164: Persona Natural | W164: 27000000 | Y164: 1 | Z164: 1620000 | AA164: =+W164+X164+Z164 -> 28620000 | AB164: 7020000 | AC164: 2022-07-19 | AD164: 2022-07-22 | AE164: 2022-12-30 | AF164: 150 | AG164: 1 | AH164: 25 | AI164: 1128447239 | AJ164: LUDWING FABIAN ABRIL GRANADOS | AK164: 2022-11-28 | AL164: $ 27.000.000 | AM164: En ejecución | AN164: 0.2452830189
A165: 148 | B165: 2022 | C165: FDLAN-CD-148-2022(73806) | D165: https://community.secop.gov.co/Public/Tendering/OpportunityDetail/Index?noticeUID=CO1.NTC.3047816&isFromPublicArea=True&isModal=False | E165: Contratos de prestación de servicios profesionales y de apoyo a la gestión | F165: Contratación directa | G165: Prestación de servicios profesionales y de apoyo a la gestión, o para la ejecución de trabajos artísticos que sólo puedan encomendarse a determinadas personas naturales | H165: PRESTACIÓN DE SERVICIOS PROFESIONALES COMO ABOGADO PARA APOYAR LA ESTRUCTURACIÓN, SEGUIMIENTO Y CONTROL DE PROCESOS CONTRACTUALES QUE DERIVEN DEL PROYECTO DE INVERSIÓN 2200 CONFORME A LAS ACCIONES DE FOMENTO Y PROMOCIÓN DE ACTIVIDADES EN EL CAMPO DEPORTIVO DEL FONDO DE DESARROLLO LOCAL DE ANTONIO NARIÑO | I165: Inversión | J165: Un nuevo contrato social y ambiental para la Bogotá del Siglo XXI | K165: 20 | L165: =IF(ISERROR(VLOOKUP(K165,Proposito_programa!$C$2:$E$59,2,FALSE))," ",VLOOKUP(K165,Proposito_programa!$C$2:$E$59,2,FALSE)) -> Bogotá, referente en cultura, deporte, recreación y actividad física, con parques para el desarrollo y la salud | M165: =IF(ISERROR(VLOOKUP(K165,Proposito_programa!$C$2:$E$59,3,FALSE))," ",VLOOKUP(K165,Proposito_programa!$C$2:$E$59,3,FALSE)) -> Propósito 1: Hacer un nuevo contrato social para incrementar la inclusión social, productiva y política | N165: 2200 | O165: 1 | P165: 1019002889 | Q165: EFREY ARMANDO SANABRIA MORENO | R165: Persona Natural | W165: 27000000 | AA165: =+W165+X165+Z165 -> 27000000 | AB165: 23760000 | AC165: 2022-07-18 | AD165: 2022-07-19 | AE165: 2022-12-18 | AF165: 150 | AM165: En ejecución | AN165: 0.88
A166: 149 | B166: 2022 | C166: FDLAN-CD-149-2022(73906) | D166: https://community.secop.gov.co/Public/Tendering/OpportunityDetail/Index?noticeUID=CO1.NTC.3049131&isFromPublicArea=True&isModal=False | E166: Contratos de prestación de servicios profesionales y de apoyo a la gestión | F166: Contratación directa | G166: Prestación de servicios profesionales y de apoyo a la gestión, o para la ejecución de trabajos artísticos que sólo puedan encomendarse a determinadas personas naturales | H166: PRESTAR LOS SERVICIOS PROFESIONALES COMO ADMINISTRADOR DE RED BRINDANDO ASISTENCIA Y SOPORTE TÉCNICO DE LA INFRAESTRUCTURA TECNOLÓGICA DE LA ALCALDÍA LOCAL, ASÍ COMO A LOS USUARIOS QUE DESARROLLEN SUS ACTIVIDADES EN LAS ÁREAS DE LA ALCALDÍA LOCAL Y JUNTA ADMINISTRADORA LOCAL. | I166: Inversión | J166: Un nuevo contrato social y ambiental para la Bogotá del Siglo XXI | K166: 57 | L166: =IF(ISERROR(VLOOKUP(K166,Proposito_programa!$C$2:$E$59,2,FALSE))," ",VLOOKUP(K166,Proposito_programa!$C$2:$E$59,2,FALSE)) -> Gestión pública local | M166: =IF(ISERROR(VLOOKUP(K166,Proposito_programa!$C$2:$E$59,3,FALSE))," ",VLOOKUP(K166,Proposito_programa!$C$2:$E$59,3,FALSE)) -> Propósito 5: Construir Bogotá - Región con gobierno abierto, transparente y ciudadanía consciente | N166: 2198 | O166: 1 | P166: 79890568 | Q166: ABEL ERNESTO CASTIBLANCO DURAN | R166: Persona Natural | W166: 27000000 | Y166: 1 | Z166: 4680000 | AA166: =+W166+X166+Z166 -> 31680000 | AB166: 23400000 | AC166: 2022-07-18 | AD166: 2022-07-21 | AE166: 2023-01-15 | AF166: 150 | AG166: 1 | AH166: 26 | AM166: En ejecución | AN166: 0.7386363636
A167: 150 | B167: 2022 | C167: FDLAN-CD-150-2022-CPS-AG- (73904) | D167: https://community.secop.gov.co/Public/Tendering/OpportunityDetail/Index?noticeUID=CO1.NTC.3051417&isFromPublicArea=True&isModal=False | E167: Contratos de prestación de servicios profesionales y de apoyo a la gestión | F167: Contratación directa | G167: Prestación de servicios profesionales y de apoyo a la gestión, o para la ejecución de trabajos artísticos que sólo puedan encomendarse a determinadas personas naturales | H167: PRESTACIÓN DE SERVICIOS DE APOYO A LAS ACTIVIDADES ADMINISTRATIVAS EN CUANTO A NOTIFICACIÓN DE LA CORRESPONDENCIA GENERADA POR EL ÁREA DE GESTIÓN DEL DESARROLLO, ADMINISTRATIVA Y FINANCIERA Y ÁREA DE GESTIÓN POLICIVA DE LA ALCALDÍA DE ANTONIO NARIÑO | I167: Inversión | J167: Un nuevo contrato social y ambiental para la Bogotá del Siglo XXI | K167: 57 | L167: =IF(ISERROR(VLOOKUP(K167,Proposito_programa!$C$2:$E$59,2,FALSE))," ",VLOOKUP(K167,Proposito_programa!$C$2:$E$59,2,FALSE)) -> Gestión pública local | M167: =IF(ISERROR(VLOOKUP(K167,Proposito_programa!$C$2:$E$59,3,FALSE))," ",VLOOKUP(K167,Proposito_programa!$C$2:$E$59,3,FALSE)) -> Propósito 5: Construir Bogotá - Región con gobierno abierto, transparente y ciudadanía consciente | N167: 2198 | O167: 1 | P167: 79469325 | Q167: EVERARDO YARA | R167: Persona Natural | W167: 13500000 | AA167: 13500000 | AB167: 11700000 | AC167: 2022-07-19 | AD167: 2022-07-21 | AE167: 2022-12-20 | AF167: 150 | AM167: En ejecución | AN167: 0.8666666667
A168: 151 | B168: 2022 | C168: FDLANCD-151-2022(73956) | D168: https://community.secop.gov.co/Public/Tendering/OpportunityDetail/Index?noticeUID=CO1.NTC.3053054&isFromPublicArea=True&isModal=False | E168: Contratos de prestación de servicios profesionales y de apoyo a la gestión | F168: Contratación directa | G168: Prestación de servicios profesionales y de apoyo a la gestión, o para la ejecución de trabajos artísticos que sólo puedan encomendarse a determinadas personas naturales | H168: APOYAR AL ALCALDE LOCAL EN LA GESTIÓN DE LOS ASUNTOS RELACIONADOS CON SEGURIDAD CIUDADANA, CONVIVENCIA Y PREVENCIÓN DE CONFLICTIVIDADES, VIOLENCIAS Y DELITOS EN LA LOCALIDAD, DE CONFORMIDAD CON EL MARCO NORMATIVO APLICABLE EN LA MATERIA | I168: Inversión | J168: Un nuevo contrato social y ambiental para la Bogotá del Siglo XXI | K168: 57 | L168: =IF(ISERROR(VLOOKUP(K168,Proposito_programa!$C$2:$E$59,2,FALSE))," ",VLOOKUP(K168,Proposito_programa!$C$2:$E$59,2,FALSE)) -> Gestión pública local | M168: =IF(ISERROR(VLOOKUP(K168,Proposito_programa!$C$2:$E$59,3,FALSE))," ",VLOOKUP(K168,Proposito_programa!$C$2:$E$59,3,FALSE)) -> Propósito 5: Construir Bogotá - Región con gobierno abierto, transparente y ciudadanía consciente | N168: 2198 | O168: 1 | P168: 1055226889 | Q168: JUAN DAVID CUERVO ZORRO | R168: Persona Natural | W168: 27000000 | Y168: 1 | Z168: 4500000 | AA168: =+W168+X168+Z168 -> 31500000 | AB168: 0 | AC168: 2022-07-20 | AD168: 2022-07-22 | AE168: 2023-01-15 | AF168: 150 | AG168: 1 | AH168: 25 | AM168: En ejecución | AN168: 0
A169: 152 | B169: 2022 | C169: FDLANCD-152-2022 | D169: https://community.secop.gov.co/Public/Tendering/OpportunityDetail/Index?noticeUID=CO1.NTC.3055964&isFromPublicArea=True&isModal=False | E169: Contratos de prestación de servicios profesionales y de apoyo a la gestión | F169: Contratación directa | G169: Prestación de servicios profesionales y de apoyo a la gestión, o para la ejecución de trabajos artísticos que sólo puedan encomendarse a determinadas personas naturales | H169: PRESTACIÓN DE SERVICIOS DE APOYO A LA GESTIÓN AL DESPACHO DEL ALCALDE LOCAL DE ANTONIO NARIÑO EN EL MANEJO DE LOS DISTINTOS ASUNTOS Y TRAMITES ASOCIADOS CON LA GESTIÓN ADMINISTRATIVA LOCAL | I169: Inversión | J169: Un nuevo contrato social y ambiental para la Bogotá del Siglo XXI | K169: 57 | L169: =IF(ISERROR(VLOOKUP(K169,Proposito_programa!$C$2:$E$59,2,FALSE))," ",VLOOKUP(K169,Proposito_programa!$C$2:$E$59,2,FALSE)) -> Gestión pública local | M169: =IF(ISERROR(VLOOKUP(K169,Proposito_programa!$C$2:$E$59,3,FALSE))," ",VLOOKUP(K169,Proposito_programa!$C$2:$E$59,3,FALSE)) -> Propósito 5: Construir Bogotá - Región con gobierno abierto, transparente y ciudadanía consciente | N169: 2198 | O169: 1 | P169: 1053869262 | Q169: MARIA DANIELA MONTERO DIAZ | R169: Persona Natural | W169: 5740000 | AA169: 5740000 | AB169: 5740000 | AC169: 2022-07-21 | AD169: 2022-07-22 | AE169: 2022-12-21 | AF169: 150 | AM169: En ejecución | AN169: 1
A170: 153 | B170: 2022 | C170: FDLANCD-153-2022 (73902) | D170: https://community.secop.gov.co/Public/Tendering/OpportunityDetail/Index?noticeUID=CO1.NTC.3053021&isFromPublicArea=True&isModal=False | E170: Contratos de prestación de servicios profesionales y de apoyo a la gestión | F170: Contratación directa | G170: Prestación de servicios profesionales y de apoyo a la gestión, o para la ejecución de trabajos artísticos que sólo puedan encomendarse a determinadas personas naturales | H170: PRESTACIÓN DE SERVICIOS DE APOYO EN LA EJECUCIÓN DE ACTIVIDADES ADMINISTRATIVAS Y OPERATIVAS ADELANTADAS EN LA JUNTA ADMINISTRADORA LOCAL DE ANTONIO NARIÑO. | I170: Inversión | J170: Un nuevo contrato social y ambiental para la Bogotá del Siglo XXI | K170: 57 | L170: =IF(ISERROR(VLOOKUP(K170,Proposito_programa!$C$2:$E$59,2,FALSE))," ",VLOOKUP(K170,Proposito_programa!$C$2:$E$59,2,FALSE)) -> Gestión pública local | M170: =IF(ISERROR(VLOOKUP(K170,Proposito_programa!$C$2:$E$59,3,FALSE))," ",VLOOKUP(K170,Proposito_programa!$C$2:$E$59,3,FALSE)) -> Propósito 5: Construir Bogotá - Región con gobierno abierto, transparente y ciudadanía consciente | N170: 2198 | O170: 1 | P170: 1013643851 | Q170: PAULA ANDREA PEDRAZA QUIÑONES | R170: Persona Natural | W170: 12300000 | AA170: 12300000 | AB170: 10660000 | AC170: 2022-07-19 | AD170: 2022-07-21 | AE170: 2022-12-20 | AF170: 150 | AM170: En ejecución | AN170: 0.8666666667
A171: 154 | B171: 2022 | C171: FDLANCD-154-2022 (73848) | D171: https://community.secop.gov.co/Public/Tendering/OpportunityDetail/Index?noticeUID=CO1.NTC.3052668&isFromPublicArea=True&isModal=False | E171: Contratos de prestación de servicios profesionales y de apoyo a la gestión | F171: Contratación directa | G171: Prestación de servicios profesionales y de apoyo a la gestión, o para la ejecución de trabajos artísticos que sólo puedan encomendarse a determinadas personas naturales | H171: PRESTAR LOS SERVICIOS DE APOYO COMO TÉCNICO ADMINISTRATIVO EN EL ÁREA DE GESTIÓN DE DESARROLLO DEL FONDO DE DESARROLLO LOCAL DE ANTONIO NARIÑO PARA LOS DIFERENTES ASUNTOS CONTRACTUALES QUE ADELANTA LA ENTIDAD. | I171: Inversión | J171: Un nuevo contrato social y ambiental para la Bogotá del Siglo XXI | K171: 57 | L171: =IF(ISERROR(VLOOKUP(K171,Proposito_programa!$C$2:$E$59,2,FALSE))," ",VLOOKUP(K171,Proposito_programa!$C$2:$E$59,2,FALSE)) -> Gestión pública local | M171: =IF(ISERROR(VLOOKUP(K171,Proposito_programa!$C$2:$E$59,3,FALSE))," ",VLOOKUP(K171,Proposito_programa!$C$2:$E$59,3,FALSE)) -> Propósito 5: Construir Bogotá - Región con gobierno abierto, transparente y ciudadanía consciente | N171: 2198 | O171: 1 | P171: 1019113136 | Q171: LUZ ADRIANA SANCHEZ VELANDIA | R171: Persona Natural | W171: 13950000 | Y171: 1 | Z171: 2418000 | AA171: =+W171+X171+Z171 -> 16368000 | AB171: 12090000 | AC171: 2022-07-19 | AD171: 2022-07-21 | AE171: 2023-01-15 | AF171: 150 | AG171: 1 | AH171: 26 | AM171: En ejecución | AN171: 0.7386363636
A172: 155 | B172: 2022 | C172: FDLAN-CD-155-2022 (73907) | D172: https://community.secop.gov.co/Public/Tendering/OpportunityDetail/Index?noticeUID=CO1.NTC.3057326&isFromPublicArea=True&isModal=False | E172: Contratos de prestación de servicios profesionales y de apoyo a la gestión | F172: Contratación directa | G172: Prestación de servicios profesionales y de apoyo a la gestión, o para la ejecución de trabajos artísticos que sólo puedan encomendarse a determinadas personas naturales | H172: PRESTAR LOS SERVICIOS PROFESIONALES PARA LA OPERACIÓN, PRESTACIÓN, SEGUIMIENTO Y CUMPLIMIENTO DE LOS PROCEDIMIENTOS ADMINISTRATIVOS, OPERATIVOS Y PROGRAMÁTICOS DEL SERVICIO APOYO ECONÓMICO TIPO C, QUE CONTRIBUYAN A LA GARANTÍA DE LOS DERECHOS DE LA POBLACIÓN MAYOR EN EL MARCO DE LA POLÍTICA PÚBLICA SOCIAL PARA EL ENVEJECIMIENTO Y LA VEJEZ EN EL DISTRITO CAPITAL A CARGO DE LA ALCALDÍA LOCAL DE ANTONIO NARIÑO | I172: Inversión | J172: Un nuevo contrato social y ambiental para la Bogotá del Siglo XXI | K172: 1 | L172: =IF(ISERROR(VLOOKUP(K172,Proposito_programa!$C$2:$E$59,2,FALSE))," ",VLOOKUP(K172,Proposito_programa!$C$2:$E$59,2,FALSE)) -> Subsidios y transferencias para la equidad | M172: =IF(ISERROR(VLOOKUP(K172,Proposito_programa!$C$2:$E$59,3,FALSE))," ",VLOOKUP(K172,Proposito_programa!$C$2:$E$59,3,FALSE)) -> Propósito 1: Hacer un nuevo contrato social para incrementar la inclusión social, productiva y política | N172: 1851 | O172: 1 | P172: 423466 | Q172: SUSANA PATRICIA ENRIQUEZ UGALDE | R172: Persona Natural | W172: 27000000 | AA172: 27000000 | AB172: 22680000 | AC172: 2022-07-21 | AD172: 2022-07-25 | AE172: 2022-12-24 | AF172: 150 | AM172: En ejecución | AN172: 0.84
A173: 156 | B173: 2022 | C173: FDLAN-CD-156-2022-CPS-P(73909) | D173: https://community.secop.gov.co/Public/Tendering/OpportunityDetail/Index?noticeUID=CO1.NTC.3055391&isFromPublicArea=True&isModal=False | E173: Contratos de prestación de servicios profesionales y de apoyo a la gestión | F173: Contratación directa | G173: Prestación de servicios profesionales y de apoyo a la gestión, o para la ejecución de trabajos artísticos que sólo puedan encomendarse a determinadas personas naturales | H173: APOYAR TÉCNICAMENTE A LOS RESPONSABLES E INTEGRANTES DE LOS PROCESOS EN LA IMPLEMENTACIÓN DE HERRAMIENTAS DE GESTIÓN, SIGUIENDO LOS LINEAMIENTOS METODOLÓGICOS ESTABLECIDOS POR LA OFICINA ASESORA DE PLANEACIÓN DE LA SECRETARÍA DISTRITAL DE GOBIERNO | I173: Inversión | J173: Un nuevo contrato social y ambiental para la Bogotá del Siglo XXI | K173: 57 | L173: =IF(ISERROR(VLOOKUP(K173,Proposito_programa!$C$2:$E$59,2,FALSE))," ",VLOOKUP(K173,Proposito_programa!$C$2:$E$59,2,FALSE)) -> Gestión pública local | M173: =IF(ISERROR(VLOOKUP(K173,Proposito_programa!$C$2:$E$59,3,FALSE))," ",VLOOKUP(K173,Proposito_programa!$C$2:$E$59,3,FALSE)) -> Propósito 5: Construir Bogotá - Región con gobierno abierto, transparente y ciudadanía consciente | N173: 2198 | O173: 1 | P173: 52951852 | Q173: ANGELA FERNANDA DIAZ TORRES | R173: Persona Natural | W173: 27000000 | AA173: 27000000 | AB173: 22680000 | AC173: 2022-07-21 | AD173: 2022-07-25 | AE173: 2022-12-24 | AF173: 150 | AM173: En ejecución | AN173: 0.84
A174: 157 | B174: 2022 | C174: FDLAN-CD-157-2022-CPS-P (74094) | D174: https://community.secop.gov.co/Public/Tendering/OpportunityDetail/Index?noticeUID=CO1.NTC.3059956&isFromPublicArea=True&isModal=False | E174: Contratos de prestación de servicios profesionales y de apoyo a la gestión | F174: Contratación directa | G174: Prestación de servicios profesionales y de apoyo a la gestión, o para la ejecución de trabajos artísticos que sólo puedan encomendarse a determinadas personas naturales | H174: PRESTAR SERVICIOS PROFESIONALES, PARA APOYAR LA FORMULACIÓN, EJECUCIÓN, SUPERVISIÓN, SEGUIMIENTO CIERRE Y/O LIQUIDACIÓN DE LOS PROCESOS CONTRACTUALES QUE DEN RESPUESTA AL PROYECTO DE INVERSIÓN DE ACCIONES PARA ESTABLECER ACUERDOS CIUDADANOS DE LA LOCALIDAD DE ANTONIO NARIÑO. | I174: Inversión | J174: Un nuevo contrato social y ambiental para la Bogotá del Siglo XXI | K174: 45 | L174: =IF(ISERROR(VLOOKUP(K174,Proposito_programa!$C$2:$E$59,2,FALSE))," ",VLOOKUP(K174,Proposito_programa!$C$2:$E$59,2,FALSE)) -> Espacio público más seguro y construido colectivamente | M174: =IF(ISERROR(VLOOKUP(K174,Proposito_programa!$C$2:$E$59,3,FALSE))," ",VLOOKUP(K174,Proposito_programa!$C$2:$E$59,3,FALSE)) -> Propósito 3: Inspirar confianza y legitimidad para vivir sin miedo y ser epicentro de cultura ciudadana, paz y reconciliación | N174: 2183 | O174: 1 | P174: 52854610 | Q174: JOHANNA MARCELA TARAZONA TARAZONA | R174: Persona Natural | W174: 23100000 | AA174: 23100000 | AB174: 19404000 | AC174: 2022-07-22 | AD174: 2022-07-25 | AE174: 2022-12-24 | AF174: 150 | AI174: 1093784129 | AJ174: DIEGO ALEJANDRO OSORIO ARTEAGA | AK174: 2022-10-13 | AL174: 23100000 | AM174: En ejecución | AN174: 0.84
A175: 158 | B175: 2022 | C175: FDLANCD-158-2022 (73848) | D175: https://community.secop.gov.co/Public/Tendering/OpportunityDetail/Index?noticeUID=CO1.NTC.3059270&isFromPublicArea=True&isModal=False | E175: Contratos de prestación de servicios profesionales y de apoyo a la gestión | F175: Contratación directa | G175: Prestación de servicios profesionales y de apoyo a la gestión, o para la ejecución de trabajos artísticos que sólo puedan encomendarse a determinadas personas naturales | H175: PRESTAR LOS SERVICIOS DE APOYO COMO TÉCNICO ADMINISTRATIVO EN EL ÁREA DE GESTIÓN DE DESARROLLO DEL FONDO DE DESARROLLO LOCAL DE ANTONIO NARIÑO PARA LOS DIFERENTES ASUNTOS CONTRACTUALES QUE ADELANTA LA ENTIDAD. | I175: Inversión | J175: Un nuevo contrato social y ambiental para la Bogotá del Siglo XXI | K175: 57 | L175: =IF(ISERROR(VLOOKUP(K175,Proposito_programa!$C$2:$E$59,2,FALSE))," ",VLOOKUP(K175,Proposito_programa!$C$2:$E$59,2,FALSE)) -> Gestión pública local | M175: =IF(ISERROR(VLOOKUP(K175,Proposito_programa!$C$2:$E$59,3,FALSE))," ",VLOOKUP(K175,Proposito_programa!$C$2:$E$59,3,FALSE)) -> Propósito 5: Construir Bogotá - Región con gobierno abierto, transparente y ciudadanía consciente | N175: 2198 | O175: 1 | P175: 52352104 | Q175: ANA ISABEL BEJARANO BABATIVA | R175: Persona Natural | W175: 13950000 | AA175: 13950000 | AB175: 11625000 | AC175: 2022-07-22 | AD175: 2022-07-26 | AE175: 2022-12-24 | AF175: 150 | AM175: En ejecución | AN175: 0.8333333333
A176: 159 | B176: 2022 | C176: FDLAN-CD-159-2022-CPS-P (74344) | D176: https://community.secop.gov.co/Public/Tendering/OpportunityDetail/Index?noticeUID=CO1.NTC.3060935&isFromPublicArea=True&isModal=False | E176: Contratos de prestación de servicios profesionales y de apoyo a la gestión | F176: Contratación directa | G176: Prestación de servicios profesionales y de apoyo a la gestión, o para la ejecución de trabajos artísticos que sólo puedan encomendarse a determinadas personas naturales | H176: COORDINA, LIDERA Y ASESORA LOS PLANES Y ESTRATEGIAS DE COMUNICACIÓN INTERNA Y EXTERNA PARA LA DIVULGACIÓN DE LOS PROGRAMAS, PROYECTOS Y ACTIVIDADES DE LA ALCALDÍA LOCAL. | I176: Inversión | J176: Un nuevo contrato social y ambiental para la Bogotá del Siglo XXI | K176: 57 | L176: =IF(ISERROR(VLOOKUP(K176,Proposito_programa!$C$2:$E$59,2,FALSE))," ",VLOOKUP(K176,Proposito_programa!$C$2:$E$59,2,FALSE)) -> Gestión pública local | M176: =IF(ISERROR(VLOOKUP(K176,Proposito_programa!$C$2:$E$59,3,FALSE))," ",VLOOKUP(K176,Proposito_programa!$C$2:$E$59,3,FALSE)) -> Propósito 5: Construir Bogotá - Región con gobierno abierto, transparente y ciudadanía consciente | N176: 2198 | O176: 1 | P176: 83161135 | Q176: CARLOS ANDRES HIGUITA VARGAS | R176: Persona Natural | W176: 21060000 | AA176: 21060000 | AB176: 21060000 | AC176: 2022-07-22 | AD176: 2022-07-25 | AE176: 2022-10-24 | AF176: 90 | AM176: En ejecución | AN176: 1
A177: 160 | B177: 2022 | C177: FDLAN-CD-160-2022(74026) | D177: https://community.secop.gov.co/Public/Tendering/OpportunityDetail/Index?noticeUID=CO1.NTC.3061806&isFromPublicArea=True&isModal=False | E177: Contratos de prestación de servicios profesionales y de apoyo a la gestión | F177: Contratación directa | G177: Prestación de servicios profesionales y de apoyo a la gestión, o para la ejecución de trabajos artísticos que sólo puedan encomendarse a determinadas personas naturales | H177: PRESTAR SERVICIOS DE APOYO A LAS LABORES DE CARÁCTER OPERACIONAL Y/O ADMINISTRATIVAS QUE SE ADELANTEN EN EL ÁREA DE GESTIÓN DE DESARROLLO LOCAL EN EL MARCO DEL DESARROLLO DE LOS PROYECTOS DE INFRAESTRUCTURA DE LA LOCALIDAD DE ANTONIO NARIÑO. | I177: Inversión | J177: Un nuevo contrato social y ambiental para la Bogotá del Siglo XXI | K177: 33 | L177: =IF(ISERROR(VLOOKUP(K177,Proposito_programa!$C$2:$E$59,2,FALSE))," ",VLOOKUP(K177,Proposito_programa!$C$2:$E$59,2,FALSE)) -> Más árboles y más y mejor espacio público | M177: =IF(ISERROR(VLOOKUP(K177,Proposito_programa!$C$2:$E$59,3,FALSE))," ",VLOOKUP(K177,Proposito_programa!$C$2:$E$59,3,FALSE)) -> Propósito 2 : Cambiar Nuestros Hábitos de Vida para Reverdecer a Bogotá y Adaptarnos y Mitigar la Crisis Climática | N177: 2207 | O177: 1 | P177: 1013633122 | Q177: JAIME PRIETO RUIZ | R177: Persona Natural | W177: 9610000 | AA177: 9610000 | AB177: 7750000 | AC177: 2022-07-26 | AD177: 2022-07-26 | AE177: 2022-12-30 | AF177: 155 | AM177: En ejecución | AN177: 0.8064516129
A178: 161 | B178: 2022 | C178: FDLANCD-161-2022(73791) | D178: https://community.secop.gov.co/Public/Tendering/OpportunityDetail/Index?noticeUID=CO1.NTC.3065757&isFromPublicArea=True&isModal=False | E178: Contratos de prestación de servicios profesionales y de apoyo a la gestión | F178: Contratación directa | G178: Prestación de servicios profesionales y de apoyo a la gestión, o para la ejecución de trabajos artísticos que sólo puedan encomendarse a determinadas personas naturales | H178: EL CONTRATO QUE SE PRETENDE CELEBRAR, TENDRÁ POR OBJETO PRESTACIÓN DE SERVICIOS PROFESIONALES COMO ABOGADO PARA APOYAR LA ESTRUCTURACIÓN, SEGUIMIENTO Y CONTROL DE PROCESOS CONTRACTUALES QUE DERIVEN DEL PROYECTO DE INVERSIÓN 2048 CONFORME A LAS ACCIONES DE PROMOCIÓN PARA LA EDUCACIÓN DE LA LOCALIDAD DE ANTONIO NARIÑO. | I178: Inversión | J178: Un nuevo contrato social y ambiental para la Bogotá del Siglo XXI | K178: 17 | L178: =IF(ISERROR(VLOOKUP(K178,Proposito_programa!$C$2:$E$59,2,FALSE))," ",VLOOKUP(K178,Proposito_programa!$C$2:$E$59,2,FALSE)) -> Jóvenes con capacidades: Proyecto de vida para la ciudadanía, la innovación y el trabajo del siglo XXI | M178: =IF(ISERROR(VLOOKUP(K178,Proposito_programa!$C$2:$E$59,3,FALSE))," ",VLOOKUP(K178,Proposito_programa!$C$2:$E$59,3,FALSE)) -> Propósito 1: Hacer un nuevo contrato social para incrementar la inclusión social, productiva y política | N178: 2048 | O178: 1 | P178: 1026289089 | Q178: ADRIANA KATHERIN AVILA TORRES | R178: Persona Natural | W178: 27000000 | AA178: 27000000 | AB178: 22500000 | AC178: 2022-07-25 | AD178: 2022-07-26 | AE178: 2022-12-25 | AF178: 150 | AI178: 1015447288 | AJ178: ADRIANA KATHERIN AVILA TORRES | AK178: 2022-08-31 | AL178: 27720000 | AM178: En ejecución | AN178: 0.8333333333
A179: 162 | B179: 2022 | C179: FDLANCD-162-2022 (73868) | D179: https://community.secop.gov.co/Public/Tendering/OpportunityDetail/Index?noticeUID=CO1.NTC.3065918&isFromPublicArea=True&isModal=False | E179: Contratos de prestación de servicios profesionales y de apoyo a la gestión | F179: Contratación directa | G179: Prestación de servicios profesionales y de apoyo a la gestión, o para la ejecución de trabajos artísticos que sólo puedan encomendarse a determinadas personas naturales | H179: PRESTACIÓN DE SERVICIOS PROFESIONALES AL ÁREA DE GESTIÓN DE DESARROLLO LOCAL ANTONIO NARIÑO PARA APOYAR LA FORMULACIÓN, SOCIALIZACIÓN Y SEGUIMIENTO DE LOS PROGRAMAS Y PROYECTOS DE INVERSIÓN, RELACIONADOS CON LA INFRAESTRUCTURA DEL FONDO, NECESARIOS PARA EL CUMPLIMIENTO DEL PLAN DE DESARROLLO LOCAL. | I179: Inversión | J179: Un nuevo contrato social y ambiental para la Bogotá del Siglo XXI | K179: 33 | L179: =IF(ISERROR(VLOOKUP(K179,Proposito_programa!$C$2:$E$59,2,FALSE))," ",VLOOKUP(K179,Proposito_programa!$C$2:$E$59,2,FALSE)) -> Más árboles y más y mejor espacio público | M179: =IF(ISERROR(VLOOKUP(K179,Proposito_programa!$C$2:$E$59,3,FALSE))," ",VLOOKUP(K179,Proposito_programa!$C$2:$E$59,3,FALSE)) -> Propósito 2 : Cambiar Nuestros Hábitos de Vida para Reverdecer a Bogotá y Adaptarnos y Mitigar la Crisis Climática | N179: 2207 | O179: 1 | P179: 1015471920 | Q179: VALENTINA ROCHA VEGA | R179: Persona Natural | W179: 23870000 | AA179: 23870000 | AB179: 19250000 | AC179: 2022-07-25 | AD179: 2022-07-26 | AE179: 2022-12-30 | AF179: 155 | AM179: En ejecución | AN179: 0.8064516129
A180: 163 | B180: 2022 | C180: FDLAN-CD-163-2022(73908) | D180: https://community.secop.gov.co/Public/Tendering/OpportunityDetail/Index?noticeUID=CO1.NTC.3066193&isFromPublicArea=True&isModal=False | E180: Contratos de prestación de servicios profesionales y de apoyo a la gestión | F180: Contratación directa | G180: Prestación de servicios profesionales y de apoyo a la gestión, o para la ejecución de trabajos artísticos que sólo puedan encomendarse a determinadas personas naturales | H180: PRESTACIÓN DE SERVICIOS DE APOYO A LA GESTIÓN PARA LA CONDUCCIÓN DE LOS VEHÍCULOS QUE CONFORMAN EL PARQUE AUTOMOTOR EN PROPIEDAD O CUSTODIA DEL FONDO DE DESARROLLO LOCAL DE ANTONIO NARIÑO, Y EL TRANSPORTE DE FUNCIONARIOS Y CONTRATISTAS PARA LA REALIZACIÓN DE LAS ACTIVIDADES MISIONALES DE LA ALCALDÍA LOCAL DE ANTONIO NARIÑO. | I180: Inversión | J180: Un nuevo contrato social y ambiental para la Bogotá del Siglo XXI | K180: 57 | L180: =IF(ISERROR(VLOOKUP(K180,Proposito_programa!$C$2:$E$59,2,FALSE))," ",VLOOKUP(K180,Proposito_programa!$C$2:$E$59,2,FALSE)) -> Gestión pública local | M180: =IF(ISERROR(VLOOKUP(K180,Proposito_programa!$C$2:$E$59,3,FALSE))," ",VLOOKUP(K180,Proposito_programa!$C$2:$E$59,3,FALSE)) -> Propósito 5: Construir Bogotá - Región con gobierno abierto, transparente y ciudadanía consciente | N180: 2198 | O180: 1 | P180: 79392568 | Q180: HECTOR GIOVANNY AYALA RODRIGUEZ | R180: Persona Natural | W180: 12300000 | AA180: 12300000 | AB180: 10250000 | AC180: 2022-07-25 | AD180: 2022-07-26 | AE180: 2022-12-25 | AF180: 150 | AM180: En ejecución | AN180: 0.8333333333
A181: 164 | B181: 2022 | C181: FDLAN-SAMC-004-2022 | D181: https://community.secop.gov.co/Public/Tendering/OpportunityDetail/Index?noticeUID=CO1.NTC.3014210&isFromPublicArea=True&isModal=False | E181: Contratos de prestación de servicios | F181: Selección abreviada | G181: Selección abreviada por menor cuantía | H181: PRESTACIÓN DE SERVICIOS PARA LA PREVENCIÓN DEL EMBARAZO ADOLESCENTE Y LA DISMINUCIÓN EN LOS FACTORES DE RIESGO FRENTE AL CONSUMO DE SUSTANCIAS PSICOACTIVAS EN LA LOCALIDAD DE ANTONIO NARIÑO | I181: Inversión | J181: Un nuevo contrato social y ambiental para la Bogotá del Siglo XXI | K181: 6 | L181: =IF(ISERROR(VLOOKUP(K181,Proposito_programa!$C$2:$E$59,2,FALSE))," ",VLOOKUP(K181,Proposito_programa!$C$2:$E$59,2,FALSE)) -> Sistema Distrital de Cuidado | M181: =IF(ISERROR(VLOOKUP(K181,Proposito_programa!$C$2:$E$59,3,FALSE))," ",VLOOKUP(K181,Proposito_programa!$C$2:$E$59,3,FALSE)) -> Propósito 1: Hacer un nuevo contrato social para incrementar la inclusión social, productiva y política | N181: 2194 | O181: 4 | P181: 901233617 | Q181: CORPORACION INTEGRAL PARA EL DESARROLLO DE LAS REGIONES- CONDERE | R181: Persona Jurídica | W181: 23953537 | AA181: 23953537 | AB181: 16306369 | AC181: 2022-07-22 | AD181: 2022-08-22 | AE181: 2022-11-21 | AF181: 90 | AM181: En ejecución | AN181: 0.6807499452
A182: 164 | B182: 2022 | C182: FDLAN-SAMC-004-2022 | D182: https://community.secop.gov.co/Public/Tendering/OpportunityDetail/Index?noticeUID=CO1.NTC.3014210&isFromPublicArea=True&isModal=False | E182: Contratos de prestación de servicios | F182: Selección abreviada | G182: Selección abreviada por menor cuantía | H182: PRESTACIÓN DE SERVICIOS PARA LA PREVENCIÓN DEL EMBARAZO ADOLESCENTE Y LA DISMINUCIÓN EN LOS FACTORES DE RIESGO FRENTE AL CONSUMO DE SUSTANCIAS PSICOACTIVAS EN LA LOCALIDAD DE ANTONIO NARIÑO | I182: Inversión | J182: Un nuevo contrato social y ambiental para la Bogotá del Siglo XXI | K182: 8 | L182: =IF(ISERROR(VLOOKUP(K182,Proposito_programa!$C$2:$E$59,2,FALSE))," ",VLOOKUP(K182,Proposito_programa!$C$2:$E$59,2,FALSE)) -> Prevención y atención de maternidad temprana | M182: =IF(ISERROR(VLOOKUP(K182,Proposito_programa!$C$2:$E$59,3,FALSE))," ",VLOOKUP(K182,Proposito_programa!$C$2:$E$59,3,FALSE)) -> Propósito 1: Hacer un nuevo contrato social para incrementar la inclusión social, productiva y política | N182: 2195 | O182: 1 | W182: 22636092 | AA182: =+W182+X182+Z182 -> 22636092 | AB182: 16306371 | AC182: 2022-07-22 | AD182: 2022-08-22 | AE182: 2022-11-21 | AF182: 90 | AM182: En ejecución | AN182: =IF(ISERROR(AB182/AA182),"-",(AB182/AA182)) -> 0.7203704155
A183: 165 | B183: 2022 | C183: FDLANCD-165-2022(74074) | D183: https://community.secop.gov.co/Public/Tendering/OpportunityDetail/Index?noticeUID=CO1.NTC.3100091&isFromPublicArea=True&isModal=False | E183: Contratos de prestación de servicios profesionales y de apoyo a la gestión | F183: Contratación directa | G183: Prestación de servicios profesionales y de apoyo a la gestión, o para la ejecución de trabajos artísticos que sólo puedan encomendarse a determinadas personas naturales | H183: prestar los servicios técnicos para la operación, seguimiento y cumplimiento de los procesos y procedimientos del servicio social apoyo económico tipo c, requeridos para el oportuno y adecuado registro, cruce y reporte de los datos del sistema de información y registro de beneficiarios-sirbe, que contribuyan a la garantía de los derechos de la población mayor en el marco de la política pública social para envejecimiento y la vejez en el distrito capital a cargo de la alcaldía local | I183: Inversión | J183: Un nuevo contrato social y ambiental para la Bogotá del Siglo XXI | K183: 1 | L183: =IF(ISERROR(VLOOKUP(K183,Proposito_programa!$C$2:$E$59,2,FALSE))," ",VLOOKUP(K183,Proposito_programa!$C$2:$E$59,2,FALSE)) -> Subsidios y transferencias para la equidad | M183: =IF(ISERROR(VLOOKUP(K183,Proposito_programa!$C$2:$E$59,3,FALSE))," ",VLOOKUP(K183,Proposito_programa!$C$2:$E$59,3,FALSE)) -> Propósito 1: Hacer un nuevo contrato social para incrementar la inclusión social, productiva y política | N183: 1851 | O183: 1 | P183: 1013690740 | Q183: SEBASTIAN EDUARDO BRAVO ZAFRA | R183: Persona Natural | W183: 16800000 | AA183: 16800000 | AB183: 13216000 | AC183: 2022-08-02 | AD183: 2022-08-03 | AE183: 2022-12-31 | AF183: 148 | AM183: En ejecución | AN183: 0.7866666667
A184: 166 | B184: 2022 | C184: FDLANCD-166-2022 (73957) | D184: https://community.secop.gov.co/Public/Tendering/OpportunityDetail/Index?noticeUID=CO1.NTC.3071793&isFromPublicArea=True&isModal=False | E184: Contratos de prestación de servicios profesionales y de apoyo a la gestión | F184: Contratación directa | G184: Prestación de servicios profesionales y de apoyo a la gestión, o para la ejecución de trabajos artísticos que sólo puedan encomendarse a determinadas personas naturales | H184: PRESTACIÓN DE SERVICIOS DE APOYO EN EL MANEJO DE SISTEMAS DE INFORMACIÓN EN LO RELACIONADO CON LA CONTRATACIÓN QUE REALIZA EL ÁREA DE GESTIÓN DE DESARROLLO DEL FONDO DE DESARROLLO LOCAL DE ANTONIO NARIÑO | I184: Inversión | J184: Un nuevo contrato social y ambiental para la Bogotá del Siglo XXI | K184: 57 | L184: =IF(ISERROR(VLOOKUP(K184,Proposito_programa!$C$2:$E$59,2,FALSE))," ",VLOOKUP(K184,Proposito_programa!$C$2:$E$59,2,FALSE)) -> Gestión pública local | M184: =IF(ISERROR(VLOOKUP(K184,Proposito_programa!$C$2:$E$59,3,FALSE))," ",VLOOKUP(K184,Proposito_programa!$C$2:$E$59,3,FALSE)) -> Propósito 5: Construir Bogotá - Región con gobierno abierto, transparente y ciudadanía consciente | N184: 2198 | O184: 1 | P184: 1010203444 | Q184: MARIA ALEJANDRA CASTRILLON CORREDOR | R184: Persona Natural | W184: 12300000 | AA184: 12300000 | AB184: 10168000 | AC184: 2022-07-26 | AD184: 2022-07-27 | AE184: 2022-12-26 | AF184: 150 | AM184: En ejecución | AN184: 0.8266666667
A185: 167 | B185: 2022 | C185: FDLANCD-167-2022 (74171 | D185: https://community.secop.gov.co/Public/Tendering/OpportunityDetail/Index?noticeUID=CO1.NTC.3072759&isFromPublicArea=True&isModal=False | E185: Contratos de prestación de servicios profesionales y de apoyo a la gestión | F185: Contratación directa | G185: Prestación de servicios profesionales y de apoyo a la gestión, o para la ejecución de trabajos artísticos que sólo puedan encomendarse a determinadas personas naturales | H185: PRESTAR SERVICIOS PROFESIONALES, PARA APOYAR LA FORMULACIÓN, EJECUCIÓN, SUPERVISIÓN, SEGUIMIENTO CIERRE Y/O LIQUIDACIÓN DE LOS PROCESOS CONTRACTUALES QUE DEN RESPUESTA AL PROYECTO DE INVERSIÓN RELACIONADO CON ACCIONES DE PROMOCIÓN PARA LA EDUCACIÓN SUPERIOR DE LA LOCALIDAD DE ANTONIO NARIÑO. | I185: Inversión | J185: Un nuevo contrato social y ambiental para la Bogotá del Siglo XXI | K185: 17 | L185: =IF(ISERROR(VLOOKUP(K185,Proposito_programa!$C$2:$E$59,2,FALSE))," ",VLOOKUP(K185,Proposito_programa!$C$2:$E$59,2,FALSE)) -> Jóvenes con capacidades: Proyecto de vida para la ciudadanía, la innovación y el trabajo del siglo XXI | M185: =IF(ISERROR(VLOOKUP(K185,Proposito_programa!$C$2:$E$59,3,FALSE))," ",VLOOKUP(K185,Proposito_programa!$C$2:$E$59,3,FALSE)) -> Propósito 1: Hacer un nuevo contrato social para incrementar la inclusión social, productiva y política | N185: 2048 | O185: 1 | P185: 1012399674 | Q185: GINA LIZETH SERNA GARCIA | R185: Persona Natural | W185: 23100000 | AA185: 23100000 | AB185: 19096000 | AC185: 2022-07-26 | AD185: 2022-07-27 | AE185: 2022-12-26 | AF185: 150 | AM185: En ejecución | AN185: 0.8266666667
A186: 168 | B186: 2022 | C186: FDLAN-CD-168-2022(73908) | D186: https://community.secop.gov.co/Public/Tendering/OpportunityDetail/Index?noticeUID=CO1.NTC.3082631&isFromPublicArea=True&isModal=False | E186: Contratos de prestación de servicios profesionales y de apoyo a la gestión | F186: Contratación directa | G186: Prestación de servicios profesionales y de apoyo a la gestión, o para la ejecución de trabajos artísticos que sólo puedan encomendarse a determinadas personas naturales | H186: PRESTACIÓN DE SERVICIOS DE APOYO A LA GESTIÓN PARA LA CONDUCCIÓN DE LOS VEHÍCULOS QUE CONFORMAN EL PARQUE AUTOMOTOR EN PROPIEDAD O CUSTODIA DEL FONDO DE DESARROLLO LOCAL DE ANTONIO NARIÑO, Y EL TRANSPORTE DE FUNCIONARIOS Y CONTRATISTAS PARA LA REALIZACIÓN DE LAS ACTIVIDADES MISIONALES DE LA ALCALDÍA LOCAL DE ANTONIO NARIÑO. | I186: Inversión | J186: Un nuevo contrato social y ambiental para la Bogotá del Siglo XXI | K186: 57 | L186: =IF(ISERROR(VLOOKUP(K186,Proposito_programa!$C$2:$E$59,2,FALSE))," ",VLOOKUP(K186,Proposito_programa!$C$2:$E$59,2,FALSE)) -> Gestión pública local | M186: =IF(ISERROR(VLOOKUP(K186,Proposito_programa!$C$2:$E$59,3,FALSE))," ",VLOOKUP(K186,Proposito_programa!$C$2:$E$59,3,FALSE)) -> Propósito 5: Construir Bogotá - Región con gobierno abierto, transparente y ciudadanía consciente | N186: 2198 | O186: 1 | P186: 93410082 | Q186: JOHN JAIRO CASTILLO BUSTOS | R186: Persona Natural | W186: 9840000 | AA186: 9840000 | AB186: 9758000 | AC186: 2022-07-29 | AD186: 2022-08-02 | AE186: 2022-12-31 | AF186: 150 | AM186: En ejecución | AN186: 0.9916666667
A187: 169 | B187: 2022 | C187: FDLAN-CD-169-2022(73905) | D187: https://community.secop.gov.co/Public/Tendering/OpportunityDetail/Index?noticeUID=CO1.NTC.3076636&isFromPublicArea=True&isModal=False | E187: Contratos de prestación de servicios profesionales y de apoyo a la gestión | F187: Contratación directa | G187: Prestación de servicios profesionales y de apoyo a la gestión, o para la ejecución de trabajos artísticos que sólo puedan encomendarse a determinadas personas naturales | H187: PRESTACIÓN DE SERVICIOS DE APOYO ASISTENCIAL EN EL ÁREA DE GESTIÓN DEL DESARROLLO, ADMINISTRATIVA Y FINANCIERA DEL FONDO DE DESARROLLO LOCAL DE ANTONIO NARIÑO. | I187: Inversión | J187: Un nuevo contrato social y ambiental para la Bogotá del Siglo XXI | K187: 57 | L187: =IF(ISERROR(VLOOKUP(K187,Proposito_programa!$C$2:$E$59,2,FALSE))," ",VLOOKUP(K187,Proposito_programa!$C$2:$E$59,2,FALSE)) -> Gestión pública local | M187: =IF(ISERROR(VLOOKUP(K187,Proposito_programa!$C$2:$E$59,3,FALSE))," ",VLOOKUP(K187,Proposito_programa!$C$2:$E$59,3,FALSE)) -> Propósito 5: Construir Bogotá - Región con gobierno abierto, transparente y ciudadanía consciente | N187: 2198 | O187: 1 | P187: 1023875489 | Q187: JORGE DIEGO ALBERTO VEGA | R187: Persona Natural | W187: 9300000 | AA187: 9300000 | AB187: 7564000 | AC187: 2022-07-27 | AD187: 2022-07-29 | AE187: 2022-12-27 | AF187: 150 | AM187: En ejecución | AN187: 0.8133333333
A188: 170 | B188: 2022 | C188: FDLAN-LP-001-2022 | D188: https://community.secop.gov.co/Public/Tendering/OpportunityDetail/Index?noticeUID=CO1.NTC.2974610&isFromPublicArea=True&isModal=False | E188: Obra pública | F188: Licitación pública | G188: No aplica | H188: "REALIZAR A TRAVES DEL SISTEMA DE PRECIOS UNITARIOS FIJOS Y A MONTO AGOTABLE, LAS ACTIVIDADES DE CONSERVACIÓN DE LA MALLA VIAL Y DEL ESPACIO PÚBLICO PRIORIZADOS POR EL FONDO DE DESARROLLO LOCAL DE ANTONIO NARIÑO PARA EL CUMPLIMIENTO DE LAS METAS DEFINIDAS EN LA VIGENCIA 2022 | I188: Inversión | J188: Un nuevo contrato social y ambiental para la Bogotá del Siglo XXI | K188: 49 | L188: =IF(ISERROR(VLOOKUP(K188,Proposito_programa!$C$2:$E$59,2,FALSE))," ",VLOOKUP(K188,Proposito_programa!$C$2:$E$59,2,FALSE)) -> Movilidad segura, sostenible y accesible | M188: =IF(ISERROR(VLOOKUP(K188,Proposito_programa!$C$2:$E$59,3,FALSE))," ",VLOOKUP(K188,Proposito_programa!$C$2:$E$59,3,FALSE)) -> Propósito 4: Hacer de Bogotá Región un modelo de movilidad multimodal, incluyente y sostenible | N188: 2186 | O188: 5 | P188: 790413799 | Q188: CONSORCIO K2 2023 | R188: Consorcio | S188: NIT. 79041379- NIT. 900.807.530 - 1- NIT. 9005874361 | T188: JF CONSTRUCCIONES Y CONSULTORIA URBANOS INFRAESTRUCTURA S.A.S. . INFRAESTRUCTURA CAR Y CIA SAS | U188: JF CONSTRUCCIONES Y CONSULTORIA (50,00) URBANOS INFRAESTRUCTURA S.A.S.(40,00) . INFRAESTRUCTURA CAR Y CIA SAS (10,00) | V188: 0 | W188: 4096474658 | Y188: 1 | Z188: 1258001883 | AA188: 5354476541 | AB188: 0 | AC188: 2022-07-21 | AD188: 2022-10-03 | AE188: 2023-02-10 | AF188: 210 | AM188: En ejecución | AN188: 0
A189: 171 | B189: 2022 | C189: FDLAN-CD-171-2022(73910) | D189: https://community.secop.gov.co/Public/Tendering/OpportunityDetail/Index?noticeUID=CO1.NTC.3092716&isFromPublicArea=True&isModal=False | E189: Contratos de prestación de servicios profesionales y de apoyo a la gestión | F189: Contratación directa | G189: Prestación de servicios profesionales y de apoyo a la gestión, o para la ejecución de trabajos artísticos que sólo puedan encomendarse a determinadas personas naturales | H189: PRESTAR SERVICIOS PROFESIONALES PARA COORDINAR LA ARTICULACIÓN, ASISTENCIA Y ACOMPAÑAMIENTO DE LOS PROCESOS DE PLANEACIÓN LOCAL, PARA LA PROMOCIÓN DE LA PARTICIPACIÓN DE LAS MUJERES Y DE LA EQUIDAD DE GÉNERO, PARA MATERIALIZAR EN LA LOCALIDAD LAS ESTRATEGIAS DE TERRITORIALIZACIÓN Y TRANSVERSALIZACIÓN DE LA POLÍTICA PUBLICA DE MUJERES Y EQUIDAD DE GÉNERO, PPMYEG. | I189: Inversión | J189: Un nuevo contrato social y ambiental para la Bogotá del Siglo XXI | K189: 40 | L189: =IF(ISERROR(VLOOKUP(K189,Proposito_programa!$C$2:$E$59,2,FALSE))," ",VLOOKUP(K189,Proposito_programa!$C$2:$E$59,2,FALSE)) -> Más mujeres viven una vida libre de violencias, se sienten seguras y acceden con confianza al sistema de justicia | M189: =IF(ISERROR(VLOOKUP(K189,Proposito_programa!$C$2:$E$59,3,FALSE))," ",VLOOKUP(K189,Proposito_programa!$C$2:$E$59,3,FALSE)) -> Propósito 3: Inspirar confianza y legitimidad para vivir sin miedo y ser epicentro de cultura ciudadana, paz y reconciliación | N189: 2197 | O189: 1 | P189: 51964393 | Q189: GLORIA MARCELA REY FARACO | R189: Persona Natural | W189: 27000000 | AA189: 27000000 | AB189: 21420000 | AC189: 2022-08-01 | AD189: 2022-08-02 | AE189: 2022-12-31 | AF189: 149 | AM189: En ejecución | AN189: 0.7933333333
A190: 172 | B190: 2022 | C190: FDLANCD-172-2022 (74098) | D190: https://community.secop.gov.co/Public/Tendering/OpportunityDetail/Index?noticeUID=CO1.NTC.3094443&isFromPublicArea=True&isModal=False | E190: Contratos de prestación de servicios profesionales y de apoyo a la gestión | F190: Contratación directa | G190: Prestación de servicios profesionales y de apoyo a la gestión, o para la ejecución de trabajos artísticos que sólo puedan encomendarse a determinadas personas naturales | H190: PRESTAR SERVICIOS PROFESIONALES, PARA APOYAR LA FORMULACIÓN, EJECUCIÓN, SUPERVISIÓN, SEGUIMIENTO CIERRE Y/O LIQUIDACIÓN DE LOS PROCESOS CONTRACTUALES QUE DEN RESPUESTA AL PROYECTO DE INVERSIÓN DE ACCIONES INTEGRALES PARA LA PRODUCTIVIDAD Y EL EMPRENDIMIENTO DE LA LOCALIDAD DE ANTONIO NARIÑO. | I190: Inversión | J190: Un nuevo contrato social y ambiental para la Bogotá del Siglo XXI | K190: 6 | L190: =IF(ISERROR(VLOOKUP(K190,Proposito_programa!$C$2:$E$59,2,FALSE))," ",VLOOKUP(K190,Proposito_programa!$C$2:$E$59,2,FALSE)) -> Sistema Distrital de Cuidado | M190: =IF(ISERROR(VLOOKUP(K190,Proposito_programa!$C$2:$E$59,3,FALSE))," ",VLOOKUP(K190,Proposito_programa!$C$2:$E$59,3,FALSE)) -> Propósito 1: Hacer un nuevo contrato social para incrementar la inclusión social, productiva y política | N190: 2191 | O190: 1 | P190: 7142638 | Q190: JOSE HERNANDEZ | R190: Persona Natural | W190: 22946000 | AA190: 22946000 | AB190: 18326000 | AC190: 2022-08-01 | AD190: 2022-08-08 | AE190: 2022-12-31 | AF190: 149 | AM190: En ejecución | AN190: 0.7986577181
A191: 173 | B191: 2022 | C191: FDLANCD-173-2022 (33374) | D191: https://community.secop.gov.co/Public/Tendering/OpportunityDetail/Index?noticeUID=CO1.NTC.3093892&isFromPublicArea=True&isModal=False | E191: Contratos de prestación de servicios profesionales y de apoyo a la gestión | F191: Contratación directa | G191: Prestación de servicios profesionales y de apoyo a la gestión, o para la ejecución de trabajos artísticos que sólo puedan encomendarse a determinadas personas naturales | H191: PRESTACIÓN DE SERVICIOS DE APOYO A LA GESTIÓN AL DESPACHO DEL ALCALDE LOCAL DE ANTONIO NARIÑO EN EL MANEJO DE LOS DISTINTOS ASUNTOS Y TRAMITES ASOCIADOS CON LA GESTIÓN ADMINISTRATIVA LOCAL. | I191: Inversión | J191: Un nuevo contrato social y ambiental para la Bogotá del Siglo XXI | K191: 57 | L191: =IF(ISERROR(VLOOKUP(K191,Proposito_programa!$C$2:$E$59,2,FALSE))," ",VLOOKUP(K191,Proposito_programa!$C$2:$E$59,2,FALSE)) -> Gestión pública local | M191: =IF(ISERROR(VLOOKUP(K191,Proposito_programa!$C$2:$E$59,3,FALSE))," ",VLOOKUP(K191,Proposito_programa!$C$2:$E$59,3,FALSE)) -> Propósito 5: Construir Bogotá - Región con gobierno abierto, transparente y ciudadanía consciente | N191: 2198 | O191: 1 | P191: 51953774 | Q191: AMPARO TORRES ESGUERRA | R191: Persona Natural | W191: 12300000 | Z191: 2460000 | AA191: =+W191+X191+Z191 -> 14760000 | AB191: 9676000 | AC191: 2022-08-01 | AD191: 2022-08-02 | AE191: 2023-01-30 | AF191: 150 | AG191: 1 | AH191: 30 | AM191: En ejecución | AN191: 0.6555555556
A192: 174 | B192: 2022 | C192: FDLANCD-174-2022 (73868) | D192: https://community.secop.gov.co/Public/Tendering/OpportunityDetail/Index?noticeUID=CO1.NTC.3094806&isFromPublicArea=True&isModal=False | E192: Contratos de prestación de servicios profesionales y de apoyo a la gestión | F192: Contratación directa | G192: Prestación de servicios profesionales y de apoyo a la gestión, o para la ejecución de trabajos artísticos que sólo puedan encomendarse a determinadas personas naturales | H192: PRESTACIÓN DE SERVICIOS PROFESIONALES AL ÁREA DE GESTIÓN DE DESARROLLO LOCAL ANTONIO NARIÑO PARA APOYAR LA FORMULACIÓN, SOCIALIZACIÓN Y SEGUIMIENTO DE LOS PROGRAMAS Y PROYECTOS DE INVERSIÓN, RELACIONADOS CON LA INFRAESTRUCTURA DEL FONDO, NECESARIOS PARA EL CUMPLIMIENTO DEL PLAN DE DESARROLLO LOCAL. | I192: Inversión | J192: Un nuevo contrato social y ambiental para la Bogotá del Siglo XXI | K192: 33 | L192: =IF(ISERROR(VLOOKUP(K192,Proposito_programa!$C$2:$E$59,2,FALSE))," ",VLOOKUP(K192,Proposito_programa!$C$2:$E$59,2,FALSE)) -> Más árboles y más y mejor espacio público | M192: =IF(ISERROR(VLOOKUP(K192,Proposito_programa!$C$2:$E$59,3,FALSE))," ",VLOOKUP(K192,Proposito_programa!$C$2:$E$59,3,FALSE)) -> Propósito 2 : Cambiar Nuestros Hábitos de Vida para Reverdecer a Bogotá y Adaptarnos y Mitigar la Crisis Climática | N192: 2207 | O192: 1 | P192: 13718198 | Q192: OSCAR JULIAN DUARTE CUBILLOS | R192: Persona Natural | W192: 22022000 | AA192: 22022000 | AB192: 17402000 | AC192: 2022-08-01 | AD192: 2022-08-08 | AE192: 2022-12-31 | AF192: 149 | AM192: En ejecución | AN192: 0.7902097902
A193: 175 | B193: 2022 | C193: FDLAN-CD-175-2022 (74228) | D193: https://community.secop.gov.co/Public/Tendering/OpportunityDetail/Index?noticeUID=CO1.NTC.3098156&isFromPublicArea=True&isModal=False | E193: Contratos de prestación de servicios profesionales y de apoyo a la gestión | F193: Contratación directa | G193: Prestación de servicios profesionales y de apoyo a la gestión, o para la ejecución de trabajos artísticos que sólo puedan encomendarse a determinadas personas naturales | H193: PRESTAR SERVICIOS DE APOYO AL FONDO DE DESARROLLO LOCAL DE ANTONIO NARIÑO EN LA IMPLEMENTACIÓN DE ESTRATEGIAS QUE GARANTICEN LA PROMOCIÓN Y PROTECCIÓN DEL DERECHO A LA PARTICIPACIÓN DEMOCRÁTICA DE LOS HABITANTES DE LA LOCALIDAD ANTONIO NARIÑO | I193: Inversión | J193: Un nuevo contrato social y ambiental para la Bogotá del Siglo XXI | K193: 55 | L193: =IF(ISERROR(VLOOKUP(K193,Proposito_programa!$C$2:$E$59,2,FALSE))," ",VLOOKUP(K193,Proposito_programa!$C$2:$E$59,2,FALSE)) -> Fortalecimiento de cultura ciudadana y su institucionalidad | M193: =IF(ISERROR(VLOOKUP(K193,Proposito_programa!$C$2:$E$59,3,FALSE))," ",VLOOKUP(K193,Proposito_programa!$C$2:$E$59,3,FALSE)) -> Propósito 5: Construir Bogotá - Región con gobierno abierto, transparente y ciudadanía consciente | N193: 2190 | O193: 1 | P193: 19179939 | Q193: HECTOR HUGO CORTES LOZANO | R193: Persona Natural | W193: 20874000 | AA193: 20874000 | AB193: 16614000 | AC193: 2022-08-02 | AD193: 2022-08-04 | AE193: 2022-12-31 | AF193: 149 | AM193: En ejecución | AN193: 0.7959183673
A194: 176 | B194: 2022 | C194: FDLAN-CD-176-2022 | D194: https://community.secop.gov.co/Public/Tendering/OpportunityDetail/Index?noticeUID=CO1.NTC.3112292&isFromPublicArea=True&isModal=False | E194: Contratos de prestación de servicios profesionales y de apoyo a la gestión | F194: Contratación directa | G194: Prestación de servicios profesionales y de apoyo a la gestión, o para la ejecución de trabajos artísticos que sólo puedan encomendarse a determinadas personas naturales | H194: PRESTACIÓN DE SERVICIOS PROFESIONALES PARA LA ADMINISTRACIÓN, DESARROLLO Y FORTALECIMIENTO DE LAS ACTIVIDADES CULTURALES Y ARTÍSTICAS QUE SE BRINDAN A LA COMUNIDAD EN EL TEATRO VILLA MAYOR DE LA LOCALIDAD ANTONIO NARIÑO | I194: Inversión | J194: Un nuevo contrato social y ambiental para la Bogotá del Siglo XXI | K194: 21 | L194: =IF(ISERROR(VLOOKUP(K194,Proposito_programa!$C$2:$E$59,2,FALSE))," ",VLOOKUP(K194,Proposito_programa!$C$2:$E$59,2,FALSE)) -> Creación y vida cotidiana: Apropiación ciudadana del arte, la cultura y el patrimonio, para la democracia cultural | M194: =IF(ISERROR(VLOOKUP(K194,Proposito_programa!$C$2:$E$59,3,FALSE))," ",VLOOKUP(K194,Proposito_programa!$C$2:$E$59,3,FALSE)) -> Propósito 1: Hacer un nuevo contrato social para incrementar la inclusión social, productiva y política | N194: 2201 | O194: 1 | P194: 80871795 | Q194: ALVARO ANDRES MARTINEZ CORONEL | R194: Persona Natural | W194: 33142000 | AA194: 33142000 | AB194: 26332000 | AC194: 2022-08-05 | AD194: 2022-08-05 | AE194: 2022-12-31 | AF194: 148 | AM194: En ejecución | AN194: 0.7945205479
A195: 177 | B195: 2022 | C195: FDLAN-SASI-001-2022 | D195: https://community.secop.gov.co/Public/Tendering/OpportunityDetail/Index?noticeUID=CO1.NTC.2997922&isFromPublicArea=True&isModal=False | E195: Otros | F195: Selección abreviada | G195: Selección abreviada por menor cuantía | H195: CONTRATAR LA ADQUISICION DE ELEMENTOS DE INSUMOS TECNOLÓGICOS, MATERIAL DIDÁCTICO, PEDAGOGICO Y DEPORTIVO, PARA APOYAR LA GESTION DE LAS INSTITUCIONES EDUCATIVAS DISTRITALES Y FORTALECER LAS ACCIONES EN MATERIA DE PRIMERA INFANCIA DE LA LOCALIDAD DE ANTONIO NARIÑO | I195: Inversión | J195: Un nuevo contrato social y ambiental para la Bogotá del Siglo XXI | K195: 12 | L195: =IF(ISERROR(VLOOKUP(K195,Proposito_programa!$C$2:$E$59,2,FALSE))," ",VLOOKUP(K195,Proposito_programa!$C$2:$E$59,2,FALSE)) -> Educación inicial: Bases sólidas para la vida. | M195: =IF(ISERROR(VLOOKUP(K195,Proposito_programa!$C$2:$E$59,3,FALSE))," ",VLOOKUP(K195,Proposito_programa!$C$2:$E$59,3,FALSE)) -> Propósito 1: Hacer un nuevo contrato social para incrementar la inclusión social, productiva y política | N195: 1864 | O195: 5 | P195: 811005267 | Q195: ALMACEN EL DEPORTISTA SAS | R195: Persona Jurídica | W195: 219810614 | AA195: 219810614 | AB195: 0 | AC195: 2022-08-17 | AD195: 2022-08-17 | AE195: 2023-02-16 | AF195: 90 | AG195: 1 | AH195: 90 | AM195: En ejecución | AN195: 0
A196: 178 | B196: 2022 | C196: FDLANCD-178-2022(74097) | D196: https://community.secop.gov.co/Public/Tendering/OpportunityDetail/Index?noticeUID=CO1.NTC.3116827&isFromPublicArea=True&isModal=False | E196: Contratos de prestación de servicios profesionales y de apoyo a la gestión | F196: Contratación directa | G196: Prestación de servicios profesionales y de apoyo a la gestión, o para la ejecución de trabajos artísticos que sólo puedan encomendarse a determinadas personas naturales | H196: PRESTAR SERVICIOS PROFESIONALES, PARA APOYAR LA FORMULACIÓN, EJECUCIÓN, SUPERVISIÓN, SEGUIMIENTO CIERRE Y/O LIQUIDACIÓN DE LOS PROCESOS CONTRACTUALES QUE DEN RESPUESTA AL PROYECTO DE INVERSIÓN PARA ACCIONES DE FOMENTO Y PROMOCIÓN DE ACTIVIDADES EN EL CAMPO DEPORTIVO DE LA LOCALIDAD DE ANTONIO NARIÑO. | I196: Inversión | J196: Un nuevo contrato social y ambiental para la Bogotá del Siglo XXI | K196: 20 | L196: =IF(ISERROR(VLOOKUP(K196,Proposito_programa!$C$2:$E$59,2,FALSE))," ",VLOOKUP(K196,Proposito_programa!$C$2:$E$59,2,FALSE)) -> Bogotá, referente en cultura, deporte, recreación y actividad física, con parques para el desarrollo y la salud | M196: =IF(ISERROR(VLOOKUP(K196,Proposito_programa!$C$2:$E$59,3,FALSE))," ",VLOOKUP(K196,Proposito_programa!$C$2:$E$59,3,FALSE)) -> Propósito 1: Hacer un nuevo contrato social para incrementar la inclusión social, productiva y política | N196: 2200 | O196: 1 | P196: 1013681219 | Q196: JENNYFFER ROJAS HERNANDEZ | R196: Persona Natural | W196: 24610300 | Z196: 2409400 | AA196: =+W196+X196+Z196 -> 27019700 | AB196: 19447300 | AC196: 2022-08-05 | AD196: 2022-08-08 | AE196: 2023-01-14 | AF196: 148 | AG196: 1 | AH196: 14 | AM196: En ejecución | AN196: 0.7197452229
A197: 179 | B197: 2022 | C197: FDLANCD-179-2022 (73901) | D197: https://community.secop.gov.co/Public/Tendering/OpportunityDetail/Index?noticeUID=CO1.NTC.3124825&isFromPublicArea=True&isModal=False | E197: Contratos de prestación de servicios profesionales y de apoyo a la gestión | F197: Contratación directa | G197: Prestación de servicios profesionales y de apoyo a la gestión, o para la ejecución de trabajos artísticos que sólo puedan encomendarse a determinadas personas naturales | H197: PRESTAR SERVICIOS PROFESIONALES DE APOYO EN LOS PROCESOS ADMINISTRATIVOS, CONTABLES Y FINANCIEROS EN EL FONDO DE DESARROLLO LOCAL DE ANTONIO NARIÑO EN EL MARCO DE LAS NORMAS DE DERECHO CONTABLE, DE SEGURIDAD SOCIAL Y LOS PROCEDIMIENTOS VIGENTE | I197: Inversión | J197: Un nuevo contrato social y ambiental para la Bogotá del Siglo XXI | K197: 57 | L197: =IF(ISERROR(VLOOKUP(K197,Proposito_programa!$C$2:$E$59,2,FALSE))," ",VLOOKUP(K197,Proposito_programa!$C$2:$E$59,2,FALSE)) -> Gestión pública local | M197: =IF(ISERROR(VLOOKUP(K197,Proposito_programa!$C$2:$E$59,3,FALSE))," ",VLOOKUP(K197,Proposito_programa!$C$2:$E$59,3,FALSE)) -> Propósito 5: Construir Bogotá - Región con gobierno abierto, transparente y ciudadanía consciente | N197: 2198 | O197: 1 | P197: 1022379187 | Q197: NATALIA DELGADO PUENTES | R197: Persona Natural | W197: 25560000 | AA197: 25560000 | AB197: 19980000 | AC197: 2022-08-08 | AD197: 2022-08-10 | AE197: 2022-12-31 | AF197: 142 | AM197: En ejecución | AN197: 0.7816901408
A198: 180 | B198: 2022 | C198: FDLAN-CMA-002-2022 (72608) | D198: https://community.secop.gov.co/Public/Tendering/OpportunityDetail/Index?noticeUID=CO1.NTC.2991458&isFromPublicArea=True&isModal=False | E198: Interventoría | F198: Concurso de méritos | G198: No aplica | H198: REALIZAR LA INTERVENTORÍA TÉCNICA, ADMINISTRATIVA, JURÍDICA LEGAL, FINANCIERA CONTABL), AMBIENTAL, SOCIAL Y SST AL CONTRATO QUE TIENE POR OBJETO: "REALIZAR A TRAVÉS DEL SISTEMA DE PRECIOS UNITARIOS FIJOS Y A MONTO AGOTABLE, LAS ACTIVIDADES DE CONSERVACIÓN DE LA MALLA VIAL Y DEL ESPACIO PÚBLICO PRIORIZADOS POR EL FONDO DE DESARROLLO LOCAL DE ANTONIO NARIÑO PARA EL CUMPLIMIENTO DE LAS METAS DEFINIDAS EN LA VIGENCIA 2022 | I198: Inversión | J198: Un nuevo contrato social y ambiental para la Bogotá del Siglo XXI | K198: 49 | L198: =IF(ISERROR(VLOOKUP(K198,Proposito_programa!$C$2:$E$59,2,FALSE))," ",VLOOKUP(K198,Proposito_programa!$C$2:$E$59,2,FALSE)) -> Movilidad segura, sostenible y accesible | M198: =IF(ISERROR(VLOOKUP(K198,Proposito_programa!$C$2:$E$59,3,FALSE))," ",VLOOKUP(K198,Proposito_programa!$C$2:$E$59,3,FALSE)) -> Propósito 4: Hacer de Bogotá Región un modelo de movilidad multimodal, incluyente y sostenible | N198: 2186 | O198: 5 | P198: 9016207529 | Q198: CONSORCIO INGEVIAL LAM | R198: Consorcio | S198: NIT. 901013246- NIT. 79838206- NIT. 78690387 | T198: CONSTRUCTORA OCEANA S.A.S - LINO ANDRES MENDOZA VELASQUEZ- ABRAHAM ENRIQUE ESPINOSA DIAZ | U198: CONSTRUCTORA OCEANA S.A.S(50,00) - LINO ANDRES MENDOZA VELASQUEZ(45,00)- ABRAHAM ENRIQUE ESPINOSA DIAZ (50,00) | V198: 0 | W198: 383767455 | Y198: 1 | Z198: 113001876 | AA198: 496769331 | AB198: 0 | AC198: 2022-08-09 | AD198: 2022-10-03 | AE198: 2023-03-11 | AF198: 210 | AG198: 1 | AH198: 60 | AM198: En ejecución | AN198: 0
A199: 181 | B199: 2022 | C199: FDLAN-CD-181-2022(74224) | D199: https://community.secop.gov.co/Public/Tendering/OpportunityDetail/Index?noticeUID=CO1.NTC.3161707&isFromPublicArea=True&isModal=False | E199: Contratos de prestación de servicios profesionales y de apoyo a la gestión | F199: Contratación directa | G199: Prestación de servicios profesionales y de apoyo a la gestión, o para la ejecución de trabajos artísticos que sólo puedan encomendarse a determinadas personas naturales | H199: APOYAR AL (A) ALCALDE (SA) LOCAL EN EL FORTALECIMIENTO E INCLUSIÓN DE LAS COMUNIDADES NEGRAS, AFROCOLOMBIANAS Y PALENQUERAS EN EL MARCO DE LA POLÍTICA PÚBLICA DISTRITAL AFRODESCENDIENTES Y LOS ESPACIOS DE PARTICIPACIÓN | I199: Inversión | J199: Un nuevo contrato social y ambiental para la Bogotá del Siglo XXI | K199: 55 | L199: =IF(ISERROR(VLOOKUP(K199,Proposito_programa!$C$2:$E$59,2,FALSE))," ",VLOOKUP(K199,Proposito_programa!$C$2:$E$59,2,FALSE)) -> Fortalecimiento de cultura ciudadana y su institucionalidad | M199: =IF(ISERROR(VLOOKUP(K199,Proposito_programa!$C$2:$E$59,3,FALSE))," ",VLOOKUP(K199,Proposito_programa!$C$2:$E$59,3,FALSE)) -> Propósito 5: Construir Bogotá - Región con gobierno abierto, transparente y ciudadanía consciente | N199: 2190 | O199: 1 | P199: 1122783927 | Q199: SANDRA CLAUDIA CHINDOY JAMIOY | R199: Persona Natural | W199: 20482000 | AA199: 20482000 | AB199: 11242000 | AC199: 2022-08-17 | AD199: 2022-08-18 | AE199: 2022-12-31 | AF199: 133 | AM199: En ejecución | AN199: 0.5488721805
A200: 182 | B200: 2022 | C200: FDLANCD-182-2022(74202) | D200: https://community.secop.gov.co/Public/Tendering/OpportunityDetail/Index?noticeUID=CO1.NTC.3169564&isFromPublicArea=True&isModal=False | E200: Contratos de prestación de servicios profesionales y de apoyo a la gestión | F200: Contratación directa | G200: Prestación de servicios profesionales y de apoyo a la gestión, o para la ejecución de trabajos artísticos que sólo puedan encomendarse a determinadas personas naturales | H200: Prestar servicios de apoyo a la gestión a la Alcaldía Local de Antonio Nariño en el seguimiento a casos de violencia intrafamiliar y sexual en poblaciones vulnerables, así como en los procesos de participación ciudadana en la localidad | I200: Inversión | J200: Un nuevo contrato social y ambiental para la Bogotá del Siglo XXI | K200: 6 | L200: =IF(ISERROR(VLOOKUP(K200,Proposito_programa!$C$2:$E$59,2,FALSE))," ",VLOOKUP(K200,Proposito_programa!$C$2:$E$59,2,FALSE)) -> Sistema Distrital de Cuidado | M200: =IF(ISERROR(VLOOKUP(K200,Proposito_programa!$C$2:$E$59,3,FALSE))," ",VLOOKUP(K200,Proposito_programa!$C$2:$E$59,3,FALSE)) -> Propósito 1: Hacer un nuevo contrato social para incrementar la inclusión social, productiva y política | N200: 2192 | O200: 1 | P200: 1007749906 | Q200: LIZETH DAYANA RUBIANO PULIDO | R200: Persona Natural | W200: 10824000 | AA200: 10824000 | AB200: 7954000 | AC200: 2022-08-19 | AD200: 2022-08-24 | AE200: 2022-12-31 | AF200: 132 | AM200: En ejecución | AN200: 0.7348484848
A201: 183 | B201: 2022 | C201: FDLAN-CD-183-2022-CPS (74736) | D201: https://community.secop.gov.co/Public/Tendering/OpportunityDetail/Index?noticeUID=CO1.NTC.3165801&isFromPublicArea=True&isModal=False | E201: Contratos de prestación de servicios profesionales y de apoyo a la gestión | F201: Contratación directa | G201: Prestación de servicios profesionales y de apoyo a la gestión, o para la ejecución de trabajos artísticos que sólo puedan encomendarse a determinadas personas naturales | H201: PRESTACION DE SERVICIOS DE APOYO A LA GESTION COMO AUXILAR PARA LA TRANSCRIPCION DE LAS ACTAS QUE EXPIDA LA JUNTA ADMINISTRADORA LOCAL DE ANTONIO NARIÑO | I201: Inversión | J201: Un nuevo contrato social y ambiental para la Bogotá del Siglo XXI | K201: 57 | L201: =IF(ISERROR(VLOOKUP(K201,Proposito_programa!$C$2:$E$59,2,FALSE))," ",VLOOKUP(K201,Proposito_programa!$C$2:$E$59,2,FALSE)) -> Gestión pública local | M201: =IF(ISERROR(VLOOKUP(K201,Proposito_programa!$C$2:$E$59,3,FALSE))," ",VLOOKUP(K201,Proposito_programa!$C$2:$E$59,3,FALSE)) -> Propósito 5: Construir Bogotá - Región con gobierno abierto, transparente y ciudadanía consciente | N201: 2198 | O201: 1 | P201: 1018511981 | Q201: LEDY DAYANNA RODRIGUEZ ROJAS | R201: Persona Natural | W201: 9840000 | AA201: 9840000 | AB201: 8364000 | AC201: 2022-08-18 | AD201: 2022-08-19 | AE201: 2022-12-18 | AF201: 120 | AM201: En ejecución | AN201: 0.85
A202: 184 | B202: 2022 | C202: FDLAN-CD-184-2022(74499) | D202: https://community.secop.gov.co/Public/Tendering/OpportunityDetail/Index?noticeUID=CO1.NTC.3190567&isFromPublicArea=True&isModal=False | E202: Contratos de prestación de servicios profesionales y de apoyo a la gestión | F202: Contratación directa | G202: Prestación de servicios profesionales y de apoyo a la gestión, o para la ejecución de trabajos artísticos que sólo puedan encomendarse a determinadas personas naturales | H202: PRESTAR SERVICIOS DE APOYO A LA ALCALDÍA LOCAL DE ANTONIO NARIÑO A LA GESTIÓN ADMINISTRATIVA DEL TEATRO VILLA MAYOR | I202: Inversión | J202: Un nuevo contrato social y ambiental para la Bogotá del Siglo XXI | K202: 21 | L202: =IF(ISERROR(VLOOKUP(K202,Proposito_programa!$C$2:$E$59,2,FALSE))," ",VLOOKUP(K202,Proposito_programa!$C$2:$E$59,2,FALSE)) -> Creación y vida cotidiana: Apropiación ciudadana del arte, la cultura y el patrimonio, para la democracia cultural | M202: =IF(ISERROR(VLOOKUP(K202,Proposito_programa!$C$2:$E$59,3,FALSE))," ",VLOOKUP(K202,Proposito_programa!$C$2:$E$59,3,FALSE)) -> Propósito 1: Hacer un nuevo contrato social para incrementar la inclusión social, productiva y política | N202: 2201 | O202: 1 | P202: 1143835530 | Q202: SARA JIMENEZ NIETO | R202: Persona Natural | W202: 9840000 | AA202: 9840000 | AB202: 6642000 | AC202: 2022-08-24 | AD202: 2022-08-26 | AE202: 2022-12-31 | AF202: 120 | AM202: En ejecución | AN202: 0.675
... 142 more rows

Sheet BOGDATA VS FORMATO (hidden)
A1: BOGDATA- CUADRO ANALISIS - Antonio Nariño
C2: COMPROMISOS ACUMULADOS BOGDATA | D2: VALOR FINAL | E2: ACUMULADO GIROS BOGDATA | F2: GIROS
B3: FUNCIONAMIENTO | C3: 1967641061 | D3: 1341972545 | E3: 1646879979 | F3: 1177692457
B4: DIFERENCIAS | C4: =+C3-D3 -> 625668516 | E4: =+E3-F3 -> 469187522
B5: INVERSION (Comprometido) | C5: 21045484881 | D5: 18281310325 | E5: 10251824148 | F5: 8420924257
B6: DIFERENCIAS | C6: =C5-D5 -> 2764174556 | E6: =E5-F5 -> 1830899891
B7: Un nuevo contrato social y ambiental para la Bogotá del Siglo XXI | C7: 21045484881 | D7: 18281310325 | E7: 10251824148 | F7: 8420924257
B8: DIFERENCIAS | C8: =C7-D7 -> 2764174556 | E8: =E7-F7 -> 1830899891
B9: Propósito 1 - Hacer un nuevo contrato social con igualdad de oportunidades para la inclusión social, productiva y política | C9: 8230001109 | D9: 7583468130 | E9: 5807723876 | F9: 4064451876
B10: DIFERENCIAS | C10: =C9-D9 -> 646532979 | E10: =E9-F9 -> 1743272000
B11: Subsidios y transferencias para la equidad - Programa 1 | C11: 3633115000 | D11: 3633115000 | E11: 3343685904 | F11: 3343685904
B12: DIFERENCIAS | C12: =C11-D11 -> 0 | E12: =+E11-F11 -> 0
B13: Proyecto 1851 | C13: 3633115000 | D13: 3633115000 | E13: 3343685904 | F13: 3343685904
B14: DIFERENCIAS | C14: =+C13-D13 -> 0 | E14: =+E13-F13 -> 0
B15: Sistema Distrital del Cuidado - Programa 6 | C15: 1151539201 | D15: 769932143 | E15: 523478369 | F15: 260344740
B16: DIFERENCIAS | C16: =+C15-D15 -> 381607058 | E16: =+E15-F15 -> 263133629
B17: Proyecto 2191 | C17: 625047356 | D17: 345607356 | E17: 429018000 | F17: 149578000
B18: DIFERENCIAS | C18: =+C17-D17 -> 279440000 | E18: =+E17-F17 -> 279440000
B19: Proyecto 2192 | C19: 75584000 | D19: 75584000 | E19: 22714000 | F19: 22714000
B20: DIFERENCIAS | C20: =+C19-D19 -> 0 | E20: =+E19-F19 -> 0
B21: Proyecto 2193 | C21: 55440000 | D21: 55440000 | E21: 55440000 | F21: 55440000
B22: DIFERENCIAS | C22: =+C21-D21 -> 0 | E22: =+E21-F21 -> 0
B23: Proyecto 2194 | C23: 395467845 | D23: 293300787 | E23: 16306369 | F23: 32612740
B24: DIFERENCIAS | C24: =+C23-D23 -> 102167058 | E24: =+E23-F23 -> -16306371
B25: Educación inicial: Bases sólidas para la vida - Programa 12 | C25: 219810614 | D25: 219810614 | E25: 0 | F25: 0
B26: DIFERENCIAS | C26: =+C25-D25 -> 0 | E26: =+E25-F25 -> 0
B27: Proyecto 1864 | C27: 219810614 | D27: 219810614 | E27: 0 | F27: 0
B28: DIFERENCIAS | C28: =+C27-D27 -> 0 | E28: =+E27-F27 -> 0
B29: Formación integral: más y mejor tiempo en los colegios - Programa 14 | C29: 113321760 | D29: 113321759 | E29: 0 | F29: 0
B30: DIFERENCIAS | C30: =+C29-D29 -> 1 | E30: =+E29-F29 -> 0
B31: Proyecto 2196 | C31: 113321760 | D31: 113321759 | E31: 0 | F31: 0
B32: DIFERENCIAS | C32: =+C31-D31 -> 1 | E32: =+E31-F31 -> 0
B33: Jóvenes con capacidades: Proyecto de vida para la ciudadanía, la innovación y el trabajo del siglo XXI - Proyecto 17 | C33: 1481196000 | D33: 1481196000 | E33: 1403408000 | F33: 116476000
B34: DIFERENCIAS | C34: =+C33-D33 -> 0 | E34: =+E33-F33 -> 1286932000
B35: Proyecto 2048 | C35: 1397152000 | D35: 1397152000 | E35: 1388648000 | F35: 101716000
B36: DIFERENCIAS | C36: =+C35-D35 -> 0 | E36: =+E35-F35 -> 1286932000
B37: Proyecto 2199 | C37: 84044000 | D37: 84044000 | E37: 14760000 | F37: 14760000
B38: DIFERENCIAS | C38: =+C37-D37 -> 0 | E38: =+E37-F37 -> 0
B39: Bogotá, referente en cultura, deporte, recreación y actividad física, con parques para el desarrollo y la salud - Programa 20 | C39: 367180655 | D39: 367180655 | E39: 103327300 | F39: 103327300
B40: DIFERENCIAS | C40: =+C39-D39 -> 0 | E40: =+E39-F39 -> 0
B41: Proyecto 2200 | C41: 367180655 | D41: 367180655 | E41: 103327300 | F41: 103327300
B42: DIFERENCIAS | C42: =+C41-D41 -> 0 | E42: =+E41-F41 -> 0
B43: Creación y vida cotidiana: Apropiación ciudadana del arte, la cultura y el patrimonio, para la democracia cultural - Programa 21 | C43: 1107228104 | D43: 807228104 | E43: 412897932 | F43: 212897932
B44: DIFERENCIAS | C44: =+C43-D43 -> 300000000 | E44: =+E43-F43 -> 200000000
B45: Proyecto 2201 | C45: 1107228104 | D45: 807228104 | E45: 412897932 | F45: 212897932
B46: DIFERENCIAS | C46: =+C45-D45 -> 300000000 | E46: =+E45-F45 -> 200000000
B47: Bogotá región emprendedora e innovadora - Programa 24 | C47: 133973683 | D47: 191683855 | E47: 4620000 | F47: 27720000
B48: DIFERENCIAS | C48: =+C47-D47 -> -57710172 | E48: =+E47-F47 -> -23100000
B49: Proyecto 2202 | C49: 92921923 | D49: 92921923 | E49: 0 | F49: 0
B50: DIFERENCIAS | C50: =+C49-D49 -> 0 | E50: =+E49-F49 -> 0
B51: Proyecto 2203 | C51: 41051760 | D51: 98761932 | E51: 4620000 | F51: 27720000
B52: DIFERENCIAS | C52: =+C51-D51 -> -57710172 | E52: =+E51-F51 -> -23100000
B53: Propósito 2 - Cambiar nuestros hábitos de vida para reverdecer a Bogotá y adaptarnos y mitigar la crisis climática | C53: 936683056 | D53: 781731410 | E53: 322220322 | F53: 302952354
B54: DIFERENCIAS | C54: =+C53-D53 -> 154951646 | E54: =+E53-F53 -> 19267968
B55: Más árboles y más y mejor espacio público - Programa 33 | C55: 675738884 | D55: 564637410 | E55: 185058968 | F55: 175031000
B56: DIFERENCIAS | C56: =+C55-D55 -> 111101474 | E56: =+E55-F55 -> 10027968
B57: Proyecto 2206 | C57: 55784000 | D57: 24522000 | E57: 26642000 | F57: 12782000
B58: DIFERENCIAS | C58: =+C57-D57 -> 31262000 | E58: =+E57-F57 -> 13860000
B59: Proyecto 2207 | C59: 619954884 | D59: 540115410 | E59: 158416968 | F59: 162249000
B60: DIFERENCIAS | C60: =+C59-D59 -> 79839474 | E60: =+E59-F59 -> -3832032
B61: Bogotá protectora de los animales - Programa 34 | C61: 130764000 | D61: 130764000 | E61: 78061354 | F61: 78061354
B62: DIFERENCIAS | C62: =+C61-D61 -> 0 | E62: =+E61-F61 -> 0
B63: Proyecto 2209 | C63: 130764000 | D63: 130764000 | E63: 78061354 | F63: 78061354
B64: DIFERENCIAS | C64: =+C63-D63 -> 0 | E64: =+E63-F63 -> 0
B65: Ecoeficiencia, reciclaje, manejo de residuos e inclusión de la población recicladora - Programa 38 | C65: 47750000 | D65: 86330000 | E65: 11280000 | F65: 49860000
B66: DIFERENCIAS | C66: =+C65-D65 -> -38580000 | E66: =+E65-F65 -> -38580000
B67: Proyecto 2210 | C67: 47750000 | D67: 86330000 | E67: 11280000 | F67: 49860000
B68: DIFERENCIAS | C68: =+C67-D67 -> -38580000 | E68: =+E67-F67 -> -38580000
B69: Propósito 3 - Inspirar confianza y legitimidad para vivir sin miedo y ser epicentro de cultura ciudadana, paz y reconciliación | C69: 985776481 | D69: 662770935 | E69: 144856000 | F69: 114436000
B70: DIFERENCIAS | C70: =+C69-D69 -> 323005546 | E70: =+E69-F69 -> 30420000
B71: Bogotá territorio de paz y atención integral a las víctimas del conflicto armado - Programa 39 | C71: 55440000 | D71: 55440000 | E71: 55440000 | F71: 55440000
B72: DIFERENCIAS | C72: =+C71-D71 -> 0 | E72: =+E71-F71 -> 0
B73: Proyecto 2165 | C73: 55440000 | D73: 55440000 | E73: 55440000 | F73: 55440000
B74: DIFERENCIAS | C74: =+C73-D73 -> 0 | E74: =+E73-F73 -> 0
B75: Más mujeres viven una vida libre de violencias, se sienten seguras y acceden con confianza al sistema de justicia - Programa 40 | C75: 298458286 | D75: 166058286 | E75: 51840000 | F75: 21420000
B76: DIFERENCIAS | C76: =+C75-D75 -> 132400000 | E76: =+E75-F75 -> 30420000
B77: Proyecto 2197 | C77: 298458286 | D77: 166058286 | E77: 51840000 | F77: 21420000
B78: DIFERENCIAS | C78: =+C77-D77 -> 132400000 | E78: =+E77-F77 -> 30420000
B79: Espacio público más seguro y construido colectivamente - Programa 45 | C79: 189336109 | D79: 189336109 | E79: 37576000 | F79: 37576000
B80: DIFERENCIAS | C80: =+C79-D79 -> 0 | E80: =+E79-F79 -> 0
B81: Proyecto 2183 | C81: 189336109 | D81: 189336109 | E81: 37576000 | F81: 37576000
B82: DIFERENCIAS | C82: =+C81-D81 -> 0 | E82: =+E81-F81 -> 0
B83: Plataforma institucional para la seguridad y justicia - Programa 48 | C83: 442542086 | D83: 251936540 | E83: 0 | F83: 0
B84: DIFERENCIAS | C84: =+C83-D83 -> 190605546 | E84: =+E83-F83 -> 0
B85: Proyecto 2184 | C85: 26537000 | D85: 26537000 | E85: 0 | F85: 0
B86: DIFERENCIAS | C86: =+C85-D85 -> 0 | E86: =+E85-F85 -> 0
B87: Proyecto 2185 | C87: 416005086 | D87: 225399540 | E87: 0 | F87: 0
B88: DIFERENCIAS | C88: =+C87-D87 -> 190605546 | E88: =+E87-F87 -> 0
B89: Propósito 4 -Hacer de Bogotá Región un modelo de movilidad multimodal, incluyente y sostenible. | C89: 6590069000 | D89: 4928209405 | E89: 566416000 | F89: 653592000
B90: DIFERENCIAS | C90: =+C89-D89 -> 1661859595 | E90: =+E89-F89 -> -87176000
B91: Movilidad segura, sostenible y accesible - programa 49 | C91: 6590069000 | D91: 4928209405 | E91: 566416000 | F91: 653592000
B92: DIFERENCIAS | C92: =+C91-D91 -> 1661859595 | E92: =+E91-F91 -> -87176000
B93: Proyecto 2186 | C93: 6590069000 | D93: 4928209405 | E93: 566416000 | F93: 653592000
B94: DIFERENCIAS | C94: =+C93-D93 -> 1661859595 | E94: =+E93-F93 -> -87176000
B95: Propósito 5 - Construir Bogotá Región con gobierno abierto, transparente y ciudadanía consciente | C95: 4302955235 | D95: 4125130445 | E95: 3410607950 | F95: 3285492027
B96: DIFERENCIAS | C96: =+C95-D95 -> 177824790 | E96: =+E95-F95 -> 125115923
B97: Fortalecimiento de Cultura Ciudadana y su institucionalidad - Programa 55 | C97: 467345563 | D97: 439625562 | E97: 342253050 | F97: 319923050
B98: DIFERENCIAS | C98: =+C97-D97 -> 27720001 | E98: =+E97-F97 -> 22330000
B99: Proyecto 2190 | C99: 467345563 | D99: 439625562 | E99: 342253050 | F99: 319923050
B100: DIFERENCIAS | C100: =+C99-D99 -> 27720001 | E100: =+E99-F99 -> 22330000
B101: Gestión Pública Local - Programa 57 | C101: 3835609672 | D101: 3685504883 | E101: 3068354900 | F101: 2965568977
B102: DIFERENCIAS | C102: =+C101-D101 -> 150104789 | E102: =+E101-F101 -> 102785923
B103: Proyecto 2189 | C103: 736161956 | D103: 618380756 | E103: 562274679 | F103: 467420756
B104: DIFERENCIAS | C104: =+C103-D103 -> 117781200 | E104: =+E103-F103 -> 94853923
B105: Poryecto 2198 | C105: 3099447716 | D105: 3067124127 | E105: 2506080221 | F105: 2498148221
B106: DIFERENCIAS | C106: =+C105-D105 -> 32323589 | E106: =+E105-F105 -> 7932000

Sheet BOGDATA VS FORMATO R3
A1: BOGDATA- CUADRO ANALISIS - Antonio Nariño
C2: COMPROMISOS ACUMULADOS BOGDATA | D2: VALOR FINAL | E2: ACUMULADO GIROS BOGDATA | F2: GIROS
B3: FUNCIONAMIENTO | C3: 1967641061 | D3: 1967641061 | E3: 1646879979 | F3: 1646879979
B4: DIFERENCIAS | C4: =+C3-D3 -> 0 | E4: =+E3-F3 -> 0
B5: INVERSION (Comprometido) | C5: 21045484881 | D5: 21045484881 | E5: 10251824148 | F5: 10251824148
B6: DIFERENCIAS | C6: =C5-D5 -> 0 | E6: =E5-F5 -> 0
B7: Un nuevo contrato social y ambiental para la Bogotá del Siglo XXI | C7: 21045484881 | D7: 21045484881 | E7: 10251824148 | F7: 10251824148
B8: DIFERENCIAS | C8: =C7-D7 -> 0 | E8: =E7-F7 -> 0
B9: Propósito 1 - Hacer un nuevo contrato social con igualdad de oportunidades para la inclusión social, productiva y política | C9: 8230001109 | D9: 8230001109 | E9: 5807723876 | F9: 5327465876
B10: DIFERENCIAS | C10: =C9-D9 -> 0 | E10: =E9-F9 -> 480258000
B11: Subsidios y transferencias para la equidad - Programa 1 | C11: 3633115000 | D11: 3633115000 | E11: 3343685904 | F11: 3343685904
B12: DIFERENCIAS | C12: =C11-D11 -> 0 | E12: =+E11-F11 -> 0
B13: Proyecto 1851 | C13: 3633115000 | D13: 3633115000 | E13: 3343685904 | F13: 3343685904
B14: DIFERENCIAS | C14: =+C13-D13 -> 0 | E14: =+E13-F13 -> 0
B15: Sistema Distrital del Cuidado - Programa 6 | C15: 1151539201 | D15: 1151539201 | E15: 523478369 | F15: 350678369
B16: DIFERENCIAS | C16: =+C15-D15 -> 0 | E16: =+E15-F15 -> 172800000
B17: Proyecto 2191 | C17: 625047356 | D17: 625047356 | E17: 429018000 | F17: 429018000
B18: DIFERENCIAS | C18: =+C17-D17 -> 0 | E18: =+E17-F17 -> 0
B19: Proyecto 2192 | C19: 75584000 | D19: 75584000 | E19: 22714000 | F19: 22714000
B20: DIFERENCIAS | C20: =+C19-D19 -> 0 | E20: =+E19-F19 -> 0
B21: Proyecto 2193 | C21: 55440000 | D21: 55440000 | E21: 55440000 | F21: 55440000
B22: DIFERENCIAS | C22: =+C21-D21 -> 0 | E22: =+E21-F21 -> 0
B23: Proyecto 2194 | C23: 395467845 | D23: 395467845 | E23: 16306369 | F23: 16306369
B24: DIFERENCIAS | C24: =+C23-D23 -> 0 | E24: =+E23-F23 -> 0
B25: Prevención y atención de maternidad temprana- Programa 8 | C25: 22636092 | D25: 22636092 | E25: 16306371 | F25: 16306371
B26: DIFERENCIAS | C26: =+C25-D25 -> 0 | E26: =+E25-F25 -> 0
B27: Proyecto 2195 | C27: 22636092 | D27: 22636092 | E27: 16306371 | F27: 16306371
B28: DIFERENCIAS | C28: =+C27-D27 -> 0 | E28: =+E27-F27 -> 0
B29: Educación inicial: Bases sólidas para la vida - Programa 12 | C29: 219810614 | D29: 219810614 | E29: 0 | F29: 0
B30: DIFERENCIAS | C30: =+C29-D29 -> 0 | E30: =+E29-F29 -> 0
B31: Proyecto 1864 | C31: 219810614 | D31: 219810614 | E31: 0 | F31: 0
B32: DIFERENCIAS | C32: =+C31-D31 -> 0 | E32: =+E31-F31 -> 0
B33: Formación integral: más y mejor tiempo en los colegios - Programa 14 | C33: 113321760 | D33: 113321760 | E33: 0 | F33: 0
B34: DIFERENCIAS | C34: =+C33-D33 -> 0 | E34: =+E33-F33 -> 0
B35: Proyecto 2196 | C35: 113321760 | D35: 113321760 | E35: 0 | F35: 0
